Workbook

Sheet Notes
A1: Decyclers.xlsm
A2: Coded beginning 2015-July-07 by Ronald McAllister (rpmac_xltt@sprynet.com)
A4: This Workbook demonstrates an EXCEL version of the ideas presented
A5: by John F. Ehlers in an article titled "Decyclers"
A6: which appears in the September 2015 issue of
A7: "Technical Analysis of Stocks and Commodities" magazine.
A10: New Features for this TradersTips Template
B11: Improved automation: changes to any of the following will automaticly initiate calculations appropriate to reflect a change.
C12: Changing either of cells A11 (pan) or A12 (zoom) will automatically initiate the same chart sizing macros that the manual
C13: "Set Chart" button uses.
A15: CalculationsAndCharts construction Notes:
B16: One may approximate Figures 1 and 2 from the article by retrieveing data for symbol SPY and
B17: setting the charts to plot the data from 12/19/2013 thru 12/03/2014.
B18: Playing with the oscillator controls can shift the cross over points by one or two bars. Adjust to taste.
A20: Development Notes:
A21: 1 | C21: This workbook contains and uses VBA macros and VBA Class structures.
A22: 2 | C22: Input Data
C23: The data in this workbook is sorted date descending (most recent date at the top). All formulas and
C24: VBA routines are built accordingly.
A25: Calculation and Chart Worksheet Usage Comments:
A26: 1 | C26: In General, Items in Bolded BLUE are items you may freely change to play what-if games.
C27: Be sure to have a backup copy of the spreadsheet before you alter anything else.

Sheet InputPriceData
A1: SPDR S&P 500 (SPY) -PCX (Daily)
A2: Last Trade: | B2: 2015-07-09 | C2: 207.04 | D2: 207.35 | E2: 206.64 | F2: 206.83 | G2: 19903371 | H2: 9:52am | I2: 2.3 | J2: =IFERROR(OFFSET(J2,0,-1,1,1)/(OFFSET(J2,0,-4,1,1)-OFFSET(J2,0,-1,1,1)),"") -> 0.01124529409 | L2: Notes: | M2: Online Yahoo Finance Query Interfaces used in the VBA code to obtain this data:
A3: Request Online Yahoo History for: | M3: A.) Price History Only: "http://ichart.finance.yahoo.com/table.csv"
A4: Symbol | B4: SPY | D4: Valid | I4: =OFFSET(I4,-2,0,1,1) -> 2.3 | M4: B.) Price History w/ imbedded divs n splits: "http://ichart.finance.yahoo.com/x"
A5: From | B5: 1977-01-07 | D5: Data | AF5: Trailing 12 Div return (Cur Close)
A6: To | B6: =TODAY() -> 2015-07-09 | D6: Types | E6: =VLOOKUP(B7,D7:E10,2,FALSE) -> d | M6: C.) Fundamentals (in this case name and exchange):
A7: Data Type | B7: Daily | D7: Daily | E7: d | M7: "http://download.finance.yahoo.com/d/quotes.csv?"
D8: Weekly | E8: w | M8: For some how-to doc regarding this particular interface, including a list of the
A9: Available Data | D9: Monthly | E9: m | M9: specific fields you can include in a request to this interface see:
A10: Bar Count: | B10: =COUNTA(B15:B70000)-1 -> 5652 | M10: http://www.gummy-stuff.org/Yahoo-data.htm | AF10: =OFFSET(AC15,1,0,1,1)/OFFSET(N15,1,0,1,1) -> 0.01950877532
A11: From: | B11: =IF(B10<=0,"",OFFSET(B15,B10,IF(HistReqDataType="v",1,0),1,1)) -> 1993-01-29 | M11: This web site includes a downloadable working EXCEL/VBA example | W11: Trailing 12 Month Dividend Returns
A12: To: | B12: =IF(B10<=0,"",IF(HistReqDataType="v",OFFSET(B15,2,1,1,1),OFFSET(B15,1,0,1,1))) -> 2015-07-09 | M12: of the capabilities of this interface. | W12: Raw Close price on Dividend date | X12: Div Year and Month | Y12: Looking for year ago Div Year and Month | Z12: Year ago Div Date we found | AA12: row offset to year ago div Date | AB12: Same month flag | AC12: Trailing 12 Div Total | AD12: Trailing 12 Div return
Q13: Split History | S13: =COUNT(Q16:Q20000) -> 0 | T13: Running | U13: Dividend History
B14: Raw Data Values | H14: Adjusted | I14: Price Adjust | J14: Vol Adjust | K14: Adjusted Values | P14: Last | Q14: Effective | R14: Shares | T14: Vol Adjust | V14: =COUNT(U16:U20000) -> 94
A15: RelRow | B15: Date | C15: Open | D15: High | E15: Low | F15: Close | G15: Volume | H15: Close | I15: Factor | J15: Factor | K15: Open | L15: High | M15: Low | N15: Close | O15: Volume | P15: Trade | Q15: 42195 | R15: New | S15: Old | T15: 1 | U15: Date | V15: $ / Share
A16: 1 | B16: 2015-07-09 | C16: 207.04 | D16: 207.35 | E16: 206.64 | F16: 206.83 | G16: 19903371 | H16: 206.83 | I16: =H16/F16 -> 1 | J16: =INDEX(OFFSET($T$15,0,0,$S$13+1,1),MATCH(B16,OFFSET($Q$15,0,0,$S$13+1,1),-1)) -> 1 | K16: =ROUND($I16*C16,2) -> 207.04 | L16: =ROUND($I16*D16,2) -> 207.35 | M16: =ROUND($I16*E16,2) -> 206.64 | N16: =ROUND($I16*F16,2) -> 206.83 | O16: =G16*J16 -> 19903371 | P16: 9:52am | U16: 2015-06-19 | V16: 1.03 | W16: =(INDEX(OFFSET($F$15,1,0,$B$10,1),MATCH(U16,OFFSET($B$15,1,0,$B$10,1),-1))) -> 210.809998 | X16: =YEAR(U16)&RIGHT("0"&MONTH(U16),2) -> 201506 | Y16: =YEAR(U16)-1&RIGHT("0"&MONTH(U16),2) -> 201406 | Z16: =OFFSET(U15,AA16,0,1,1) -> 2014-06-20 | AA16: =MATCH(Y16,OFFSET($X$15,A16,0,$V$14+1-A16,1),-1) -> 5 | AB16: =IF(OR(AND(YEAR(U16)=YEAR(Z16),MONTH(U16)=MONTH(Z16)),MONTH(U16)=MONTH(Z16)),1,0) -> 1 | AC16: =(V16+IF(AA16-AB16=0,0,IFERROR(SUM(OFFSET(V16,1,0,AA16-AB16-1,1)),0))) -> 4.035 | AD16: =AC16/(INDEX(OFFSET($F$15,1,0,$B$10,1),MATCH(U16,OFFSET($B$15,1,0,$B$10,1),-1))) -> 0.01914045841
A17: 2 | B17: 2015-07-08 | C17: 208.020004 | D17: 208.020004 | E17: 204.25 | F17: 204.529999 | G17: 159250700 | H17: 204.529999 | I17: =H17/F17 -> 1 | J17: =INDEX(OFFSET($T$15,0,0,$S$13+1,1),MATCH(B17,OFFSET($Q$15,0,0,$S$13+1,1),-1)) -> 1 | K17: 208.02 | L17: 208.02 | M17: 204.25 | N17: 204.53 | O17: =G17*J17 -> 159250700 | U17: 2015-03-20 | V17: 0.931 | W17: =(INDEX(OFFSET($F$15,1,0,$B$10,1),MATCH(U17,OFFSET($B$15,1,0,$B$10,1),-1))) -> 210.410004 | X17: =YEAR(U17)&RIGHT("0"&MONTH(U17),2) -> 201503 | Y17: =YEAR(U17)-1&RIGHT("0"&MONTH(U17),2) -> 201403 | Z17: =OFFSET(U16,AA17,0,1,1) -> 2014-03-21 | AA17: =MATCH(Y17,OFFSET($X$15,A17,0,$V$14+1-A17,1),-1) -> 5 | AB17: =IF(OR(AND(YEAR(U17)=YEAR(Z17),MONTH(U17)=MONTH(Z17)),MONTH(U17)=MONTH(Z17)),1,0) -> 1 | AC17: =(V17+IF(AA17-AB17=0,0,IFERROR(SUM(OFFSET(V17,1,0,AA17-AB17-1,1)),0))) -> 3.942 | AD17: =AC17/(INDEX(OFFSET($F$15,1,0,$B$10,1),MATCH(U17,OFFSET($B$15,1,0,$B$10,1),-1))) -> 0.01873485065
A18: 3 | B18: 2015-07-07 | C18: 206.960007 | D18: 208.169998 | E18: 204.110001 | F18: 208.009995 | G18: 170938200 | H18: 208.009995 | I18: =H18/F18 -> 1 | J18: =INDEX(OFFSET($T$15,0,0,$S$13+1,1),MATCH(B18,OFFSET($Q$15,0,0,$S$13+1,1),-1)) -> 1 | K18: 206.96 | L18: 208.17 | M18: 204.11 | N18: 208.01 | O18: =G18*J18 -> 170938200 | U18: 2014-12-19 | V18: 1.135 | W18: 206.520004 | X18: 201412 | Y18: 201312 | Z18: 2013-12-20 | AA18: 5 | AB18: 1 | AC18: 3.836 | AD18: 0.01857447185
A19: 4 | B19: 2015-07-06 | C19: 205.770004 | D19: 207.649994 | E19: 205.529999 | F19: 206.669998 | G19: 113786000 | H19: 206.669998 | I19: 1 | J19: 1 | K19: 205.77 | L19: 207.65 | M19: 205.53 | N19: 206.67 | O19: 113786000 | U19: 2014-09-19 | V19: 0.939 | W19: 200.699997 | X19: 201409 | Y19: 201309 | Z19: 2013-09-20 | AA19: 5 | AB19: 1 | AC19: 3.681 | AD19: 0.01834080745
A20: 5 | B20: 2015-07-02 | C20: 208.070007 | D20: 208.270004 | E20: 206.809998 | F20: 207.320007 | G20: 102616600 | H20: 207.320007 | I20: 1 | J20: 1 | K20: 208.07 | L20: 208.27 | M20: 206.81 | N20: 207.32 | O20: 102616600 | U20: 2014-06-20 | V20: 0.937 | W20: 195.940002 | X20: 201406 | Y20: 201306 | Z20: 2013-06-21 | AA20: 5 | AB20: 1 | AC20: 3.58 | AD20: 0.01827089907
A21: 6 | B21: 2015-07-01 | C21: 207.729996 | D21: 208.029999 | E21: 206.559998 | F21: 207.570007 | G21: 129406500 | H21: 207.570007 | I21: 1 | J21: 1 | K21: 207.73 | L21: 208.03 | M21: 206.56 | N21: 207.57 | O21: 129406500 | U21: 2014-03-21 | V21: 0.825 | W21: 186.199997 | X21: 201403 | Y21: 201303 | Z21: 2013-03-15 | AA21: 5 | AB21: 1 | AC21: 3.482 | AD21: 0.01870032254
A22: 7 | B22: 2015-06-30 | C22: 207.259995 | D22: 207.320007 | E22: 205.279999 | F22: 205.889999 | G22: 165457500 | H22: 205.889999 | I22: 1 | J22: 1 | K22: 207.26 | L22: 207.32 | M22: 205.28 | N22: 205.89 | O22: 165457500 | U22: 2013-12-20 | V22: 0.98 | W22: 181.559998 | X22: 201312 | Y22: 201212 | Z22: 2012-12-21 | AA22: 5 | AB22: 1 | AC22: 3.351 | AD22: 0.01845670873
A23: 8 | B23: 2015-06-29 | C23: 208.050003 | D23: 209.830002 | E23: 205.330002 | F23: 205.470001 | G23: 188111300 | H23: 205.470001 | I23: 1 | J23: 1 | K23: 208.05 | L23: 209.83 | M23: 205.33 | N23: 205.47 | O23: 188111300 | U23: 2013-09-20 | V23: 0.838 | W23: 170.720001 | X23: 201309 | Y23: 201209 | Z23: 2012-09-21 | AA23: 5 | AB23: 1 | AC23: 3.393 | AD23: 0.01987464843
A24: 9 | B24: 2015-06-26 | C24: 210.289993 | D24: 210.580002 | E24: 209.160004 | F24: 209.899994 | G24: 104174800 | H24: 209.899994 | I24: 1 | J24: 1 | K24: 210.29 | L24: 210.58 | M24: 209.16 | N24: 209.9 | O24: 104174800 | U24: 2013-06-21 | V24: 0.839 | W24: 159.070007 | X24: 201306 | Y24: 201206 | Z24: 2012-06-15 | AA24: 5 | AB24: 1 | AC24: 3.334 | AD24: 0.02095932516
A25: 10 | B25: 2015-06-25 | C25: 211.100006 | D25: 211.25 | E25: 209.770004 | F25: 209.830002 | G25: 97107400 | H25: 209.830002 | I25: 1 | J25: 1 | K25: 211.1 | L25: 211.25 | M25: 209.77 | N25: 209.83 | O25: 97107400 | U25: 2013-03-15 | V25: 0.694 | W25: 155.830002 | X25: 201303 | Y25: 201203 | Z25: 2012-03-16 | AA25: 5 | AB25: 1 | AC25: 3.183 | AD25: 0.02042610511
A26: 11 | B26: 2015-06-24 | C26: 211.720001 | D26: 212.169998 | E26: 210.470001 | F26: 210.509995 | G26: 92307300 | H26: 210.509995 | I26: 1 | J26: 1 | K26: 211.72 | L26: 212.17 | M26: 210.47 | N26: 210.51 | O26: 92307300 | U26: 2012-12-21 | V26: 1.022 | W26: 142.789993 | X26: 201212 | Y26: 201112 | Z26: 2011-12-16 | AA26: 5 | AB26: 1 | AC26: 3.103 | AD26: 0.02173121474
A27: 12 | B27: 2015-06-23 | C27: 212.139999 | D27: 212.440002 | E27: 211.570007 | F27: 212.050003 | G27: 68476800 | H27: 212.050003 | I27: 1 | J27: 1 | K27: 212.14 | L27: 212.44 | M27: 211.57 | N27: 212.05 | O27: 68476800 | U27: 2012-09-21 | V27: 0.779 | W27: 145.869995 | X27: 201209 | Y27: 201109 | Z27: 2011-09-16 | AA27: 5 | AB27: 1 | AC27: 2.851 | AD27: 0.01954480083
A28: 13 | B28: 2015-06-22 | C28: 211.910004 | D28: 212.589996 | E28: 211.639999 | F28: 211.889999 | G28: 70696000 | H28: 211.889999 | I28: 1 | J28: 1 | K28: 211.91 | L28: 212.59 | M28: 211.64 | N28: 211.89 | O28: 70696000 | U28: 2012-06-15 | V28: 0.688 | W28: 134.139999 | X28: 201206 | Y28: 201106 | Z28: 2011-06-17 | AA28: 5 | AB28: 1 | AC28: 2.697 | AD28: 0.0201058597
A29: 14 | B29: 2015-06-19 | C29: 211.460007 | D29: 211.550003 | E29: 210.360001 | F29: 210.809998 | G29: 130478700 | H29: 210.809998 | I29: 1 | J29: 1 | K29: 211.46 | L29: 211.55 | M29: 210.36 | N29: 210.81 | O29: 130478700 | U29: 2012-03-16 | V29: 0.614 | W29: 140.300003 | X29: 201203 | Y29: 201103 | Z29: 2011-03-18 | AA29: 5 | AB29: 1 | AC29: 2.637 | AD29: 0.01879543794
A30: 15 | B30: 2015-06-18 | C30: 211.309998 | D30: 213.339996 | E30: 210.630005 | F30: 212.710007 | G30: 165867900 | H30: 211.680005 | I30: 0.9951577172 | J30: 1 | K30: 210.29 | L30: 212.31 | M30: 209.61 | N30: 211.68 | O30: 165867900 | U30: 2011-12-16 | V30: 0.77 | W30: 121.589996 | X30: 201112 | Y30: 201012 | Z30: 2010-12-17 | AA30: 5 | AB30: 1 | AC30: 2.576 | AD30: 0.02118595349
A31: 16 | B31: 2015-06-17 | C31: 210.589996 | D31: 211.320007 | E31: 209.360001 | F31: 210.589996 | G31: 126708600 | H31: 209.57026 | I31: 0.9951577187 | J31: 1 | K31: 209.57 | L31: 210.3 | M31: 208.35 | N31: 209.57 | O31: 126708600 | U31: 2011-09-16 | V31: 0.625 | W31: 121.519997 | X31: 201109 | Y31: 201009 | Z31: 2010-09-17 | AA31: 5 | AB31: 1 | AC31: 2.459 | AD31: 0.0202353527
A32: 17 | B32: 2015-06-16 | C32: 208.929993 | D32: 210.350006 | E32: 208.720001 | F32: 210.25 | G32: 85308200 | H32: 209.23191 | I32: 0.995157717 | J32: 1 | K32: 207.92 | L32: 209.33 | M32: 207.71 | N32: 209.23 | O32: 85308200 | U32: 2011-06-17 | V32: 0.628 | W32: 127.050003 | X32: 201106 | Y32: 201006 | Z32: 2010-06-18 | AA32: 5 | AB32: 1 | AC32: 2.436 | AD32: 0.01917355327
A33: 18 | B33: 2015-06-15 | C33: 208.639999 | D33: 209.449997 | E33: 207.789993 | F33: 209.100006 | G33: 124384200 | H33: 208.087485 | I33: 0.9951577189 | J33: 1 | K33: 207.63 | L33: 208.44 | M33: 206.78 | N33: 208.09 | O33: 124384200 | U33: 2011-03-18 | V33: 0.553 | W33: 127.760002 | X33: 201103 | Y33: 201003 | Z33: 2010-03-19 | AA33: 5 | AB33: 1 | AC33: 2.339 | AD33: 0.01830776427
A34: 19 | B34: 2015-06-12 | C34: 210.639999 | D34: 211.479996 | E34: 209.679993 | F34: 209.929993 | G34: 135382400 | H34: 208.913453 | I34: 0.9951577191 | J34: 1 | K34: 209.62 | L34: 210.46 | M34: 208.66 | N34: 208.91 | O34: 135382400 | U34: 2010-12-17 | V34: 0.653 | W34: 124.300003 | X34: 201012 | Y34: 200912 | Z34: 2009-12-18 | AA34: 5 | AB34: 1 | AC34: 2.266 | AD34: 0.01823008806
A35: 20 | B35: 2015-06-11 | C35: 211.479996 | D35: 212.089996 | E35: 211.199997 | F35: 211.649994 | G35: 73876400 | H35: 210.625125 | I35: 0.9951577178 | J35: 1 | K35: 210.46 | L35: 211.06 | M35: 210.18 | N35: 210.63 | O35: 73876400 | U35: 2010-09-17 | V35: 0.602 | W35: 112.489998 | X35: 201009 | Y35: 200909 | Z35: 2009-09-18 | AA35: 5 | AB35: 1 | AC35: 2.203 | AD35: 0.01958396337
A36: 21 | B36: 2015-06-10 | C36: 209.369995 | D36: 211.410004 | E36: 209.300003 | F36: 210.960007 | G36: 134551300 | H36: 209.938479 | I36: 0.9951577173 | J36: 1 | K36: 208.36 | L36: 210.39 | M36: 208.29 | N36: 209.94 | O36: 134551300 | U36: 2010-06-18 | V36: 0.531 | W36: 111.730003 | X36: 201006 | Y36: 200906 | Z36: 2009-06-19 | AA36: 5 | AB36: 1 | AC36: 2.109 | AD36: 0.01887586094
A37: 22 | B37: 2015-06-09 | C37: 208.449997 | D37: 209.100006 | E37: 207.690002 | F37: 208.449997 | G37: 105034700 | H37: 207.440623 | I37: 0.9951577164 | J37: 1 | K37: 207.44 | L37: 208.09 | M37: 206.68 | N37: 207.44 | O37: 105034700 | U37: 2010-03-19 | V37: 0.48 | W37: 115.970001 | X37: 201003 | Y37: 200903 | Z37: 2009-03-20 | AA37: 5 | AB37: 1 | AC37: 2.096 | AD37: 0.01807363958
A38: 23 | B38: 2015-06-08 | C38: 209.639999 | D38: 209.820007 | E38: 208.389999 | F38: 208.419998 | G38: 89063300 | H38: 207.41077 | I38: 0.9951577199 | J38: 1 | K38: 208.62 | L38: 208.8 | M38: 207.38 | N38: 207.41 | O38: 89063300 | U38: 2009-12-18 | V38: 0.59 | W38: 110.209999 | X38: 200912 | Y38: 200812 | Z38: 2008-12-19 | AA38: 5 | AB38: 1 | AC38: 2.177 | AD38: 0.01975319862
A39: 24 | B39: 2015-06-05 | C39: 209.949997 | D39: 210.580002 | E39: 208.979996 | F39: 209.770004 | G39: 121704700 | H39: 208.754239 | I39: 0.9951577205 | J39: 1 | K39: 208.93 | L39: 209.56 | M39: 207.97 | N39: 208.75 | O39: 121704700 | U39: 2009-09-18 | V39: 0.508 | W39: 106.720001 | X39: 200909 | Y39: 200809 | Z39: 2008-09-19 | AA39: 5 | AB39: 1 | AC39: 2.306 | AD39: 0.02160794582
A40: 25 | B40: 2015-06-04 | C40: 211.070007 | D40: 211.860001 | E40: 209.75 | F40: 210.130005 | G40: 151882800 | H40: 209.112496 | I40: 0.9951577168 | J40: 1 | K40: 210.05 | L40: 210.83 | M40: 208.73 | N40: 209.11 | O40: 151882800 | U40: 2009-06-19 | V40: 0.518 | W40: 92.040001 | X40: 200906 | Y40: 200806 | Z40: 2008-06-20 | AA40: 5 | AB40: 1 | AC40: 2.489 | AD40: 0.02704258988
A41: 26 | B41: 2015-06-03 | C41: 212 | D41: 212.669998 | E41: 211.330002 | F41: 211.919998 | G41: 87820900 | H41: 210.893822 | I41: 0.9951577198 | J41: 1 | K41: 210.97 | L41: 211.64 | M41: 210.31 | N41: 210.89 | O41: 87820900 | U41: 2009-03-20 | V41: 0.561 | W41: 76.709999 | X41: 200903 | Y41: 200803 | Z41: 2008-03-20 | AA41: 5 | AB41: 1 | AC41: 2.64 | AD41: 0.03441533091
A42: 27 | B42: 2015-06-02 | C42: 211.020004 | D42: 212.190002 | E42: 210.270004 | F42: 211.360001 | G42: 91531000 | H42: 210.336536 | I42: 0.9951577167 | J42: 1 | K42: 210 | L42: 211.16 | M42: 209.25 | N42: 210.34 | O42: 91531000 | U42: 2008-12-19 | V42: 0.719 | W42: 88.190002 | X42: 200812 | Y42: 200712 | Z42: 2007-12-21 | AA42: 5 | AB42: 1 | AC42: 2.721 | AD42: 0.0308538376
A43: 28 | B43: 2015-06-01 | C43: 211.940002 | D43: 212.339996 | E43: 210.619995 | F43: 211.570007 | G43: 93338800 | H43: 210.545526 | I43: 0.995157721 | J43: 1 | K43: 210.91 | L43: 211.31 | M43: 209.6 | N43: 210.55 | O43: 93338800 | U43: 2008-09-19 | V43: 0.691 | W43: 124.120003 | X43: 200809 | Y43: 200709 | Z43: 2007-09-21 | AA43: 5 | AB43: 1 | AC43: 2.777 | AD43: 0.02237350897
A44: 29 | B44: 2015-05-29 | C44: 212.380005 | D44: 212.429993 | E44: 210.820007 | F44: 211.139999 | G44: 124919600 | H44: 210.1176 | I44: 0.99515772 | J44: 1 | K44: 211.35 | L44: 211.4 | M44: 209.8 | N44: 210.12 | O44: 124919600 | U44: 2008-06-20 | V44: 0.669 | W44: 131.580002 | X44: 200806 | Y44: 200706 | Z44: 2007-06-15 | AA44: 5 | AB44: 1 | AC44: 2.805 | AD44: 0.02131782913
A45: 30 | B45: 2015-05-28 | C45: 212.330002 | D45: 212.589996 | E45: 211.630005 | F45: 212.460007 | G45: 74974600 | H45: 211.431216 | I45: 0.9951577193 | J45: 1 | K45: 211.3 | L45: 211.56 | M45: 210.61 | N45: 211.43 | O45: 74974600 | U45: 2008-03-20 | V45: 0.642 | W45: 132.080002 | X45: 200803 | Y45: 200703 | Z45: 2007-03-16 | AA45: 5 | AB45: 1 | AC45: 2.792 | AD45: 0.0211387035
A46: 31 | B46: 2015-05-27 | C46: 211.25 | D46: 212.979996 | E46: 210.759995 | F46: 212.699997 | G46: 93214000 | H46: 211.670044 | I46: 0.9951577197 | J46: 1 | K46: 210.23 | L46: 211.95 | M46: 209.74 | N46: 211.67 | O46: 93214000 | U46: 2007-12-21 | V46: 0.775 | W46: 148.130005 | X46: 200712 | Y46: 200612 | Z46: 2006-12-15 | AA46: 5 | AB46: 1 | AC46: 2.701 | AD46: 0.01823398305
A47: 32 | B47: 2015-05-26 | C47: 212.399994 | D47: 212.910004 | E47: 210.199997 | F47: 210.699997 | G47: 124308600 | H47: 209.679728 | I47: 0.9951577171 | J47: 1 | K47: 211.37 | L47: 211.88 | M47: 209.18 | N47: 209.68 | O47: 124308600 | U47: 2007-09-21 | V47: 0.719 | W47: 151.970001 | X47: 200709 | Y47: 200609 | Z47: 2006-09-15 | AA47: 5 | AB47: 1 | AC47: 2.719 | AD47: 0.01789168903
A48: 33 | B48: 2015-05-22 | C48: 213.039993 | D48: 213.539993 | E48: 212.910004 | F48: 212.990005 | G48: 57433500 | H48: 211.958648 | I48: 0.9951577211 | J48: 1 | K48: 212.01 | L48: 212.51 | M48: 211.88 | N48: 211.96 | O48: 57433500 | U48: 2007-06-15 | V48: 0.656 | W48: 153.070007 | X48: 200706 | Y48: 200606 | Z48: 2006-06-16 | AA48: 5 | AB48: 1 | AC48: 2.579 | AD48: 0.01684849992
A49: 34 | B49: 2015-05-21 | C49: 212.710007 | D49: 213.75 | E49: 212.509995 | F49: 213.5 | G49: 64764600 | H49: 212.466173 | I49: 0.995157719 | J49: 1 | K49: 211.68 | L49: 212.71 | M49: 211.48 | N49: 212.47 | O49: 64764600 | U49: 2007-03-16 | V49: 0.551 | W49: 138.529999 | X49: 200703 | Y49: 200603 | Z49: 2006-03-17 | AA49: 5 | AB49: 1 | AC49: 2.478 | AD49: 0.01788782226
A50: 35 | B50: 2015-05-20 | C50: 213.149994 | D50: 213.779999 | E50: 212.5 | F50: 212.880005 | G50: 76857500 | H50: 211.84918 | I50: 0.9951577181 | J50: 1 | K50: 212.12 | L50: 212.74 | M50: 211.47 | N50: 211.85 | O50: 76857500 | U50: 2006-12-15 | V50: 0.793 | W50: 142.339996 | X50: 200612 | Y50: 200512 | Z50: 2005-12-16 | AA50: 5 | AB50: 1 | AC50: 2.446 | AD50: 0.01718420731
A51: 36 | B51: 2015-05-19 | C51: 213.240005 | D51: 213.570007 | E51: 212.690002 | F51: 213.029999 | G51: 72114600 | H51: 211.998448 | I51: 0.9951577195 | J51: 1 | K51: 212.21 | L51: 212.54 | M51: 211.66 | N51: 212 | O51: 72114600 | U51: 2006-09-15 | V51: 0.579 | W51: 131.960007 | X51: 200609 | Y51: 200509 | Z51: 2005-09-16 | AA51: 5 | AB51: 1 | AC51: 2.325 | AD51: 0.01761897451
A52: 37 | B52: 2015-05-18 | C52: 212.240005 | D52: 213.399994 | E52: 212.160004 | F52: 213.100006 | G52: 74549700 | H52: 212.068116 | I52: 0.9951577195 | J52: 1 | K52: 211.21 | L52: 212.37 | M52: 211.13 | N52: 212.07 | O52: 74549700 | U52: 2006-06-16 | V52: 0.555 | W52: 124.650002 | X52: 200606 | Y52: 200506 | Z52: 2005-06-17 | AA52: 5 | AB52: 1 | AC52: 2.268 | AD52: 0.01819494556
A53: 38 | B53: 2015-05-15 | C53: 212.440002 | D53: 212.610001 | E53: 211.860001 | F53: 212.440002 | G53: 76510100 | H53: 211.411308 | I53: 0.9951577199 | J53: 1 | K53: 211.41 | L53: 211.58 | M53: 210.83 | N53: 211.41 | O53: 76510100 | U53: 2006-03-17 | V53: 0.519 | W53: 130.619995 | X53: 200603 | Y53: 200503 | Z53: 2005-03-18 | AA53: 5 | AB53: 1 | AC53: 2.201 | AD53: 0.0168504064
A54: 39 | B54: 2015-05-14 | C54: 211.240005 | D54: 212.320007 | E54: 210.910004 | F54: 212.210007 | G54: 95934000 | H54: 211.182426 | I54: 0.9951577166 | J54: 1 | K54: 210.22 | L54: 211.29 | M54: 209.89 | N54: 211.18 | O54: 95934000 | U54: 2005-12-16 | V54: 0.672 | W54: 126.360001 | X54: 200512 | Y54: 200412 | Z54: 2004-12-17 | AA54: 5 | AB54: 1 | AC54: 2.149 | AD54: 0.01700696409
A55: 40 | B55: 2015-05-13 | C55: 210.470001 | D55: 211.220001 | E55: 209.740005 | F55: 210.020004 | G55: 94667900 | H55: 209.003028 | I55: 0.9951577184 | J55: 1 | K55: 209.45 | L55: 210.2 | M55: 208.72 | N55: 209 | O55: 94667900 | U55: 2005-09-16 | V55: 0.522 | W55: 123.5 | X55: 200509 | Y55: 200409 | Z55: 2004-09-17 | AA55: 6 | AB55: 1 | AC55: 2.396 | AD55: 0.01940080972
A56: 41 | B56: 2015-05-12 | C56: 209.610001 | D56: 210.630005 | E56: 208.619995 | F56: 209.979996 | G56: 119727600 | H56: 208.963214 | I56: 0.9951577197 | J56: 1 | K56: 208.6 | L56: 209.61 | M56: 207.61 | N56: 208.96 | O56: 119727600 | U56: 2005-06-17 | V56: 0.488 | W56: 121.360001 | X56: 200506 | Y56: 200406 | Z56: 2004-06-18 | AA56: 6 | AB56: 1 | AC56: 2.343 | AD56: 0.01930619628
A57: 42 | B57: 2015-05-11 | C57: 211.570007 | D57: 211.889999 | E57: 210.520004 | F57: 210.610001 | G57: 75708100 | H57: 209.590168 | I57: 0.9951577181 | J57: 1 | K57: 210.55 | L57: 210.86 | M57: 209.5 | N57: 209.59 | O57: 75708100 | U57: 2005-03-18 | V57: 0.467 | W57: 118.540001 | X57: 200503 | Y57: 200403 | Z57: 2004-03-19 | AA57: 6 | AB57: 1 | AC57: 2.269 | AD57: 0.01914121799
A58: 43 | B58: 2015-05-08 | C58: 210.880005 | D58: 211.860001 | E58: 210.779999 | F58: 211.619995 | G58: 155877300 | H58: 210.595272 | I58: 0.9951577213 | J58: 1 | K58: 209.86 | L58: 210.83 | M58: 209.76 | N58: 210.6 | O58: 155877300 | U58: 2004-12-17 | V58: 0.568 | W58: 119.440002 | X58: 200412 | Y58: 200312 | Z58: 2003-12-19 | AA58: 6 | AB58: 1 | AC58: 2.197 | AD58: 0.0183941725
A59: 44 | B59: 2015-05-07 | C59: 207.919998 | D59: 209.380005 | E59: 207.520004 | F59: 208.869995 | G59: 88244900 | H59: 207.858588 | I59: 0.99515772 | J59: 1 | K59: 206.91 | L59: 208.37 | M59: 206.52 | N59: 207.86 | O59: 88244900 | U59: 2004-11-15 | V59: 0.351 | W59: 118.730003 | X59: 200411 | Y59: 200311 | Z59: 2003-12-19 | AA59: 5 | AB59: 0 | AC59: 2.145 | AD59: 0.01806620017
A60: 45 | B60: 2015-05-06 | C60: 209.559998 | D60: 209.929993 | E60: 206.759995 | F60: 208.039993 | G60: 135060200 | H60: 207.032605 | I60: 0.9951577195 | J60: 1 | K60: 208.55 | L60: 208.91 | M60: 205.76 | N60: 207.03 | O60: 135060200 | U60: 2004-09-17 | V60: 0.469 | W60: 113.150002 | X60: 200409 | Y60: 200309 | Z60: 2003-09-19 | AA60: 5 | AB60: 1 | AC60: 1.794 | AD60: 0.01585505938
A61: 46 | B61: 2015-05-05 | C61: 211.029999 | D61: 211.460007 | E61: 208.729996 | F61: 208.899994 | G61: 113326200 | H61: 207.888441 | I61: 0.9951577165 | J61: 1 | K61: 210.01 | L61: 210.44 | M61: 207.72 | N61: 207.89 | O61: 113326200 | U61: 2004-06-18 | V61: 0.414 | W61: 113.629997 | X61: 200406 | Y61: 200306 | Z61: 2003-06-20 | AA61: 5 | AB61: 1 | AC61: 1.725 | AD61: 0.01518085053
A62: 47 | B62: 2015-05-04 | C62: 211.229996 | D62: 212.020004 | E62: 211.100006 | F62: 211.320007 | G62: 70927200 | H62: 210.296736 | I62: 0.9951577183 | J62: 1 | K62: 210.21 | L62: 210.99 | M62: 210.08 | N62: 210.3 | O62: 70927200 | U62: 2004-03-19 | V62: 0.395 | W62: 111.059998 | X62: 200403 | Y62: 200303 | Z62: 2003-03-21 | AA62: 5 | AB62: 1 | AC62: 1.671 | AD62: 0.01504592139
A63: 48 | B63: 2015-05-01 | C63: 209.399994 | D63: 210.770004 | E63: 209.279999 | F63: 210.720001 | G63: 103399700 | H63: 209.699636 | I63: 0.9951577212 | J63: 1 | K63: 208.39 | L63: 209.75 | M63: 208.27 | N63: 209.7 | O63: 103399700 | U63: 2003-12-19 | V63: 0.516 | W63: 108.900002 | X63: 200312 | Y63: 200212 | Z63: 2002-12-20 | AA63: 5 | AB63: 1 | AC63: 1.63 | AD63: 0.01496786015
A64: 49 | B64: 2015-04-30 | C64: 209.880005 | D64: 210.350006 | E64: 207.619995 | F64: 208.460007 | G64: 161304900 | H64: 207.450585 | I64: 0.9951577187 | J64: 1 | K64: 208.86 | L64: 209.33 | M64: 206.61 | N64: 207.45 | O64: 161304900 | U64: 2003-09-19 | V64: 0.4 | W64: 103.669998 | X64: 200309 | Y64: 200209 | Z64: 2002-09-20 | AA64: 5 | AB64: 1 | AC64: 1.55 | AD64: 0.01495128803
A65: 50 | B65: 2015-04-29 | C65: 211.440002 | D65: 211.440002 | E65: 209.600006 | F65: 210.570007 | G65: 125684900 | H65: 209.550368 | I65: 0.9951577197 | J65: 1 | K65: 210.42 | L65: 210.42 | M65: 208.59 | N65: 209.55 | O65: 125684900 | U65: 2003-06-20 | V65: 0.36 | W65: 99.440002 | X65: 200306 | Y65: 200206 | Z65: 2002-06-21 | AA65: 5 | AB65: 1 | AC65: 1.528 | AD65: 0.01536604957
A66: 51 | B66: 2015-04-28 | C66: 210.740005 | D66: 211.5 | E66: 209.330002 | F66: 211.440002 | G66: 86863500 | H66: 210.41615 | I66: 0.9951577185 | J66: 1 | K66: 209.72 | L66: 210.48 | M66: 208.32 | N66: 210.42 | O66: 86863500 | U66: 2003-03-21 | V66: 0.354 | W66: 89.669998 | X66: 200303 | Y66: 200203 | Z66: 2002-03-15 | AA66: 5 | AB66: 1 | AC66: 1.521 | AD66: 0.01696219509
A67: 52 | B67: 2015-04-27 | C67: 212.330002 | D67: 212.479996 | E67: 210.539993 | F67: 210.770004 | G67: 79358100 | H67: 209.749397 | I67: 0.9951577218 | J67: 1 | K67: 211.3 | L67: 211.45 | M67: 209.52 | N67: 209.75 | O67: 79358100 | U67: 2002-12-20 | V67: 0.436 | W67: 89.989998 | X67: 200212 | Y67: 200112 | Z67: 2001-12-21 | AA67: 5 | AB67: 1 | AC67: 1.498 | AD67: 0.0166462944
A68: 53 | B68: 2015-04-24 | C68: 211.660004 | D68: 211.970001 | E68: 211.110001 | F68: 211.649994 | G68: 61327400 | H68: 210.625125 | I68: 0.9951577178 | J68: 1 | K68: 210.64 | L68: 210.94 | M68: 210.09 | N68: 210.63 | O68: 61327400 | U68: 2002-09-20 | V68: 0.378 | W68: 84.349998 | X68: 200209 | Y68: 200109 | Z68: 2001-09-21 | AA68: 5 | AB68: 1 | AC68: 1.455 | AD68: 0.01724955583
A69: 54 | B69: 2015-04-23 | C69: 210.149994 | D69: 211.940002 | E69: 210.009995 | F69: 211.160004 | G69: 102585900 | H69: 210.137508 | I69: 0.9951577194 | J69: 1 | K69: 209.13 | L69: 210.91 | M69: 208.99 | N69: 210.14 | O69: 102585900 | U69: 2002-06-21 | V69: 0.353 | W69: 99.279999 | X69: 200206 | Y69: 200106 | Z69: 2001-06-15 | AA69: 5 | AB69: 1 | AC69: 1.446 | AD69: 0.01456486719
A70: 55 | B70: 2015-04-22 | C70: 210.009995 | D70: 210.850006 | E70: 208.899994 | F70: 210.630005 | G70: 78264600 | H70: 209.610075 | I70: 0.9951577174 | J70: 1 | K70: 208.99 | L70: 209.83 | M70: 207.89 | N70: 209.61 | O70: 78264600 | U70: 2002-03-15 | V70: 0.331 | W70: 116.650002 | X70: 200203 | Y70: 200103 | Z70: 2001-03-16 | AA70: 5 | AB70: 1 | AC70: 1.439 | AD70: 0.0123360478
A71: 56 | B71: 2015-04-21 | C71: 209.850006 | D71: 210.860001 | E71: 209.240005 | F71: 209.600006 | G71: 72559800 | H71: 208.585064 | I71: 0.9951577196 | J71: 1 | K71: 208.83 | L71: 209.84 | M71: 208.23 | N71: 208.59 | O71: 72559800 | U71: 2001-12-21 | V71: 0.393 | W71: 114.949997 | X71: 200112 | Y71: 200012 | Z71: 2000-12-27 | AA71: 5 | AB71: 1 | AC71: 1.424 | AD71: 0.0123879951
A72: 57 | B72: 2015-04-20 | C72: 209.059998 | D72: 210.25 | E72: 208.960007 | F72: 209.850006 | G72: 92189500 | H72: 208.833853 | I72: 0.9951577176 | J72: 1 | K72: 208.05 | L72: 209.23 | M72: 207.95 | N72: 208.83 | O72: 92189500 | U72: 2001-09-21 | V72: 0.369 | W72: 97.279999 | X72: 200109 | Y72: 200009 | Z72: 2000-09-15 | AA72: 6 | AB72: 1 | AC72: 1.442 | AD72: 0.01482319094
A73: 58 | B73: 2015-04-17 | C73: 208.940002 | D73: 209.229996 | E73: 207.009995 | F73: 207.949997 | G73: 191113200 | H73: 206.943045 | I73: 0.9951577205 | J73: 1 | K73: 207.93 | L73: 208.22 | M73: 206.01 | N73: 206.94 | O73: 191113200 | U73: 2001-06-15 | V73: 0.346 | W73: 121.849998 | X73: 200106 | Y73: 200006 | Z73: 2000-06-16 | AA73: 7 | AB73: 1 | AC73: 1.448 | AD73: 0.01188346347
A74: 59 | B74: 2015-04-16 | C74: 210.029999 | D74: 210.979996 | E74: 209.789993 | F74: 210.369995 | G74: 68934900 | H74: 209.351324 | I74: 0.9951577172 | J74: 1 | K74: 209.01 | L74: 209.96 | M74: 208.77 | N74: 209.35 | O74: 68934900 | U74: 2001-03-16 | V74: 0.316 | W74: 115.010002 | X74: 200103 | Y74: 200003 | Z74: 2000-03-17 | AA74: 7 | AB74: 1 | AC74: 1.45 | AD74: 0.01260759912
A75: 60 | B75: 2015-04-15 | C75: 210.050003 | D75: 211.039993 | E75: 209.949997 | F75: 210.429993 | G75: 99529300 | H75: 209.411031 | I75: 0.995157715 | J75: 1 | K75: 209.03 | L75: 210.02 | M75: 208.93 | N75: 209.41 | O75: 99529300 | U75: 2000-12-27 | V75: 0 | W75: 133.3125 | X75: 200012 | Y75: 199912 | Z75: 1999-12-17 | AA75: 7 | AB75: 1 | AC75: 1.505 | AD75: 0.01128926395
A76: 61 | B76: 2015-04-14 | C76: 208.850006 | D76: 209.710007 | E76: 208.100006 | F76: 209.490005 | G76: 75099900 | H76: 208.475596 | I76: 0.9951577212 | J76: 1 | K76: 207.84 | L76: 208.69 | M76: 207.09 | N76: 208.48 | O76: 75099900 | U76: 2000-12-15 | V76: 0.411 | W76: 130.968704 | X76: 200012 | Y76: 199912 | Z76: 1999-12-17 | AA76: 6 | AB76: 1 | AC76: 1.505 | AD76: 0.0114912949
A77: 62 | B77: 2015-04-13 | C77: 209.869995 | D77: 210.630005 | E77: 209.029999 | F77: 209.089996 | G77: 74436600 | H77: 208.077524 | I77: 0.9951577215 | J77: 1 | K77: 208.85 | L77: 209.61 | M77: 208.02 | N77: 208.08 | O77: 74436600 | U77: 2000-09-15 | V77: 0.375 | W77: 146 | X77: 200009 | Y77: 199909 | Z77: 1999-09-17 | AA77: 6 | AB77: 1 | AC77: 1.442 | AD77: 0.009876712329
A78: 63 | B78: 2015-04-10 | C78: 209.199997 | D78: 210.089996 | E78: 208.960007 | F78: 210.039993 | G78: 72722900 | H78: 209.022921 | I78: 0.9951577222 | J78: 1 | K78: 208.19 | L78: 209.07 | M78: 207.95 | N78: 209.02 | O78: 72722900 | U78: 2000-09-14 | V78: 0 | W78: 149.640594 | X78: 200009 | Y78: 199909 | Z78: 1999-09-17 | AA78: 5 | AB78: 1 | AC78: 1.067 | AD78: 0.0071304181
A79: 64 | B79: 2015-04-09 | C79: 207.779999 | D79: 209.179993 | E79: 207.190002 | F79: 208.899994 | G79: 85548900 | H79: 207.888441 | I79: 0.9951577165 | J79: 1 | K79: 206.77 | L79: 208.17 | M79: 206.19 | N79: 207.89 | O79: 85548900 | U79: 2000-06-16 | V79: 0.348 | W79: 146.593704 | X79: 200006 | Y79: 199906 | Z79: 1999-06-18 | AA79: 5 | AB79: 1 | AC79: 1.439 | AD79: 0.009816246952
A80: 65 | B80: 2015-04-08 | C80: 207.550003 | D80: 208.509995 | E80: 207.080002 | F80: 207.979996 | G80: 89351900 | H80: 206.972898 | I80: 0.995157717 | J80: 1 | K80: =ROUND($I80*C80,2) -> 206.54 | L80: =ROUND($I80*D80,2) -> 207.5 | M80: =ROUND($I80*E80,2) -> 206.08 | N80: =ROUND($I80*F80,2) -> 206.97 | O80: 89351900 | U80: 2000-03-17 | V80: 0.371 | W80: 146.9375 | X80: 200003 | Y80: 199903 | Z80: 1999-03-19 | AA80: 5 | AB80: 1 | AC80: 1.496 | AD80: 0.01018119949
A81: 66 | B81: 2015-04-07 | C81: 207.860001 | D81: 208.759995 | E81: 207.240005 | F81: 207.279999 | G81: 81236300 | H81: 206.276291 | I81: 0.995157719 | J81: 1 | K81: 206.85 | L81: 207.75 | M81: 206.24 | N81: 206.28 | O81: 81236300 | U81: 1999-12-17 | V81: 0.348 | W81: =(INDEX(OFFSET($F$15,1,0,$B$10,1),MATCH(U81,OFFSET($B$15,1,0,$B$10,1),-1))) -> 142.6875 | X81: =YEAR(U81)&RIGHT("0"&MONTH(U81),2) -> 199912 | Y81: =YEAR(U81)-1&RIGHT("0"&MONTH(U81),2) -> 199812 | Z81: =OFFSET(U80,AA81,0,1,1) -> 1998-12-18 | AA81: =MATCH(Y81,OFFSET($X$15,A81,0,$V$14+1-A81,1),-1) -> 5 | AB81: =IF(OR(AND(YEAR(U81)=YEAR(Z81),MONTH(U81)=MONTH(Z81)),MONTH(U81)=MONTH(Z81)),1,0) -> 1 | AC81: =(V81+IF(AA81-AB81=0,0,IFERROR(SUM(OFFSET(V81,1,0,AA81-AB81-1,1)),0))) -> 1.445 | AD81: =AC81/(INDEX(OFFSET($F$15,1,0,$B$10,1),MATCH(U81,OFFSET($B$15,1,0,$B$10,1),-1))) -> 0.01012702584
A82: 67 | B82: 2015-04-06 | C82: 206.440002 | D82: 208.449997 | E82: 205.210007 | F82: 207.830002 | G82: 114368200 | H82: 206.82363 | I82: =H82/F82 -> 0.9951577155 | J82: =INDEX(OFFSET($T$15,0,0,$S$13+1,1),MATCH(B82,OFFSET($Q$15,0,0,$S$13+1,1),-1)) -> 1 | K82: 205.44 | L82: 207.44 | M82: 204.22 | N82: 206.82 | O82: =G82*J82 -> 114368200 | U82: 1999-09-17 | V82: 0.372 | W82: 133.75 | X82: 199909 | Y82: 199809 | Z82: 1998-09-18 | AA82: 5 | AB82: 1 | AC82: 1.489 | AD82: 0.01113271028
A83: 68 | B83: 2015-04-02 | C83: 205.619995 | D83: 206.979996 | E83: 205.399994 | F83: 206.440002 | G83: 86900900 | H83: 205.440362 | I83: 0.9951577214 | J83: 1 | K83: 204.62 | L83: 205.98 | M83: 204.41 | N83: 205.44 | O83: 86900900 | U83: 1999-06-18 | V83: 0.405 | W83: 134.3125 | X83: 199906 | Y83: 199806 | Z83: 1998-06-19 | AA83: 5 | AB83: 1 | AC83: 1.476 | AD83: 0.01098929735
A84: 69 | B84: 2015-04-01 | C84: 206.429993 | D84: 206.429993 | E84: 204.509995 | F84: 205.699997 | G84: 137303600 | H84: 204.70394 | I84: 0.9951577199 | J84: 1 | K84: 205.43 | L84: 205.43 | M84: 203.52 | N84: 204.7 | O84: 137303600 | U84: 1999-03-19 | V84: 0.32 | W84: 129.6875 | X84: 199903 | Y84: 199803 | Z84: 1998-03-20 | AA84: 5 | AB84: 1 | AC84: 1.423 | AD84: 0.01097253012
A85: 70 | B85: 2015-03-31 | C85: 207.259995 | D85: 208.100006 | E85: 206.360001 | F85: 206.429993 | G85: 126768700 | H85: 205.430401 | I85: 0.9951577192 | J85: 1 | K85: 206.26 | L85: 207.09 | M85: 205.36 | N85: 205.43 | O85: 126768700 | U85: 1998-12-18 | V85: 0.392 | W85: 118.5 | X85: 199812 | Y85: 199712 | Z85: 1997-12-19 | AA85: 5 | AB85: 1 | AC85: 1.416 | AD85: 0.01194936709
A86: 71 | B86: 2015-03-30 | C86: 206.979996 | D86: 208.610001 | E86: 206.960007 | F86: 208.25 | G86: 96180400 | H86: 207.241595 | I86: 0.9951577191 | J86: 1 | K86: 205.98 | L86: 207.6 | M86: 205.96 | N86: 207.24 | O86: 96180400 | U86: 1998-09-18 | V86: 0.359 | W86: 102.093697 | X86: 199809 | Y86: 199709 | Z86: 1997-09-19 | AA86: 5 | AB86: 1 | AC86: 1.404 | AD86: 0.01375207325
A87: 72 | B87: 2015-03-27 | C87: 205.130005 | D87: 205.949997 | E87: 204.899994 | F87: 205.740005 | G87: 118939000 | H87: 204.743755 | I87: 0.9951577235 | J87: 1 | K87: 204.14 | L87: 204.95 | M87: 203.91 | N87: 204.74 | O87: 118939000 | U87: 1998-06-19 | V87: 0.352 | W87: 110.0625 | X87: 199806 | Y87: 199706 | Z87: 1997-06-20 | AA87: 5 | AB87: 1 | AC87: 1.393 | AD87: 0.0126564452
A88: 73 | B88: 2015-03-26 | C88: 204.960007 | D88: 206.369995 | E88: 204.119995 | F88: 205.270004 | G88: 153067200 | H88: 204.276029 | I88: 0.9951577192 | J88: 1 | K88: 203.97 | L88: 205.37 | M88: 203.13 | N88: 204.28 | O88: 153067200 | U88: 1998-03-20 | V88: 0.313 | W88: 109.875 | X88: 199803 | Y88: 199703 | Z88: 1997-03-21 | AA88: 5 | AB88: 1 | AC88: 1.391 | AD88: 0.01265984073
A89: 74 | B89: 2015-03-25 | C89: 209.070007 | D89: 209.350006 | E89: 205.710007 | F89: 205.759995 | G89: 159521700 | H89: 204.763647 | I89: 0.9951577176 | J89: 1 | K89: 208.06 | L89: 208.34 | M89: 204.71 | N89: 204.76 | O89: 159521700 | U89: 1997-12-19 | V89: 0.38 | W89: 94.781197 | X89: 199712 | Y89: 199612 | Z89: 1996-12-20 | AA89: 5 | AB89: 1 | AC89: 1.377 | AD89: 0.01452819803
A90: 75 | B90: 2015-03-24 | C90: 209.850006 | D90: 210.399994 | E90: 208.740005 | F90: 208.820007 | G90: 77805300 | H90: 207.808842 | I90: 0.9951577197 | J90: 1 | K90: 208.83 | L90: 209.38 | M90: 207.73 | N90: 207.81 | O90: 77805300 | U90: 1997-09-19 | V90: 0.348 | W90: 95.031197 | X90: 199709 | Y90: 199609 | Z90: 1996-09-20 | AA90: 5 | AB90: 1 | AC90: 1.364 | AD90: 0.0143531813
A91: 76 | B91: 2015-03-23 | C91: 210.419998 | D91: 211.110001 | E91: 210 | F91: 210 | G91: 71784500 | H91: 208.983121 | I91: 0.995157719 | J91: 1 | K91: 209.4 | L91: 210.09 | M91: 208.98 | N91: 208.98 | O91: 71784500 | U91: 1997-06-20 | V91: 0.35 | W91: 89.578102 | X91: 199706 | Y91: 199606 | Z91: 1996-06-21 | AA91: 5 | AB91: 1 | AC91: 1.368 | AD91: 0.01527158948
A92: 77 | B92: 2015-03-20 | C92: 209.710007 | D92: 211.020004 | E92: 209.490005 | F92: 210.410004 | G92: 177715100 | H92: 209.391139 | I92: 0.995157716 | J92: 1 | K92: 208.69 | L92: 210 | M92: 208.48 | N92: 209.39 | O92: 177715100 | U92: 1997-03-21 | V92: 0.299 | W92: 78.4375 | X92: 199703 | Y92: 199603 | Z92: 1996-03-15 | AA92: 5 | AB92: 1 | AC92: 1.369 | AD92: 0.01745338645
A93: 78 | B93: 2015-03-19 | C93: 209.960007 | D93: 210.470001 | E93: 209.029999 | F93: 209.5 | G93: 117917300 | H93: 207.559056 | I93: 0.9907353508 | J93: 1 | K93: 208.01 | L93: 208.52 | M93: 207.09 | N93: 207.56 | O93: 117917300 | U93: 1996-12-20 | V93: 0.367 | W93: 74.843697 | X93: 199612 | Y93: 199512 | Z93: 1995-12-15 | AA93: 5 | AB93: 1 | AC93: 1.355 | AD93: 0.01810439695
A94: 79 | B94: 2015-03-18 | C94: 207.389999 | D94: 211.270004 | E94: 206.619995 | F94: 210.460007 | G94: 228808500 | H94: 208.510169 | I94: 0.9907353514 | J94: 1 | K94: 205.47 | L94: 209.31 | M94: 204.71 | N94: 208.51 | O94: 228808500 | U94: 1996-09-20 | V94: 0.352 | W94: 68.640602 | X94: 199609 | Y94: 199509 | Z94: 1995-09-15 | AA94: 5 | AB94: 1 | AC94: 1.37 | AD94: 0.01995903241
A95: 80 | B95: 2015-03-17 | C95: 207.690002 | D95: 208.419998 | E95: 206.979996 | F95: 207.960007 | G95: 94510400 | H95: 206.03333 | I95: 0.9907353485 | J95: 1 | K95: 205.77 | L95: 206.49 | M95: 205.06 | N95: 206.03 | O95: 94510400 | U95: 1996-06-21 | V95: 0.351 | W95: 66.8125 | X95: 199606 | Y95: 199506 | Z95: 1995-06-16 | AA95: 5 | AB95: 1 | AC95: 1.33 | AD95: 0.01990645463
A96: 81 | B96: 2015-03-16 | C96: 206.710007 | D96: 208.690002 | E96: 205.860001 | F96: 208.580002 | G96: 136099200 | H96: 206.647582 | I96: 0.9907353534 | J96: 1 | K96: 204.79 | L96: 206.76 | M96: 203.95 | N96: 206.65 | O96: 136099200 | U96: 1996-03-15 | V96: 0.285 | W96: 64.125 | X96: 199603 | Y96: 199503 | Z96: 1995-03-17 | AA96: 5 | AB96: 1 | AC96: 1.295 | AD96: 0.02019493177
A97: 82 | B97: 2015-03-13 | C97: 206.770004 | D97: 207.929993 | E97: 204.580002 | F97: 205.830002 | G97: 162410900 | H97: 203.923059 | I97: 0.9907353497 | J97: 1 | K97: 204.85 | L97: 206 | M97: 202.68 | N97: 203.92 | O97: 162410900 | U97: 1995-12-15 | V97: 0.382 | W97: 61.8125 | X97: 199512 | Y97: 199412 | Z97: 1994-12-16 | AA97: 5 | AB97: 1 | AC97: 1.278 | AD97: 0.02067542973
A98: 83 | B98: 2015-03-12 | C98: 205.259995 | D98: 207.179993 | E98: 205.199997 | F98: 207.100006 | G98: 93993500 | H98: 205.181297 | I98: 0.9907353503 | J98: 1 | K98: 203.36 | L98: 205.26 | M98: 203.3 | N98: 205.18 | O98: 93993500 | U98: 1995-09-15 | V98: 0.312 | W98: 58.4375 | X98: 199509 | Y98: 199409 | Z98: 1994-09-19 | AA98: 5 | AB98: 1 | AC98: 1.259 | AD98: 0.02154438503
A99: 84 | B99: 2015-03-11 | C99: 205.289993 | D99: 205.5 | E99: 204.399994 | F99: 204.5 | G99: 110145700 | H99: 202.605379 | I99: 0.9907353496 | J99: 1 | K99: 203.39 | L99: 203.6 | M99: 202.51 | N99: 202.61 | O99: 110145700 | U99: 1995-06-16 | V99: 0.316 | W99: 53.9687 | X99: 199506 | Y99: 199406 | Z99: 1994-06-17 | AA99: 6 | AB99: 1 | AC99: 1.235 | AD99: 0.0228836344
A100: 85 | B100: 2015-03-10 | C100: 206.710007 | D100: 206.809998 | E100: 204.929993 | F100: 204.979996 | G100: 157121300 | H100: 203.080928 | I100: 0.9907353496 | J100: 1 | K100: 204.79 | L100: 204.89 | M100: 203.03 | N100: 203.08 | O100: 157121300 | U100: 1995-03-17 | V100: 0.268 | W100: 49.5625 | X100: 199503 | Y100: 199403 | Z100: 1994-03-18 | AA100: 6 | AB100: 1 | AC100: 1.224 | AD100: 0.02469609079
A101: 86 | B101: 2015-03-09 | C101: 207.740005 | D101: 208.789993 | E101: 207.550003 | F101: 208.360001 | G101: 89818900 | H101: 206.429619 | I101: 0.9907353523 | J101: 1 | K101: 205.82 | L101: 206.86 | M101: 205.63 | N101: 206.43 | O101: 89818900 | U101: 1994-12-16 | V101: 0.363 | W101: 45.75 | X101: 199412 | Y101: 199312 | Z101: 1993-12-17 | AA101: 6 | AB101: 1 | AC101: 1.227 | AD101: 0.02681967213
A102: 87 | B102: 2015-03-06 | C102: 209.419998 | D102: 209.940002 | E102: 207.100006 | F102: 207.5 | G102: 188128000 | H102: 205.577586 | I102: 0.9907353542 | J102: 1 | K102: 207.48 | L102: 207.99 | M102: 205.18 | N102: 205.58 | O102: 188128000 | U102: 1994-09-19 | V102: 0 | W102: 47.0625 | X102: 199409 | Y102: 199309 | Z102: 1993-09-17 | AA102: 6 | AB102: 1 | AC102: 1.181 | AD102: 0.02509428951
A103: 88 | B103: 2015-03-05 | C103: 210.619995 | D103: 210.800003 | E103: 209.850006 | F103: 210.460007 | G103: 76873000 | H103: 208.510169 | I103: 0.9907353514 | J103: 1 | K103: 208.67 | L103: 208.85 | M103: 207.91 | N103: 208.51 | O103: 76873000 | U103: 1994-09-16 | V103: 0.288 | W103: 47.015598 | X103: 199409 | Y103: 199309 | Z103: 1993-09-17 | AA103: 5 | AB103: 1 | AC103: 1.181 | AD103: 0.02511932317
A104: 89 | B104: 2015-03-04 | C104: 210.399994 | D104: 210.490005 | E104: 209.059998 | F104: 210.229996 | G104: 114497200 | H104: 208.282289 | I104: 0.9907353516 | J104: 1 | K104: 208.45 | L104: 208.54 | M104: 207.12 | N104: 208.28 | O104: 114497200 | U104: 1994-06-17 | V104: 0.305 | W104: 45.875 | X104: 199406 | Y104: 199306 | Z104: 1993-06-18 | AA104: 5 | AB104: 1 | AC104: 1.179 | AD104: 0.02570027248
A105: 90 | B105: 2015-03-03 | C105: 211.470001 | D105: 212.050003 | E105: 210.080002 | F105: 211.119995 | G105: 110325800 | H105: 209.164043 | I105: 0.9907353541 | J105: 1 | K105: 209.51 | L105: 210.09 | M105: 208.13 | N105: 209.16 | O105: 110325800 | U105: 1994-03-18 | V105: 0.271 | W105: 46.9687 | X105: 199403 | Y105: 199303 | Z105: 1993-03-19 | AA105: 5 | AB105: 1 | AC105: 1.192 | AD105: 0.0253786032
A106: 91 | B106: 2015-03-02 | C106: 210.779999 | D106: 212.059998 | E106: 210.720001 | F106: 211.990005 | G106: 87491400 | H106: 210.025993 | I106: 0.9907353557 | J106: 1 | K106: 208.83 | L106: 210.1 | M106: 208.77 | N106: 210.03 | O106: 87491400 | U106: 1993-12-17 | V106: 0.317 | W106: 46.5625 | X106: 199312 | Y106: 199212 | Z106: 1993-03-19 | AA106: 4 | AB106: 0 | AC106: 1.134 | AD106: 0.02435436242
A107: 92 | B107: 2015-02-27 | C107: 211.259995 | D107: 211.580002 | E107: 210.600006 | F107: 210.660004 | G107: 108076000 | H107: 208.708313 | I107: 0.990735351 | J107: 1 | K107: 209.3 | L107: 209.62 | M107: 208.65 | N107: 208.71 | O107: 108076000 | U107: 1993-09-17 | V107: 0.286 | W107: 45.8125 | X107: 199309 | Y107: 199209 | Z107: 1993-03-19 | AA107: 3 | AB107: 0 | AC107: 0.817 | AD107: 0.01783356071
A108: 93 | B108: 2015-02-26 | C108: 211.520004 | D108: 211.710007 | E108: 210.649994 | F108: 211.380005 | G108: 72697900 | H108: 209.421644 | I108: 0.9907353536 | J108: 1 | K108: 209.56 | L108: 209.75 | M108: 208.7 | N108: 209.42 | O108: 72697900 | U108: 1993-06-18 | V108: 0.318 | W108: 44.5 | X108: 199306 | Y108: 199206 | Z108: 1993-03-19 | AA108: 2 | AB108: 0 | AC108: 0.531 | AD108: 0.01193258427
A109: 94 | B109: 2015-02-25 | C109: 211.660004 | D109: 212.240005 | E109: 211.220001 | F109: 211.630005 | G109: 73061700 | H109: 209.669327 | I109: 0.9907353496 | J109: 1 | K109: 209.7 | L109: 210.27 | M109: 209.26 | N109: 209.67 | O109: 73061700 | U109: 1993-03-19 | V109: 0.213 | W109: 45.0312 | X109: 199303 | Y109: 199203 | Z109: 1993-03-19 | AA109: 1 | AB109: 1 | AC109: 0.213 | AD109: 0.004730053829
A110: 95 | B110: 2015-02-24 | C110: 211.119995 | D110: 212.050003 | E110: 210.759995 | F110: 211.809998 | G110: 72472300 | H110: 209.847652 | I110: 0.9907353476 | J110: 1 | K110: 209.16 | L110: 210.09 | M110: 208.81 | N110: 209.85 | O110: 72472300
A111: 96 | B111: 2015-02-23 | C111: 210.940002 | D111: 211.210007 | E111: 210.479996 | F111: 211.210007 | G111: 74411100 | H111: 209.25322 | I111: 0.990735349 | J111: 1 | K111: 208.99 | L111: 209.25 | M111: 208.53 | N111: 209.25 | O111: 74411100
A112: 97 | B112: 2015-02-20 | C112: 209.479996 | D112: 211.330002 | E112: 208.729996 | F112: 211.240005 | G112: 140896400 | H112: 209.282941 | I112: 0.9907353534 | J112: 1 | K112: 207.54 | L112: 209.37 | M112: 206.8 | N112: 209.28 | O112: 140896400
A113: 98 | B113: 2015-02-19 | C113: 209.410004 | D113: 210.419998 | E113: 209.240005 | F113: 209.979996 | G113: 91462500 | H113: 208.034605 | I113: 0.9907353508 | J113: 1 | K113: 207.47 | L113: 208.47 | M113: 207.3 | N113: 208.03 | O113: 91462500
A114: 99 | B114: 2015-02-18 | C114: 209.660004 | D114: 210.220001 | E114: 209.339996 | F114: 210.130005 | G114: 80652900 | H114: 208.183224 | I114: 0.9907353498 | J114: 1 | K114: 207.72 | L114: 208.27 | M114: 207.4 | N114: 208.18 | O114: 80652900
A115: 100 | B115: 2015-02-17 | C115: 209.399994 | D115: 210.320007 | E115: 209.100006 | F115: 210.110001 | G115: 76968200 | H115: 208.163405 | I115: 0.9907353482 | J115: 1 | K115: 207.46 | L115: 208.37 | M115: 207.16 | N115: 208.16 | O115: 76968200
A116: 101 | B116: 2015-02-13 | C116: 209.070007 | D116: 209.839996 | E116: 208.759995 | F116: 209.779999 | G116: 93670400 | H116: 207.836461 | I116: 0.9907353513 | J116: 1 | K116: 207.13 | L116: 207.9 | M116: 206.83 | N116: 207.84 | O116: 93670400
A117: 102 | B117: 2015-02-12 | C117: 207.889999 | D117: 208.990005 | E117: 206.970001 | F117: 208.919998 | G117: 97545900 | H117: 206.984428 | I117: 0.9907353532 | J117: 1 | K117: 205.96 | L117: 207.05 | M117: 205.05 | N117: 206.98 | O117: 97545900
A118: 103 | B118: 2015-02-11 | C118: 206.610001 | D118: 207.449997 | E118: 205.830002 | F118: 206.929993 | G118: 91087800 | H118: 205.012859 | I118: 0.9907353498 | J118: 1 | K118: 204.7 | L118: 205.53 | M118: 203.92 | N118: 205.01 | O118: 91087800
A119: 104 | B119: 2015-02-10 | C119: 205.880005 | D119: 207.119995 | E119: 204.679993 | F119: 206.809998 | G119: 96164200 | H119: 204.893976 | I119: 0.9907353512 | J119: 1 | K119: 203.97 | L119: 205.2 | M119: 202.78 | N119: 204.89 | O119: 96164200
A120: 105 | B120: 2015-02-09 | C120: 204.770004 | D120: 205.639999 | E120: 204.139999 | F120: 204.630005 | G120: 87219000 | H120: 202.73418 | I120: 0.9907353518 | J120: 1 | K120: 202.87 | L120: 203.73 | M120: 202.25 | N120: 202.73 | O120: 87219000
A121: 106 | B121: 2015-02-06 | C121: 206.559998 | D121: 207.240005 | E121: 204.919998 | F121: 205.550003 | G121: 119694900 | H121: 203.645655 | I121: 0.9907353541 | J121: 1 | K121: 204.65 | L121: 205.32 | M121: 203.02 | N121: 203.65 | O121: 119694900
A122: 107 | B122: 2015-02-05 | C122: 204.860001 | D122: 206.300003 | E122: 204.770004 | F122: 206.119995 | G122: 97953200 | H122: 204.210366 | I122: 0.990735353 | J122: 1 | K122: 202.96 | L122: 204.39 | M122: 202.87 | N122: 204.21 | O122: 97953200
A123: 108 | B123: 2015-02-04 | C123: 203.919998 | D123: 205.380005 | E123: 203.509995 | F123: 204.059998 | G123: 134306700 | H123: 202.169454 | I123: 0.9907353523 | J123: 1 | K123: 202.03 | L123: 203.48 | M123: 201.62 | N123: 202.17 | O123: 134306700
A124: 109 | B124: 2015-02-03 | C124: 203 | D124: 204.850006 | E124: 202.550003 | F124: 204.839996 | G124: 124212900 | H124: 202.942226 | I124: 0.9907353542 | J124: 1 | K124: 201.12 | L124: 202.95 | M124: 200.67 | N124: 202.94 | O124: 124212900
A125: 110 | B125: 2015-02-02 | C125: 200.050003 | D125: 202.029999 | E125: 197.860001 | F125: 201.919998 | G125: 163107000 | H125: 200.04928 | I125: 0.9907353505 | J125: 1 | K125: 198.2 | L125: 200.16 | M125: 196.03 | N125: 200.05 | O125: 163107000
A126: 111 | B126: 2015-01-30 | C126: 200.570007 | D126: 202.169998 | E126: 199.130005 | F126: 199.449997 | G126: 197729700 | H126: 197.602163 | I126: 0.9907353521 | J126: 1 | K126: 198.71 | L126: 200.3 | M126: 197.29 | N126: 197.6 | O126: 197729700
A127: 112 | B127: 2015-01-29 | C127: 200.380005 | D127: 202.300003 | E127: 198.679993 | F127: 201.990005 | G127: 173585400 | H127: 200.118639 | I127: 0.9907353535 | J127: 1 | K127: 198.52 | L127: 200.43 | M127: 196.84 | N127: 200.12 | O127: 173585400
A128: 113 | B128: 2015-01-28 | C128: 204.169998 | D128: 204.289993 | E128: 199.910004 | F128: 200.139999 | G128: 168514300 | H128: 198.285773 | I128: 0.9907353552 | J128: 1 | K128: 202.28 | L128: 202.4 | M128: 198.06 | N128: 198.29 | O128: 168514300
A129: 114 | B129: 2015-01-27 | C129: 202.970001 | D129: 204.119995 | E129: 201.740005 | F129: 202.740005 | G129: 134044600 | H129: 200.861691 | I129: 0.9907353559 | J129: 1 | K129: 201.09 | L129: 202.23 | M129: 199.87 | N129: 200.86 | O129: 134044600
A130: 115 | B130: 2015-01-26 | C130: 204.710007 | D130: 205.559998 | E130: 203.850006 | F130: 205.449997 | G130: 92009700 | H130: 203.546575 | I130: 0.9907353515 | J130: 1 | K130: 202.81 | L130: 203.66 | M130: 201.96 | N130: 203.55 | O130: 92009700
A131: 116 | B131: 2015-01-23 | C131: 205.789993 | D131: 206.100006 | E131: 204.809998 | F131: 204.970001 | G131: 117516800 | H131: 203.071026 | I131: 0.9907353516 | J131: 1 | K131: 203.88 | L131: 204.19 | M131: 202.91 | N131: 203.07 | O131: 117516800
A132: 117 | B132: 2015-01-22 | C132: 203.990005 | D132: 206.259995 | E132: 202.330002 | F132: 206.100006 | G132: 174356000 | H132: 204.190562 | I132: 0.990735352 | J132: 1 | K132: 202.1 | L132: 204.35 | M132: 200.46 | N132: 204.19 | O132: 174356000
A133: 118 | B133: 2015-01-21 | C133: 201.5 | D133: 203.660004 | E133: 200.940002 | F133: 203.080002 | G133: 122942700 | H133: 201.198537 | I133: 0.9907353507 | J133: 1 | K133: 199.63 | L133: 201.77 | M133: 199.08 | N133: 201.2 | O133: 122942700
A134: 119 | B134: 2015-01-20 | C134: 202.399994 | D134: 202.720001 | E134: 200.169998 | F134: 202.059998 | G134: 130991100 | H134: 200.187983 | I134: 0.9907353508 | J134: 1 | K134: 200.52 | L134: 200.84 | M134: 198.32 | N134: 200.19 | O134: 130991100
A135: 120 | B135: 2015-01-16 | C135: 198.770004 | D135: 201.820007 | E135: 198.550003 | F135: 201.630005 | G135: 211879600 | H135: 199.761974 | I135: 0.9907353521 | J135: 1 | K135: 196.93 | L135: 199.95 | M135: 196.71 | N135: 199.76 | O135: 211879600
A136: 121 | B136: 2015-01-15 | C136: 201.630005 | D136: 202.009995 | E136: 198.880005 | F136: 199.020004 | G136: 176613900 | H136: 197.176154 | I136: 0.9907353534 | J136: 1 | K136: 199.76 | L136: 200.14 | M136: 197.04 | N136: 197.18 | O136: 176613900
A137: 122 | B137: 2015-01-14 | C137: 199.649994 | D137: 201.100006 | E137: 198.570007 | F137: 200.860001 | G137: 192991100 | H137: 198.999103 | I137: 0.990735348 | J137: 1 | K137: 197.8 | L137: 199.24 | M137: 196.73 | N137: 199 | O137: 192991100
A138: 123 | B138: 2015-01-13 | C138: 204.119995 | D138: 205.479996 | E138: 200.509995 | F138: 202.080002 | G138: 214553300 | H138: 200.207802 | I138: 0.9907353524 | J138: 1 | K138: 202.23 | L138: 203.58 | M138: 198.65 | N138: 200.21 | O138: 214553300
A139: 124 | B139: 2015-01-12 | C139: 204.410004 | D139: 204.600006 | E139: 201.919998 | F139: 202.649994 | G139: 144396100 | H139: 200.772513 | I139: 0.9907353513 | J139: 1 | K139: 202.52 | L139: 202.7 | M139: 200.05 | N139: 200.77 | O139: 144396100
A140: 125 | B140: 2015-01-09 | C140: 206.399994 | D140: 206.419998 | E140: 203.509995 | F140: 204.25 | G140: 158567300 | H140: 202.357696 | I140: 0.9907353537 | J140: 1 | K140: 204.49 | L140: 204.51 | M140: 201.62 | N140: 202.36 | O140: 158567300
A141: 126 | B141: 2015-01-08 | C141: 204.009995 | D141: 206.160004 | E141: 203.990005 | F141: 205.899994 | G141: 147217800 | H141: 203.992403 | I141: 0.9907353518 | J141: 1 | K141: 202.12 | L141: 204.25 | M141: 202.1 | N141: 203.99 | O141: 147217800
A142: 127 | B142: 2015-01-07 | C142: 201.419998 | D142: 202.720001 | E142: 200.880005 | F142: 202.309998 | G142: 125346700 | H142: 200.435667 | I142: 0.9907353516 | J142: 1 | K142: 199.55 | L142: 200.84 | M142: 199.02 | N142: 200.44 | O142: 125346700
A143: 128 | B143: 2015-01-06 | C143: 202.089996 | D143: 202.720001 | E143: 198.860001 | F143: 199.820007 | G143: 209151400 | H143: 197.968745 | I143: 0.9907353521 | J143: 1 | K143: 200.22 | L143: 200.84 | M143: 197.02 | N143: 197.97 | O143: 209151400
A144: 129 | B144: 2015-01-05 | C144: 204.169998 | D144: 204.369995 | E144: 201.350006 | F144: 201.720001 | G144: 169632600 | H144: 199.851136 | I144: 0.990735351 | J144: 1 | K144: =ROUND($I144*C144,2) -> 202.28 | L144: =ROUND($I144*D144,2) -> 202.48 | M144: =ROUND($I144*E144,2) -> 199.48 | N144: =ROUND($I144*F144,2) -> 199.85 | O144: 169632600
A145: 130 | B145: 2015-01-02 | C145: 206.380005 | D145: 206.880005 | E145: 204.179993 | F145: 205.429993 | G145: 121465900 | H145: 203.526756 | I145: 0.9907353499 | J145: 1 | K145: 204.47 | L145: 204.96 | M145: 202.29 | N145: 203.53 | O145: 121465900
A146: 131 | B146: 2014-12-31 | C146: 207.990005 | D146: 208.190002 | E146: 205.389999 | F146: 205.539993 | G146: 130333800 | H146: 203.635738 | I146: =H146/F146 -> 0.9907353553 | J146: =INDEX(OFFSET($T$15,0,0,$S$13+1,1),MATCH(B146,OFFSET($Q$15,0,0,$S$13+1,1),-1)) -> 1 | K146: 206.06 | L146: 206.26 | M146: 203.49 | N146: 203.64 | O146: =G146*J146 -> 130333800
A147: 132 | B147: 2014-12-30 | C147: 208.210007 | D147: 208.369995 | E147: 207.509995 | F147: 207.600006 | G147: 73540800 | H147: 205.676665 | I147: 0.9907353519 | J147: 1 | K147: 206.28 | L147: 206.44 | M147: 205.59 | N147: 205.68 | O147: 73540800
A148: 133 | B148: 2014-12-29 | C148: 208.220001 | D148: 208.970001 | E148: 208.139999 | F148: 208.720001 | G148: 79643900 | H148: 206.786284 | I148: 0.9907353536 | J148: 1 | K148: 206.29 | L148: 207.03 | M148: 206.21 | N148: 206.79 | O148: 79643900
A149: 134 | B149: 2014-12-26 | C149: 208.309998 | D149: 208.850006 | E149: 208.25 | F149: 208.440002 | G149: 57326700 | H149: 206.508879 | I149: 0.9907353532 | J149: 1 | K149: 206.38 | L149: 206.92 | M149: 206.32 | N149: 206.51 | O149: 57326700
A150: 135 | B150: 2014-12-24 | C150: 208.020004 | D150: 208.339996 | E150: 207.720001 | F150: 207.770004 | G150: 42963400 | H150: 205.845088 | I150: 0.9907353518 | J150: 1 | K150: 206.09 | L150: 206.41 | M150: 205.8 | N150: 205.85 | O150: 42963400
A151: 136 | B151: 2014-12-23 | C151: 208.169998 | D151: 208.229996 | E151: 207.399994 | F151: 207.75 | G151: 122167900 | H151: 205.825269 | I151: 0.9907353502 | J151: 1 | K151: 206.24 | L151: 206.3 | M151: 205.48 | N151: 205.83 | O151: 122167900
A152: 137 | B152: 2014-12-22 | C152: 206.75 | D152: 207.470001 | E152: 206.460007 | F152: 207.470001 | G152: 148318900 | H152: 205.547865 | I152: 0.9907353546 | J152: 1 | K152: 204.83 | L152: 205.55 | M152: 204.55 | N152: 205.55 | O152: 148318900
A153: 138 | B153: 2014-12-19 | C153: 206.429993 | D153: 207.330002 | E153: 205.610001 | F153: 206.520004 | G153: 245084600 | H153: 204.606669 | I153: 0.9907353527 | J153: 1 | K153: 204.52 | L153: 205.41 | M153: 203.71 | N153: 204.61 | O153: 245084600
A154: 139 | B154: 2014-12-18 | C154: 204.740005 | D154: 212.970001 | E154: 203.919998 | F154: 206.779999 | G154: 247780600 | H154: 203.739767 | I154: 0.9852972627 | J154: 1 | K154: 201.73 | L154: 209.84 | M154: 200.92 | N154: 203.74 | O154: 247780600
A155: 140 | B155: 2014-12-17 | C155: 198.440002 | D155: 202.339996 | E155: 198.289993 | F155: 201.789993 | G155: 253754500 | H155: 198.823128 | I155: 0.985297264 | J155: 1 | K155: 195.52 | L155: 199.37 | M155: 195.37 | N155: 198.82 | O155: 253754500
A156: 141 | B156: 2014-12-16 | C156: 199.509995 | D156: 202.399994 | E156: 197.860001 | F156: 197.910004 | G156: 259543800 | H156: 195.000185 | I156: 0.9852972617 | J156: 1 | K156: 196.58 | L156: 199.42 | M156: 194.95 | N156: 195 | O156: 259543800
A157: 142 | B157: 2014-12-15 | C157: 201.979996 | D157: 202.529999 | E157: 198.779999 | F157: 199.509995 | G157: 189965800 | H157: 196.576651 | I157: 0.9852972579 | J157: 1 | K157: 199.01 | L157: 199.55 | M157: 195.86 | N157: 196.58 | O157: 189965800
A158: 143 | B158: 2014-12-12 | C158: 202.639999 | D158: 203.820007 | E158: 200.850006 | F158: 200.889999 | G158: 202330200 | H158: 197.936366 | I158: 0.9852972621 | J158: 1 | K158: 199.66 | L158: 200.82 | M158: 197.9 | N158: 197.94 | O158: 202330200
A159: 144 | B159: 2014-12-11 | C159: 203.880005 | D159: 206.190002 | E159: 203.710007 | F159: 204.190002 | G159: 159012800 | H159: 201.18785 | I159: 0.9852972625 | J159: 1 | K159: 200.88 | L159: 203.16 | M159: 200.71 | N159: 201.19 | O159: 159012800
A160: 145 | B160: 2014-12-10 | C160: 205.910004 | D160: 205.979996 | E160: 202.929993 | F160: 203.160004 | G160: 154761600 | H160: 200.172995 | I160: 0.9852972586 | J160: 1 | K160: 202.88 | L160: 202.95 | M160: 199.95 | N160: 200.17 | O160: 154761600
A161: 146 | B161: 2014-12-09 | C161: 204.369995 | D161: 206.600006 | E161: 203.910004 | F161: 206.470001 | G161: 125180100 | H161: 203.434327 | I161: 0.9852972636 | J161: 1 | K161: 201.37 | L161: 203.56 | M161: 200.91 | N161: 203.43 | O161: 125180100
A162: 147 | B162: 2014-12-08 | C162: 207.520004 | D162: 208.119995 | E162: 205.929993 | F162: 206.610001 | G162: 108588200 | H162: 203.572268 | I162: 0.9852972606 | J162: 1 | K162: 204.47 | L162: 205.06 | M162: 202.9 | N162: 203.57 | O162: 108588200
A163: 148 | B163: 2014-12-05 | C163: 207.869995 | D163: 208.470001 | E163: 207.550003 | F163: 208 | G163: 91025500 | H163: 204.941831 | I163: 0.9852972644 | J163: 1 | K163: 204.81 | L163: 205.4 | M163: 204.5 | N163: 204.94 | O163: 91025500
A164: 149 | B164: 2014-12-04 | C164: 207.539993 | D164: 208.270004 | E164: 206.699997 | F164: 207.660004 | G164: 89928200 | H164: 204.606833 | I164: 0.9852972602 | J164: 1 | K164: 204.49 | L164: 205.21 | M164: 203.66 | N164: 204.61 | O164: 89928200
A165: 150 | B165: 2014-12-03 | C165: 207.300003 | D165: 208.149994 | E165: 207.100006 | F165: 207.889999 | G165: 69450000 | H165: 204.833447 | I165: 0.9852972629 | J165: 1 | K165: 204.25 | L165: 205.09 | M165: 204.06 | N165: 204.83 | O165: 69450000
A166: 151 | B166: 2014-12-02 | C166: 205.809998 | D166: 207.339996 | E166: 205.779999 | F166: 207.089996 | G166: 72105500 | H166: 204.045207 | I166: 0.9852972666 | J166: 1 | K166: 202.78 | L166: 204.29 | M166: 202.75 | N166: 204.05 | O166: 72105500
A167: 152 | B167: 2014-12-01 | C167: 206.399994 | D167: 206.539993 | E167: 205.380005 | F167: 205.759995 | G167: 103968400 | H167: 202.734759 | I167: 0.9852972586 | J167: 1 | K167: 203.37 | L167: 203.5 | M167: 202.36 | N167: 202.73 | O167: 103968400
A168: 153 | B168: 2014-11-28 | C168: 207.490005 | D168: 207.869995 | E168: 206.910004 | F168: 207.199997 | G168: 57890100 | H168: 204.15359 | I168: 0.9852972633 | J168: 1 | K168: 204.44 | L168: 204.81 | M168: 203.87 | N168: 204.15 | O168: 57890100
A169: 154 | B169: 2014-11-26 | C169: 207.289993 | D169: 207.759995 | E169: 207.029999 | F169: 207.639999 | G169: 61928400 | H169: 204.587123 | I169: 0.9852972644 | J169: 1 | K169: 204.24 | L169: 204.71 | M169: 203.99 | N169: 204.59 | O169: 61928400
A170: 155 | B170: 2014-11-25 | C170: 207.539993 | D170: 207.789993 | E170: 206.800003 | F170: 207.110001 | G170: 79108000 | H170: 204.064917 | I170: 0.9852972624 | J170: 1 | K170: 204.49 | L170: 204.73 | M170: 203.76 | N170: 204.06 | O170: 79108000
A171: 156 | B171: 2014-11-24 | C171: 207.169998 | D171: 207.389999 | E171: 206.910004 | F171: 207.259995 | G171: 65881000 | H171: 204.212705 | I171: 0.9852972591 | J171: 1 | K171: 204.12 | L171: 204.34 | M171: 203.87 | N171: 204.21 | O171: 65881000
A172: 157 | B172: 2014-11-21 | C172: 207.639999 | D172: 207.839996 | E172: 205.979996 | F172: 206.679993 | G172: 142327000 | H172: 203.641231 | I172: 0.985297261 | J172: 1 | K172: 204.59 | L172: 204.78 | M172: 202.95 | N172: 203.64 | O172: 142327000
A173: 158 | B173: 2014-11-20 | C173: 204.259995 | D173: 205.710007 | E173: 204.179993 | F173: 205.580002 | G173: 72840000 | H173: 202.557413 | I173: 0.9852972615 | J173: 1 | K173: 201.26 | L173: 202.69 | M173: 201.18 | N173: 202.56 | O173: 72840000
A174: 159 | B174: 2014-11-19 | C174: 205.309998 | D174: 205.550003 | E174: 204.300003 | F174: 205.220001 | G174: 82373000 | H174: 202.202705 | I174: 0.9852972615 | J174: 1 | K174: 202.29 | L174: 202.53 | M174: 201.3 | N174: 202.2 | O174: 82373000
A175: 160 | B175: 2014-11-18 | C175: 204.440002 | D175: 205.919998 | E175: 204.440002 | F175: 205.550003 | G175: 76068000 | H175: 202.527855 | I175: 0.9852972612 | J175: 1 | K175: 201.43 | L175: 202.89 | M175: 201.43 | N175: 202.53 | O175: 76068000
A176: 161 | B176: 2014-11-17 | C176: 203.850006 | D176: 204.580002 | E176: 203.649994 | F176: 204.369995 | G176: 80441000 | H176: 201.365197 | I176: 0.9852972644 | J176: 1 | K176: 200.85 | L176: 201.57 | M176: 200.66 | N176: 201.37 | O176: 80441000
A177: 162 | B177: 2014-11-14 | C177: 204.100006 | D177: 204.490005 | E177: 203.720001 | F177: 204.240005 | G177: 80418000 | H177: 201.237118 | I177: 0.9852972634 | J177: 1 | K177: 201.1 | L177: 201.48 | M177: 200.72 | N177: 201.24 | O177: 80418000
A178: 163 | B178: 2014-11-13 | C178: 204.160004 | D178: 204.830002 | E178: 203.210007 | F178: 204.190002 | G178: 85358000 | H178: 201.18785 | I178: 0.9852972625 | J178: 1 | K178: 201.16 | L178: 201.82 | M178: 200.22 | N178: 201.19 | O178: 85358000
A179: 164 | B179: 2014-11-12 | C179: 203.350006 | D179: 204.240005 | E179: 203.309998 | F179: 203.960007 | G179: 90120000 | H179: 200.961236 | I179: 0.9852972598 | J179: 1 | K179: 200.36 | L179: 201.24 | M179: 200.32 | N179: 200.96 | O179: 90120000
A180: 165 | B180: 2014-11-11 | C180: 204.059998 | D180: 204.309998 | E180: 203.649994 | F180: 204.179993 | G180: 54499000 | H180: 201.177988 | I180: 0.9852972617 | J180: 1 | K180: 201.06 | L180: 201.31 | M180: 200.66 | N180: 201.18 | O180: 54499000
A181: 166 | B181: 2014-11-10 | C181: 203.380005 | D181: 204.039993 | E181: 203.130005 | F181: 203.979996 | G181: 66319000 | H181: 200.980931 | I181: 0.9852972592 | J181: 1 | K181: 200.39 | L181: 201.04 | M181: 200.14 | N181: 200.98 | O181: 66319000
A182: 167 | B182: 2014-11-07 | C182: 203.169998 | D182: 203.600006 | E182: 202.610001 | F182: 203.339996 | G182: 89540000 | H182: 200.350342 | I182: 0.9852972654 | J182: 1 | K182: 200.18 | L182: 200.61 | M182: 199.63 | N182: 200.35 | O182: 89540000
A183: 168 | B183: 2014-11-06 | C183: 202.389999 | D183: 203.259995 | E183: 201.639999 | F183: 203.149994 | G183: 107089000 | H183: 200.163133 | I183: 0.9852972627 | J183: 1 | K183: 199.41 | L183: 200.27 | M183: 198.68 | N183: 200.16 | O183: 107089000
A184: 169 | B184: 2014-11-05 | C184: 202.539993 | D184: 202.589996 | E184: 201.449997 | F184: 202.339996 | G184: 91709000 | H184: 199.365045 | I184: 0.9852972667 | J184: 1 | K184: 199.56 | L184: 199.61 | M184: 198.49 | N184: 199.37 | O184: 91709000
A185: 170 | B185: 2014-11-04 | C185: 201.229996 | D185: 201.600006 | E185: 200.059998 | F185: 201.070007 | G185: 93343000 | H185: 198.113728 | I185: 0.9852972651 | J185: 1 | K185: 198.27 | L185: 198.64 | M185: 197.12 | N185: 198.11 | O185: 93343000
A186: 171 | B186: 2014-11-03 | C186: 201.919998 | D186: 202.449997 | E186: 201.309998 | F186: 201.770004 | G186: 93734000 | H186: 198.803433 | I186: 0.9852972645 | J186: 1 | K186: 198.95 | L186: 199.47 | M186: 198.35 | N186: 198.8 | O186: 93734000
A187: 172 | B187: 2014-10-31 | C187: 201.779999 | D187: 201.820007 | E187: 200.770004 | F187: 201.660004 | G187: 146903000 | H187: 198.69505 | I187: 0.985297263 | J187: 1 | K187: 198.81 | L187: 198.85 | M187: 197.82 | N187: 198.7 | O187: 146903000
A188: 173 | B188: 2014-10-30 | C188: 197.580002 | D188: 199.949997 | E188: 197.399994 | F188: 199.380005 | G188: 113330000 | H188: 196.448573 | I188: 0.9852972619 | J188: 1 | K188: 194.68 | L188: 197.01 | M188: 194.5 | N188: 196.45 | O188: 113330000
A189: 174 | B189: 2014-10-29 | C189: 198.550003 | D189: 199.119995 | E189: 196.800003 | F189: 198.110001 | G189: 142557000 | H189: 195.197241 | I189: 0.9852972592 | J189: 1 | K189: 195.63 | L189: 196.19 | M189: 193.91 | N189: 195.2 | O189: 142557000
A190: 175 | B190: 2014-10-28 | C190: 196.820007 | D190: 198.419998 | E190: 196.729996 | F190: 198.410004 | G190: 106255600 | H190: 195.492833 | I190: 0.9852972585 | J190: 1 | K190: 193.93 | L190: 195.5 | M190: 193.84 | N190: 195.49 | O190: 106255600
A191: 176 | B191: 2014-10-27 | C191: 195.729996 | D191: 196.449997 | E191: 195.029999 | F191: 196.160004 | G191: 82954000 | H191: 193.275915 | I191: 0.9852972627 | J191: 1 | K191: 192.85 | L191: 193.56 | M191: 192.16 | N191: 193.28 | O191: 82954000
A192: 177 | B192: 2014-10-24 | C192: 195.25 | D192: 196.490005 | E192: 194.490005 | F192: 196.429993 | G192: 117927000 | H192: 193.541934 | I192: 0.9852972606 | J192: 1 | K192: 192.38 | L192: 193.6 | M192: 191.63 | N192: 193.54 | O192: 117927000
A193: 178 | B193: 2014-10-23 | C193: 194.619995 | D193: 196.199997 | E193: 194.259995 | F193: 194.929993 | G193: 154944000 | H193: 192.063988 | I193: 0.98529726 | J193: 1 | K193: 191.76 | L193: 193.32 | M193: 191.4 | N193: 192.06 | O193: 154944000
A194: 179 | B194: 2014-10-22 | C194: 194.410004 | D194: 194.910004 | E194: 192.610001 | F194: 192.690002 | G194: 151822000 | H194: 189.856932 | I194: 0.9852972652 | J194: 1 | K194: 191.55 | L194: 192.04 | M194: 189.78 | N194: 189.86 | O194: 151822000
A195: 180 | B195: 2014-10-21 | C195: 191.679993 | D195: 194.199997 | E195: 191.479996 | F195: 194.070007 | G195: 154949000 | H195: 191.216647 | I195: 0.9852972644 | J195: 1 | K195: 188.86 | L195: 191.34 | M195: 188.66 | N195: 191.22 | O195: 154949000
A196: 181 | B196: 2014-10-20 | C196: 188.130005 | D196: 190.449997 | E196: 188.070007 | F196: 190.300003 | G196: 130011000 | H196: 187.502072 | I196: 0.9852972624 | J196: 1 | K196: 185.36 | L196: 187.65 | M196: 185.3 | N196: 187.5 | O196: 130011000
A197: 182 | B197: 2014-10-17 | C197: 188.419998 | D197: 189.75 | E197: 187.619995 | F197: 188.470001 | G197: 214625000 | H197: 185.698976 | I197: 0.9852972622 | J197: 1 | K197: 185.65 | L197: 186.96 | M197: 184.86 | N197: 185.7 | O197: 214625000
A198: 183 | B198: 2014-10-16 | C198: 183.059998 | D198: 187.580002 | E198: 182.889999 | F198: 186.270004 | G198: 270391000 | H198: 183.531325 | I198: 0.9852972624 | J198: 1 | K198: 180.37 | L198: 184.82 | M198: 180.2 | N198: 183.53 | O198: 270391000
A199: 184 | B199: 2014-10-15 | C199: 185.160004 | D199: 187.690002 | E199: 181.919998 | F199: 186.429993 | G199: 380715000 | H199: 183.688961 | I199: 0.9852972585 | J199: 1 | K199: 182.44 | L199: 184.93 | M199: 179.25 | N199: 183.69 | O199: 380715000
A200: 185 | B200: 2014-10-14 | C200: 188.419998 | D200: 189.820007 | E200: 187.039993 | F200: 187.699997 | G200: 215847000 | H200: 184.940293 | I200: 0.9852972614 | J200: 1 | K200: 185.65 | L200: 187.03 | M200: 184.29 | N200: 184.94 | O200: 215847000
... 5467 more rows

Sheet CalculationsAndCharts
A1: Decyclers
A2: =InputPriceData!A1 -> SPDR S&P 500 (SPY) -PCX (Daily)
A4: User Charting Controls
A5: Data Control
A6: =InputPriceData!$B$10 -> 5652 | B6: Available Input Data Rows | E6: Earliest: | F6: =OFFSET(InputPriceData!B15,CalculationsAndCharts!A6,0,1,1) -> 1993-01-29
B7: Use Close Adjusted: | C7: FALSE | E7: Latest: | F7: =OFFSET(InputPriceData!B15,1,0,1,1) -> 2015-07-09
A8: =MIN(A6-A11,COUNTA(B33:B9983)) -> 841 | B8: Logically Available for Calc / Plot | E8: $ Change: | F8: =InputPriceData!I4 -> 2.3
A10: Price Chart Windowing Controls | F10: Y-axis Range
A11: 149 | B11: Input Data Offset (Pan) | E11: Max High+ | F11: =CEILING(MAX(OFFSET($E$33,0,0,$A$12,1))+2*F14,0.1) -> 211.8
A12: 241 | B12: Data Points to Plot (Zoom) | E12: Min Low- | F12: =FLOOR(MIN(OFFSET($F$33,0,0,$A$12,1))-2*F14,0.1) -> 170.1
B13: First: | C13: =OFFSET(B32,A12,0,1,1) -> 2013-12-19 | E13: White space %: | F13: 0.05
B14: ="Last: "&OFFSET(InputPriceData!P15,1+A11,0,1,1) -> Last: | C14: =B33 -> 2014-12-03 | E14: Allowance: | F14: =FLOOR((CEILING(MAX(OFFSET($E$33,0,0,$A$12,1)),1)-FLOOR(MIN(OFFSET($F$33,0,0,$A$12,1)),1))*F13,0.01) -> 1.8
A15: Decycler Controls | C15: Half HP Period | E15: Hysteresis Band Spread | F15: 0.005
A16: 125 | B16: HPPeriod 1 | C16: =A16/2 -> 62.5 | E16: Oscillator Scale Factor 1 | F16: 1
A17: 100 | B17: HPPeriod 2 | C17: =A17/2 -> 50 | E17: Oscillator Scale Factor 2 | F17: 1.2
A18: ="HPPeriod("&TEXT(A16,"0") & ") Based Computational Factors" -> HPPeriod(125) Based Computational Factors | S18: ="HPPeriod("&TEXT(A17,"0") & ") Based Computational Factors" -> HPPeriod(100) Based Computational Factors
B19: Alpha1 | C19: =(COS(RADIANS(0.707*360/$A$16)) + SIN(RADIANS(0.707*360/$A$16))-1)/COS(RADIANS(0.707*360/$A$16)) -> 0.03492086779 | E19: Alpha2 | F19: =(COS(RADIANS(0.707*360/$C$16)) + SIN(RADIANS(0.707*360/$C$16))-1)/COS(RADIANS(0.707*360/$C$16)) -> 0.0686641354 | T19: Alpha1 | U19: =(COS(RADIANS(0.707*360/$A$17)) + SIN(RADIANS(0.707*360/$A$17))-1)/COS(RADIANS(0.707*360/$A$17)) -> 0.04346388868 | W19: Alpha2 | X19: =(COS(RADIANS(0.707*360/$C$17)) + SIN(RADIANS(0.707*360/$C$17))-1)/COS(RADIANS(0.707*360/$C$17)) -> 0.08511906736
B20: (1-Alpha1/2)^2 | C20: =(1-C19/2)^2 -> 0.965383999 | E20: (1-Alpha2/2)^2 | F20: =(1-F19/2)^2 -> 0.9325145555 | T20: (1-Alpha1/2)^2 | U20: =(1-U19/2)^2 -> 0.9570083887 | W20: (1-Alpha2/2)^2 | X20: =(1-X19/2)^2 -> 0.9166922465
B21: 1-Alpha1 | C21: =1-C19 -> 0.9650791322 | E21: 1-Alpha2 | F21: =1-F19 -> 0.9313358646 | T21: 1-Alpha1 | U21: =1-U19 -> 0.9565361113 | W21: 1-Alpha2 | X21: =1-X19 -> 0.9148809326 | AB21: Volume Cursor Calculations
B22: (1-Alpha1)^2 | C22: =C21^2 -> 0.9313777314 | E22: (1-Alpha2)^2 | F22: =F21^2 -> 0.8673864927 | T22: (1-Alpha1)^2 | U22: =U21^2 -> 0.9149613323 | W22: (1-Alpha2)^2 | X22: =X21^2 -> 0.8370071209
A23: Help! I would like to plot data | AC23: =MAX(OFFSET($C$32,1,0,$A$12,1)) -> 380715000
A24: From | B24: 2013-12-19 | C24: =OFFSET(InputPriceData!$A$15,MATCH(B24,OFFSET(InputPriceData!B15,1,0,InputPriceData!$B$10,1),0),0,1,1)-C25 -> 241 | E24: 209 | AC24: =LOG10(AC23) -> 8.580599988
A25: To | B25: 2014-12-03 | C25: =OFFSET(InputPriceData!$A$15,MATCH(B25,OFFSET(InputPriceData!$B$15,1,0,InputPriceData!$B$10,1),0),0,1,1)-1 -> 149 | E25: =$A$12-$E$24+1 -> 33 | AC25: =INT(AC24) -> 8
AC26: =10^AC25 -> 100000000
AC27: =CEILING(AC23,AC26)*AC28 -> 380952000
H28: @ Cursor => | I28: =OFFSET(A32,$E$25,0,1,1)&"(RR)" -> 33(RR) | J28: =OFFSET($B$32,E25,0,1,1) -> 2014-10-17 | K28: =TEXT(OFFSET(D32,$E$25,0,1,1),"#,##0.00")&"(o)" -> 188.42(o) | L28: =TEXT(OFFSET(E32,$E$25,0,1,1),"#,##0.00")&"(h)" -> 189.75(h) | M28: =TEXT(OFFSET(F32,$E$25,0,1,1),"#,##0.00")&"(l)" -> 187.62(l) | N28: =TEXT(OFFSET(G32,$E$25,0,1,1),"#,##0.00")&"(c)" -> 188.47(c) | AC28: 0.95238
E29: Cursor => | X29: Decycler Oscillator Cursor
D30: Price Source Column Index
A31: Rel Row | D31: 0 | E31: 1 | F31: 2 | G31: 3 | L31: ="HP of Decycle("&TEXT(A16,"0")&")" -> HP of Decycle(125) | M31: ="Decycle(" & TEXT($A$16,"0")& ") Oscillator" -> Decycle(125) Oscillator | Q31: ="HP of Decycle("&TEXT(A17,"0")&")" -> HP of Decycle(100) | R31: ="Decycle(" & TEXT($A$17,"0")& ") Oscillator" -> Decycle(100) Oscillator | U31: Oscillator Delta | X31: =MAX(OFFSET(M33,0,0,$A$12,1),OFFSET(R33,0,0,$A$12,1)) -> 1.755658377 | Y31: =MIN(OFFSET(M33,0,0,$A$12,1),OFFSET(R33,0,0,$A$12,1)) -> -1.942476534
B32: Date | C32: Volume | D32: Open | E32: High | F32: Low | G32: Close | H32: HP 1 | I32: ="Decycle(" & TEXT(A16,"0")&")" -> Decycle(125) | J32: Hyster+ | K32: Hyster- | O32: HP 2 | P32: ="Decycle(" & TEXT($A$17,"0")& ")" -> Decycle(100) | X32: UpCurs | Y32: DnCurs | Z32: Price Chart Cursor | AB32: Volume Chart Cursor
A33: 1 | B33: =OFFSET(InputPriceData!B$15,CalculationsAndCharts!$A33+$A$11,0,1,1) -> 2014-12-03 | C33: =OFFSET(InputPriceData!G$15,CalculationsAndCharts!$A33+$A$11,IF($C$7,8,0),1,1) -> 69450000 | D33: =OFFSET(InputPriceData!C$15,CalculationsAndCharts!$A33+$A$11,IF($C$7,8,0),1,1) -> 207.300003 | E33: =OFFSET(InputPriceData!D$15,CalculationsAndCharts!$A33+$A$11,IF($C$7,8,0),1,1) -> 208.149994 | F33: =OFFSET(InputPriceData!E$15,CalculationsAndCharts!$A33+$A$11,IF($C$7,8,0),1,1) -> 207.100006 | G33: =OFFSET(InputPriceData!F$15,CalculationsAndCharts!$A33+$A$11,IF($C$7,8,0),1,1) -> 207.889999 | H33: =$C$20*($G33-2*$G34+$G35)+2*$C$21*H34-$C$22*H35 -> 3.408518079 | I33: =$G33-H33 -> 204.4814809 | J33: =I33*(1+$F$15) -> 205.5038883 | K33: =I33*(1-$F$15) -> 203.4590735 | L33: =$F$20*(I33-2*I34+I35)+2*$F$21*L34-$F$22*L35 -> 2.16263399 | M33: =100*$F$16*L33/$G33 -> 1.040278032 | O33: =$U$20*($G33-2*$G34+$G35)+2*$U$21*O34-$U$22*O35 -> 2.541828657 | P33: =$G33-O33 -> 205.3481703 | Q33: =$X$20*(P33-2*P34+P35)+2*$X$21*Q34-$X$22*Q35 -> 1.437000246 | R33: =100*$F$17*Q33/$G33 -> 0.8294772734 | U33: =R33-M33 -> -0.2108007583 | X33: =IF($A33=$E$25,X$31,NA()) ->  | Y33: =IF($A33=$E$25,Y$31,NA()) ->  | Z33: =$E$25 -> 33 | AA33: =$F$11 -> 211.8 | AB33: =$E$25 -> 33 | AC33: 0
A34: 2 | B34: =OFFSET(InputPriceData!B$15,CalculationsAndCharts!$A34+$A$11,0,1,1) -> 2014-12-02 | C34: =OFFSET(InputPriceData!G$15,CalculationsAndCharts!$A34+$A$11,IF($C$7,8,0),1,1) -> 72105500 | D34: =OFFSET(InputPriceData!C$15,CalculationsAndCharts!$A34+$A$11,IF($C$7,8,0),1,1) -> 205.809998 | E34: =OFFSET(InputPriceData!D$15,CalculationsAndCharts!$A34+$A$11,IF($C$7,8,0),1,1) -> 207.339996 | F34: =OFFSET(InputPriceData!E$15,CalculationsAndCharts!$A34+$A$11,IF($C$7,8,0),1,1) -> 205.779999 | G34: =OFFSET(InputPriceData!F$15,CalculationsAndCharts!$A34+$A$11,IF($C$7,8,0),1,1) -> 207.089996 | H34: =$C$20*(G34-2*G35+G36)+2*$C$21*H35-$C$22*H36 -> 2.963804315 | I34: =G34-H34 -> 204.1261917 | J34: =I34*(1+$F$15) -> 205.1468226 | K34: =I34*(1-$F$15) -> 203.1055607 | L34: =$F$20*(I34-2*I35+I36)+2*$F$21*L35-$F$22*L36 -> 2.260626881 | M34: =100*$F$16*L34/G34 -> 1.091615686 | O34: =$U$20*($G34-2*$G35+$G36)+2*$U$21*O35-$U$22*O36 -> 2.111745155 | P34: =$G34-O34 -> 204.9782508 | Q34: =$X$20*(P34-2*P35+P36)+2*$X$21*Q35-$X$22*Q36 -> 1.575469648 | R34: =100*$F$17*Q34/$G34 -> 0.9129188343 | U34: =R34-M34 -> -0.1786968522 | X34: =IF($A34=$E$25,X$31,NA()) ->  | Z34: =$E$25 -> 33 | AA34: =$F$12 -> 170.1 | AB34: =$E$25 -> 33 | AC34: =AC27 -> 380952000
A35: 3 | B35: =OFFSET(InputPriceData!B$15,CalculationsAndCharts!$A35+$A$11,0,1,1) -> 2014-12-01 | C35: =OFFSET(InputPriceData!G$15,CalculationsAndCharts!$A35+$A$11,IF($C$7,8,0),1,1) -> 103968400 | D35: =OFFSET(InputPriceData!C$15,CalculationsAndCharts!$A35+$A$11,IF($C$7,8,0),1,1) -> 206.399994 | E35: =OFFSET(InputPriceData!D$15,CalculationsAndCharts!$A35+$A$11,IF($C$7,8,0),1,1) -> 206.539993 | F35: =OFFSET(InputPriceData!E$15,CalculationsAndCharts!$A35+$A$11,IF($C$7,8,0),1,1) -> 205.380005 | G35: =OFFSET(InputPriceData!F$15,CalculationsAndCharts!$A35+$A$11,IF($C$7,8,0),1,1) -> 205.759995 | H35: 1.933095096 | I35: 203.8268999 | J35: 204.8460344 | K35: 202.8077654 | L35: 2.421515959 | M35: 1.176864316 | O35: 1.082974519 | P35: 204.6770205 | Q35: 1.80249462 | R35: 1.051221616 | U35: -0.1256427008
A36: 4 | B36: =OFFSET(InputPriceData!B$15,CalculationsAndCharts!$A36+$A$11,0,1,1) -> 2014-11-28 | C36: =OFFSET(InputPriceData!G$15,CalculationsAndCharts!$A36+$A$11,IF($C$7,8,0),1,1) -> 57890100 | D36: =OFFSET(InputPriceData!C$15,CalculationsAndCharts!$A36+$A$11,IF($C$7,8,0),1,1) -> 207.490005 | E36: =OFFSET(InputPriceData!D$15,CalculationsAndCharts!$A36+$A$11,IF($C$7,8,0),1,1) -> 207.869995 | F36: =OFFSET(InputPriceData!E$15,CalculationsAndCharts!$A36+$A$11,IF($C$7,8,0),1,1) -> 206.910004 | G36: =OFFSET(InputPriceData!F$15,CalculationsAndCharts!$A36+$A$11,IF($C$7,8,0),1,1) -> 207.199997 | H36: 3.695054775 | I36: 203.5049422 | J36: 204.5224669 | K36: 202.4874175 | L36: 2.569472981 | M36: 1.240093155 | O36: 2.853650018 | P36: 204.346347 | Q36: 2.025879988 | R36: 1.173289585 | U36: -0.06680357028
A37: 5 | B37: =OFFSET(InputPriceData!B$15,CalculationsAndCharts!$A37+$A$11,0,1,1) -> 2014-11-26 | C37: =OFFSET(InputPriceData!G$15,CalculationsAndCharts!$A37+$A$11,IF($C$7,8,0),1,1) -> 61928400 | D37: =OFFSET(InputPriceData!C$15,CalculationsAndCharts!$A37+$A$11,IF($C$7,8,0),1,1) -> 207.289993 | E37: =OFFSET(InputPriceData!D$15,CalculationsAndCharts!$A37+$A$11,IF($C$7,8,0),1,1) -> 207.759995 | F37: =OFFSET(InputPriceData!E$15,CalculationsAndCharts!$A37+$A$11,IF($C$7,8,0),1,1) -> 207.029999 | G37: =OFFSET(InputPriceData!F$15,CalculationsAndCharts!$A37+$A$11,IF($C$7,8,0),1,1) -> 207.639999 | H37: 4.545482755 | I37: 203.0945162 | J37: 204.1099888 | K37: 202.0790437 | L37: 2.630973347 | M37: 1.267084068 | O37: 3.737049376 | P37: 203.9029496 | Q37: 2.151774093 | R37: 1.243560453 | U37: -0.02352361536
A38: 6 | B38: =OFFSET(InputPriceData!B$15,CalculationsAndCharts!$A38+$A$11,0,1,1) -> 2014-11-25 | C38: =OFFSET(InputPriceData!G$15,CalculationsAndCharts!$A38+$A$11,IF($C$7,8,0),1,1) -> 79108000 | D38: =OFFSET(InputPriceData!C$15,CalculationsAndCharts!$A38+$A$11,IF($C$7,8,0),1,1) -> 207.539993 | E38: =OFFSET(InputPriceData!D$15,CalculationsAndCharts!$A38+$A$11,IF($C$7,8,0),1,1) -> 207.789993 | F38: =OFFSET(InputPriceData!E$15,CalculationsAndCharts!$A38+$A$11,IF($C$7,8,0),1,1) -> 206.800003 | G38: =OFFSET(InputPriceData!F$15,CalculationsAndCharts!$A38+$A$11,IF($C$7,8,0),1,1) -> 207.110001 | H38: 4.447200863 | I38: 202.6628001 | J38: 203.6761141 | K38: 201.6494861 | L38: 2.6646868 | M38: 1.2866046 | O38: 3.680261756 | P38: 203.4297392 | Q38: 2.250906565 | R38: 1.304180322 | U38: 0.01757572194
A39: 7 | B39: =OFFSET(InputPriceData!B$15,CalculationsAndCharts!$A39+$A$11,0,1,1) -> 2014-11-24 | C39: =OFFSET(InputPriceData!G$15,CalculationsAndCharts!$A39+$A$11,IF($C$7,8,0),1,1) -> 65881000 | D39: =OFFSET(InputPriceData!C$15,CalculationsAndCharts!$A39+$A$11,IF($C$7,8,0),1,1) -> 207.169998 | E39: =OFFSET(InputPriceData!D$15,CalculationsAndCharts!$A39+$A$11,IF($C$7,8,0),1,1) -> 207.389999 | F39: =OFFSET(InputPriceData!E$15,CalculationsAndCharts!$A39+$A$11,IF($C$7,8,0),1,1) -> 206.910004 | G39: =OFFSET(InputPriceData!F$15,CalculationsAndCharts!$A39+$A$11,IF($C$7,8,0),1,1) -> 207.259995 | H39: 5.040674672 | I39: 202.2193203 | J39: 203.2304169 | K39: 201.2082237 | L39: 2.67642351 | M39: 1.29133628 | O39: 4.321838609 | P39: 202.9381564 | Q39: 2.329737646 | R39: 1.348878338 | U39: 0.05754205767
A40: 8 | B40: =OFFSET(InputPriceData!B$15,CalculationsAndCharts!$A40+$A$11,0,1,1) -> 2014-11-21 | C40: =OFFSET(InputPriceData!G$15,CalculationsAndCharts!$A40+$A$11,IF($C$7,8,0),1,1) -> 142327000 | D40: =OFFSET(InputPriceData!C$15,CalculationsAndCharts!$A40+$A$11,IF($C$7,8,0),1,1) -> 207.639999 | E40: =OFFSET(InputPriceData!D$15,CalculationsAndCharts!$A40+$A$11,IF($C$7,8,0),1,1) -> 207.839996 | F40: =OFFSET(InputPriceData!E$15,CalculationsAndCharts!$A40+$A$11,IF($C$7,8,0),1,1) -> 205.979996 | G40: =OFFSET(InputPriceData!F$15,CalculationsAndCharts!$A40+$A$11,IF($C$7,8,0),1,1) -> 206.679993 | H40: 4.914625293 | I40: 201.7653677 | J40: 202.7741945 | K40: 200.7565409 | L40: 2.664147502 | M40: 1.289020511 | O40: 4.250578908 | P40: 202.4294141 | Q40: 2.38496012 | R40: 1.384726263 | U40: 0.09570575257
A41: 9 | B41: =OFFSET(InputPriceData!B$15,CalculationsAndCharts!$A41+$A$11,0,1,1) -> 2014-11-20 | C41: =OFFSET(InputPriceData!G$15,CalculationsAndCharts!$A41+$A$11,IF($C$7,8,0),1,1) -> 72840000 | D41: =OFFSET(InputPriceData!C$15,CalculationsAndCharts!$A41+$A$11,IF($C$7,8,0),1,1) -> 204.259995 | E41: =OFFSET(InputPriceData!D$15,CalculationsAndCharts!$A41+$A$11,IF($C$7,8,0),1,1) -> 205.710007 | F41: =OFFSET(InputPriceData!E$15,CalculationsAndCharts!$A41+$A$11,IF($C$7,8,0),1,1) -> 204.179993 | G41: =OFFSET(InputPriceData!F$15,CalculationsAndCharts!$A41+$A$11,IF($C$7,8,0),1,1) -> 205.580002 | H41: 4.233879295 | I41: 201.3461227 | J41: 202.3528533 | K41: 200.3393921 | L41: 2.672827054 | M41: 1.300139618 | O41: 3.620034944 | P41: 201.9599671 | Q41: 2.473327937 | R41: 1.443717042 | U41: 0.1435774236
A42: 10 | B42: =OFFSET(InputPriceData!B$15,CalculationsAndCharts!$A42+$A$11,0,1,1) -> 2014-11-19 | C42: =OFFSET(InputPriceData!G$15,CalculationsAndCharts!$A42+$A$11,IF($C$7,8,0),1,1) -> 82373000 | D42: =OFFSET(InputPriceData!C$15,CalculationsAndCharts!$A42+$A$11,IF($C$7,8,0),1,1) -> 205.309998 | E42: =OFFSET(InputPriceData!D$15,CalculationsAndCharts!$A42+$A$11,IF($C$7,8,0),1,1) -> 205.550003 | F42: =OFFSET(InputPriceData!E$15,CalculationsAndCharts!$A42+$A$11,IF($C$7,8,0),1,1) -> 204.300003 | G42: =OFFSET(InputPriceData!F$15,CalculationsAndCharts!$A42+$A$11,IF($C$7,8,0),1,1) -> 205.220001 | H42: 4.264442009 | I42: 200.955559 | J42: 201.9603368 | K42: 199.9507812 | L42: 2.699140033 | M42: 1.315242189 | O42: 3.69740874 | P42: 201.5225923 | Q42: 2.592619989 | R42: 1.516004274 | U42: 0.2007620856
A43: 11 | B43: =OFFSET(InputPriceData!B$15,CalculationsAndCharts!$A43+$A$11,0,1,1) -> 2014-11-18 | C43: =OFFSET(InputPriceData!G$15,CalculationsAndCharts!$A43+$A$11,IF($C$7,8,0),1,1) -> 76068000 | D43: =OFFSET(InputPriceData!C$15,CalculationsAndCharts!$A43+$A$11,IF($C$7,8,0),1,1) -> 204.440002 | E43: =OFFSET(InputPriceData!D$15,CalculationsAndCharts!$A43+$A$11,IF($C$7,8,0),1,1) -> 205.919998 | F43: =OFFSET(InputPriceData!E$15,CalculationsAndCharts!$A43+$A$11,IF($C$7,8,0),1,1) -> 204.440002 | G43: =OFFSET(InputPriceData!F$15,CalculationsAndCharts!$A43+$A$11,IF($C$7,8,0),1,1) -> 205.550003 | H43: 5.006869275 | I43: 200.5431337 | J43: 201.5458494 | K43: 199.5404181 | L43: 2.691301493 | M43: 1.309317175 | O43: 4.496051938 | P43: 201.0539511 | Q43: 2.678457 | R43: 1.563682001 | U43: 0.2543648257
A44: 12 | B44: =OFFSET(InputPriceData!B$15,CalculationsAndCharts!$A44+$A$11,0,1,1) -> 2014-11-17 | C44: =OFFSET(InputPriceData!G$15,CalculationsAndCharts!$A44+$A$11,IF($C$7,8,0),1,1) -> 80441000 | D44: =OFFSET(InputPriceData!C$15,CalculationsAndCharts!$A44+$A$11,IF($C$7,8,0),1,1) -> 203.850006 | E44: =OFFSET(InputPriceData!D$15,CalculationsAndCharts!$A44+$A$11,IF($C$7,8,0),1,1) -> 204.580002 | F44: =OFFSET(InputPriceData!E$15,CalculationsAndCharts!$A44+$A$11,IF($C$7,8,0),1,1) -> 203.649994 | G44: =OFFSET(InputPriceData!F$15,CalculationsAndCharts!$A44+$A$11,IF($C$7,8,0),1,1) -> 204.369995 | H44: 4.232298536 | I44: 200.1376965 | J44: 201.1383849 | K44: 199.137008 | L44: 2.675148403 | M44: 1.30897317 | O44: 3.780237454 | P44: 200.5897575 | Q44: 2.762695305 | R44: 1.622172749 | U44: 0.3131995788
A45: 13 | B45: =OFFSET(InputPriceData!B$15,CalculationsAndCharts!$A45+$A$11,0,1,1) -> 2014-11-14 | C45: =OFFSET(InputPriceData!G$15,CalculationsAndCharts!$A45+$A$11,IF($C$7,8,0),1,1) -> 80418000 | D45: =OFFSET(InputPriceData!C$15,CalculationsAndCharts!$A45+$A$11,IF($C$7,8,0),1,1) -> 204.100006 | E45: =OFFSET(InputPriceData!D$15,CalculationsAndCharts!$A45+$A$11,IF($C$7,8,0),1,1) -> 204.490005 | F45: =OFFSET(InputPriceData!E$15,CalculationsAndCharts!$A45+$A$11,IF($C$7,8,0),1,1) -> 203.720001 | G45: =OFFSET(InputPriceData!F$15,CalculationsAndCharts!$A45+$A$11,IF($C$7,8,0),1,1) -> 204.240005 | H45: 4.483473414 | I45: 199.7565316 | J45: 200.7553142 | K45: 198.7577489 | L45: 2.668079544 | M45: 1.306345221 | O45: 4.088360057 | P45: 200.1516449 | Q45: 2.867987171 | R45: 1.685068802 | U45: 0.3787235815
A46: 14 | B46: =OFFSET(InputPriceData!B$15,CalculationsAndCharts!$A46+$A$11,0,1,1) -> 2014-11-13 | C46: =OFFSET(InputPriceData!G$15,CalculationsAndCharts!$A46+$A$11,IF($C$7,8,0),1,1) -> 85358000 | D46: =OFFSET(InputPriceData!C$15,CalculationsAndCharts!$A46+$A$11,IF($C$7,8,0),1,1) -> 204.160004 | E46: =OFFSET(InputPriceData!D$15,CalculationsAndCharts!$A46+$A$11,IF($C$7,8,0),1,1) -> 204.830002 | F46: =OFFSET(InputPriceData!E$15,CalculationsAndCharts!$A46+$A$11,IF($C$7,8,0),1,1) -> 203.210007 | G46: =OFFSET(InputPriceData!F$15,CalculationsAndCharts!$A46+$A$11,IF($C$7,8,0),1,1) -> 204.190002 | H46: 4.830191603 | I46: 199.3598104 | J46: 200.3566094 | K46: 198.3630113 | L46: 2.628702969 | M46: 1.287380843 | O46: 4.500341918 | P46: 199.6896601 | Q46: 2.942812165 | R46: 1.729455195 | U46: 0.442074352
A47: 15 | B47: =OFFSET(InputPriceData!B$15,CalculationsAndCharts!$A47+$A$11,0,1,1) -> 2014-11-12 | C47: =OFFSET(InputPriceData!G$15,CalculationsAndCharts!$A47+$A$11,IF($C$7,8,0),1,1) -> 90120000 | D47: =OFFSET(InputPriceData!C$15,CalculationsAndCharts!$A47+$A$11,IF($C$7,8,0),1,1) -> 203.350006 | E47: =OFFSET(InputPriceData!D$15,CalculationsAndCharts!$A47+$A$11,IF($C$7,8,0),1,1) -> 204.240005 | F47: =OFFSET(InputPriceData!E$15,CalculationsAndCharts!$A47+$A$11,IF($C$7,8,0),1,1) -> 203.309998 | G47: =OFFSET(InputPriceData!F$15,CalculationsAndCharts!$A47+$A$11,IF($C$7,8,0),1,1) -> 203.960007 | H47: 5.009567304 | I47: 198.9504397 | J47: 199.9451919 | K47: 197.9556875 | L47: 2.55541829 | M47: 1.252901648 | O47: 4.753059011 | P47: 199.206948 | Q47: 2.984034125 | R47: 1.755658377 | U47: 0.5027567289
A48: 16 | B48: =OFFSET(InputPriceData!B$15,CalculationsAndCharts!$A48+$A$11,0,1,1) -> 2014-11-11 | C48: =OFFSET(InputPriceData!G$15,CalculationsAndCharts!$A48+$A$11,IF($C$7,8,0),1,1) -> 54499000 | D48: =OFFSET(InputPriceData!C$15,CalculationsAndCharts!$A48+$A$11,IF($C$7,8,0),1,1) -> 204.059998 | E48: =OFFSET(InputPriceData!D$15,CalculationsAndCharts!$A48+$A$11,IF($C$7,8,0),1,1) -> 204.309998 | F48: =OFFSET(InputPriceData!E$15,CalculationsAndCharts!$A48+$A$11,IF($C$7,8,0),1,1) -> 203.649994 | G48: =OFFSET(InputPriceData!F$15,CalculationsAndCharts!$A48+$A$11,IF($C$7,8,0),1,1) -> 204.179993 | H48: 5.662010598 | I48: 198.5179824 | J48: 199.5105723 | K48: 197.5253925 | L48: 2.432218934 | M48: 1.191213154 | O48: 5.490110525 | P48: 198.6898825 | Q48: 2.969829174 | R48: 1.745418322 | U48: 0.5542051688
A49: 17 | B49: =OFFSET(InputPriceData!B$15,CalculationsAndCharts!$A49+$A$11,0,1,1) -> 2014-11-10 | C49: =OFFSET(InputPriceData!G$15,CalculationsAndCharts!$A49+$A$11,IF($C$7,8,0),1,1) -> 66319000 | D49: =OFFSET(InputPriceData!C$15,CalculationsAndCharts!$A49+$A$11,IF($C$7,8,0),1,1) -> 203.380005 | E49: =OFFSET(InputPriceData!D$15,CalculationsAndCharts!$A49+$A$11,IF($C$7,8,0),1,1) -> 204.039993 | F49: =OFFSET(InputPriceData!E$15,CalculationsAndCharts!$A49+$A$11,IF($C$7,8,0),1,1) -> 203.130005 | G49: =OFFSET(InputPriceData!F$15,CalculationsAndCharts!$A49+$A$11,IF($C$7,8,0),1,1) -> 203.979996 | H49: 5.919794077 | I49: 198.0602019 | J49: 199.0505029 | K49: 197.0699009 | L49: 2.249738653 | M49: 1.102921216 | O49: 5.84504666 | P49: 198.1349493 | Q49: 2.885678065 | R49: 1.697624153 | U49: 0.5947029361
A50: 18 | B50: =OFFSET(InputPriceData!B$15,CalculationsAndCharts!$A50+$A$11,0,1,1) -> 2014-11-07 | C50: =OFFSET(InputPriceData!G$15,CalculationsAndCharts!$A50+$A$11,IF($C$7,8,0),1,1) -> 89540000 | D50: =OFFSET(InputPriceData!C$15,CalculationsAndCharts!$A50+$A$11,IF($C$7,8,0),1,1) -> 203.169998 | E50: =OFFSET(InputPriceData!D$15,CalculationsAndCharts!$A50+$A$11,IF($C$7,8,0),1,1) -> 203.600006 | F50: =OFFSET(InputPriceData!E$15,CalculationsAndCharts!$A50+$A$11,IF($C$7,8,0),1,1) -> 202.610001 | G50: =OFFSET(InputPriceData!F$15,CalculationsAndCharts!$A50+$A$11,IF($C$7,8,0),1,1) -> 203.339996 | H50: 5.732751414 | I50: 197.6072446 | J50: 198.5952808 | K50: 196.6192084 | L50: 2.032315833 | M50: 0.9994668404 | O50: 5.760679859 | P50: 197.5793161 | Q50: 2.7593944 | R50: 1.628441697 | U50: 0.6289748561
A51: 19 | B51: =OFFSET(InputPriceData!B$15,CalculationsAndCharts!$A51+$A$11,0,1,1) -> 2014-11-06 | C51: =OFFSET(InputPriceData!G$15,CalculationsAndCharts!$A51+$A$11,IF($C$7,8,0),1,1) -> 107089000 | D51: =OFFSET(InputPriceData!C$15,CalculationsAndCharts!$A51+$A$11,IF($C$7,8,0),1,1) -> 202.389999 | E51: =OFFSET(InputPriceData!D$15,CalculationsAndCharts!$A51+$A$11,IF($C$7,8,0),1,1) -> 203.259995 | F51: =OFFSET(InputPriceData!E$15,CalculationsAndCharts!$A51+$A$11,IF($C$7,8,0),1,1) -> 201.639999 | G51: =OFFSET(InputPriceData!F$15,CalculationsAndCharts!$A51+$A$11,IF($C$7,8,0),1,1) -> 203.149994 | H51: 5.990850032 | I51: 197.159144 | J51: 198.1449397 | K51: 196.1733482 | L51: 1.775826081 | M51: 0.8741452787 | O51: 6.127255465 | P51: 197.0227385 | Q51: 2.583599107 | R51: 1.526123072 | U51: 0.6519777928
A52: 20 | B52: =OFFSET(InputPriceData!B$15,CalculationsAndCharts!$A52+$A$11,0,1,1) -> 2014-11-05 | C52: =OFFSET(InputPriceData!G$15,CalculationsAndCharts!$A52+$A$11,IF($C$7,8,0),1,1) -> 91709000 | D52: =OFFSET(InputPriceData!C$15,CalculationsAndCharts!$A52+$A$11,IF($C$7,8,0),1,1) -> 202.539993 | E52: =OFFSET(InputPriceData!D$15,CalculationsAndCharts!$A52+$A$11,IF($C$7,8,0),1,1) -> 202.589996 | F52: =OFFSET(InputPriceData!E$15,CalculationsAndCharts!$A52+$A$11,IF($C$7,8,0),1,1) -> 201.449997 | G52: =OFFSET(InputPriceData!F$15,CalculationsAndCharts!$A52+$A$11,IF($C$7,8,0),1,1) -> 202.339996 | H52: 5.617487826 | I52: 196.7225082 | J52: 197.7061207 | K52: 195.7388956 | L52: 1.482794959 | M52: 0.7328234597 | O52: 5.866762681 | P52: 196.4732333 | Q52: 2.358952362 | R52: 1.399003109 | U52: 0.6661796492
A53: 21 | B53: =OFFSET(InputPriceData!B$15,CalculationsAndCharts!$A53+$A$11,0,1,1) -> 2014-11-04 | C53: =OFFSET(InputPriceData!G$15,CalculationsAndCharts!$A53+$A$11,IF($C$7,8,0),1,1) -> 93343000 | D53: =OFFSET(InputPriceData!C$15,CalculationsAndCharts!$A53+$A$11,IF($C$7,8,0),1,1) -> 201.229996 | E53: =OFFSET(InputPriceData!D$15,CalculationsAndCharts!$A53+$A$11,IF($C$7,8,0),1,1) -> 201.600006 | F53: =OFFSET(InputPriceData!E$15,CalculationsAndCharts!$A53+$A$11,IF($C$7,8,0),1,1) -> 200.059998 | G53: =OFFSET(InputPriceData!F$15,CalculationsAndCharts!$A53+$A$11,IF($C$7,8,0),1,1) -> 201.070007 | H53: 4.732475795 | I53: 196.3375312 | J53: 197.3192189 | K53: 195.3558435 | L53: 1.192440492 | M53: 0.5930474213 | O53: 5.088816157 | P53: 195.9811908 | Q53: 2.133073388 | R53: 1.27303326 | U53: 0.679985839
A54: 22 | B54: =OFFSET(InputPriceData!B$15,CalculationsAndCharts!$A54+$A$11,0,1,1) -> 2014-11-03 | C54: =OFFSET(InputPriceData!G$15,CalculationsAndCharts!$A54+$A$11,IF($C$7,8,0),1,1) -> 93734000 | D54: =OFFSET(InputPriceData!C$15,CalculationsAndCharts!$A54+$A$11,IF($C$7,8,0),1,1) -> 201.919998 | E54: =OFFSET(InputPriceData!D$15,CalculationsAndCharts!$A54+$A$11,IF($C$7,8,0),1,1) -> 202.449997 | F54: =OFFSET(InputPriceData!E$15,CalculationsAndCharts!$A54+$A$11,IF($C$7,8,0),1,1) -> 201.309998 | G54: =OFFSET(InputPriceData!F$15,CalculationsAndCharts!$A54+$A$11,IF($C$7,8,0),1,1) -> 201.770004 | H54: 5.81797505 | I54: 195.9520289 | J54: 196.9317891 | K54: 194.9722688 | L54: 0.8506477826 | M54: 0.4215927867 | O54: 6.288575353 | P54: 195.4814286 | Q54: 1.836289481 | R54: 1.092108507 | U54: 0.6705157199
A55: 23 | B55: =OFFSET(InputPriceData!B$15,CalculationsAndCharts!$A55+$A$11,0,1,1) -> 2014-10-31 | C55: =OFFSET(InputPriceData!G$15,CalculationsAndCharts!$A55+$A$11,IF($C$7,8,0),1,1) -> 146903000 | D55: =OFFSET(InputPriceData!C$15,CalculationsAndCharts!$A55+$A$11,IF($C$7,8,0),1,1) -> 201.779999 | E55: =OFFSET(InputPriceData!D$15,CalculationsAndCharts!$A55+$A$11,IF($C$7,8,0),1,1) -> 201.820007 | F55: =OFFSET(InputPriceData!E$15,CalculationsAndCharts!$A55+$A$11,IF($C$7,8,0),1,1) -> 200.770004 | G55: =OFFSET(InputPriceData!F$15,CalculationsAndCharts!$A55+$A$11,IF($C$7,8,0),1,1) -> 201.660004 | H55: 6.136262973 | I55: 195.523741 | J55: 196.5013597 | K55: 194.5461223 | L55: 0.4059768392 | M55: 0.2013174805 | O55: 6.739638638 | P55: 194.9203654 | Q55: 1.398679672 | R55: 0.8322996993 | U55: 0.6309822188
A56: 24 | B56: =OFFSET(InputPriceData!B$15,CalculationsAndCharts!$A56+$A$11,0,1,1) -> 2014-10-30 | C56: =OFFSET(InputPriceData!G$15,CalculationsAndCharts!$A56+$A$11,IF($C$7,8,0),1,1) -> 113330000 | D56: =OFFSET(InputPriceData!C$15,CalculationsAndCharts!$A56+$A$11,IF($C$7,8,0),1,1) -> 197.580002 | E56: =OFFSET(InputPriceData!D$15,CalculationsAndCharts!$A56+$A$11,IF($C$7,8,0),1,1) -> 199.949997 | F56: =OFFSET(InputPriceData!E$15,CalculationsAndCharts!$A56+$A$11,IF($C$7,8,0),1,1) -> 197.399994 | G56: =OFFSET(InputPriceData!F$15,CalculationsAndCharts!$A56+$A$11,IF($C$7,8,0),1,1) -> 199.380005 | H56: 4.220737939 | I56: 195.1592671 | J56: 196.1350634 | K56: 194.1834707 | L56: -0.04028049668 | M56: -0.02020287675 | O56: 4.948988236 | P56: 194.4310168 | Q56: 0.9422877334 | R56: 0.5671307311 | U56: 0.5873336079
A57: 25 | B57: =OFFSET(InputPriceData!B$15,CalculationsAndCharts!$A57+$A$11,0,1,1) -> 2014-10-29 | C57: =OFFSET(InputPriceData!G$15,CalculationsAndCharts!$A57+$A$11,IF($C$7,8,0),1,1) -> 142557000 | D57: =OFFSET(InputPriceData!C$15,CalculationsAndCharts!$A57+$A$11,IF($C$7,8,0),1,1) -> 198.550003 | E57: =OFFSET(InputPriceData!D$15,CalculationsAndCharts!$A57+$A$11,IF($C$7,8,0),1,1) -> 199.119995 | F57: =OFFSET(InputPriceData!E$15,CalculationsAndCharts!$A57+$A$11,IF($C$7,8,0),1,1) -> 196.800003 | G57: =OFFSET(InputPriceData!F$15,CalculationsAndCharts!$A57+$A$11,IF($C$7,8,0),1,1) -> 198.110001 | H57: 3.205425848 | I57: 194.9045752 | J57: 195.879098 | K57: 193.9300523 | L57: -0.4365214563 | M57: -0.2203429681 | O57: 4.038101768 | P57: 194.0718992 | Q57: 0.5314940399 | R57: 0.3219387435 | U57: 0.5422817116
A58: 26 | B58: =OFFSET(InputPriceData!B$15,CalculationsAndCharts!$A58+$A$11,0,1,1) -> 2014-10-28 | C58: =OFFSET(InputPriceData!G$15,CalculationsAndCharts!$A58+$A$11,IF($C$7,8,0),1,1) -> 106255600 | D58: =OFFSET(InputPriceData!C$15,CalculationsAndCharts!$A58+$A$11,IF($C$7,8,0),1,1) -> 196.820007 | E58: =OFFSET(InputPriceData!D$15,CalculationsAndCharts!$A58+$A$11,IF($C$7,8,0),1,1) -> 198.419998 | F58: =OFFSET(InputPriceData!E$15,CalculationsAndCharts!$A58+$A$11,IF($C$7,8,0),1,1) -> 196.729996 | G58: =OFFSET(InputPriceData!F$15,CalculationsAndCharts!$A58+$A$11,IF($C$7,8,0),1,1) -> 198.410004 | H58: 3.738441205 | I58: 194.6715628 | J58: 195.6449206 | K58: 193.698205 | L58: -0.8676630172 | M58: -0.4373080992 | O58: 4.676374626 | P58: 193.7336294 | Q58: 0.05893700596 | R58: 0.03564558527 | U58: 0.4729536845
A59: 27 | B59: =OFFSET(InputPriceData!B$15,CalculationsAndCharts!$A59+$A$11,0,1,1) -> 2014-10-27 | C59: =OFFSET(InputPriceData!G$15,CalculationsAndCharts!$A59+$A$11,IF($C$7,8,0),1,1) -> 82954000 | D59: =OFFSET(InputPriceData!C$15,CalculationsAndCharts!$A59+$A$11,IF($C$7,8,0),1,1) -> 195.729996 | E59: =OFFSET(InputPriceData!D$15,CalculationsAndCharts!$A59+$A$11,IF($C$7,8,0),1,1) -> 196.449997 | F59: =OFFSET(InputPriceData!E$15,CalculationsAndCharts!$A59+$A$11,IF($C$7,8,0),1,1) -> 195.029999 | G59: =OFFSET(InputPriceData!F$15,CalculationsAndCharts!$A59+$A$11,IF($C$7,8,0),1,1) -> 196.160004 | H59: 1.662725223 | I59: 194.4972788 | J59: 195.4697652 | K59: 193.5247924 | L59: -1.296866962 | M59: -0.6611271082 | O59: 2.697126406 | P59: 193.4628776 | Q59: -0.4322066635 | R59: -0.2644004821 | U59: 0.3967266261
A60: 28 | B60: =OFFSET(InputPriceData!B$15,CalculationsAndCharts!$A60+$A$11,0,1,1) -> 2014-10-24 | C60: =OFFSET(InputPriceData!G$15,CalculationsAndCharts!$A60+$A$11,IF($C$7,8,0),1,1) -> 117927000 | D60: =OFFSET(InputPriceData!C$15,CalculationsAndCharts!$A60+$A$11,IF($C$7,8,0),1,1) -> 195.25 | E60: =OFFSET(InputPriceData!D$15,CalculationsAndCharts!$A60+$A$11,IF($C$7,8,0),1,1) -> 196.490005 | F60: =OFFSET(InputPriceData!E$15,CalculationsAndCharts!$A60+$A$11,IF($C$7,8,0),1,1) -> 194.490005 | G60: =OFFSET(InputPriceData!F$15,CalculationsAndCharts!$A60+$A$11,IF($C$7,8,0),1,1) -> 196.429993 | H60: 2.043895425 | I60: 194.3860976 | J60: 195.3580281 | K60: 193.4141671 | L60: -1.716801134 | M60: -0.8740015249 | O60: 3.164148574 | P60: 193.2658444 | Q60: -0.9345141484 | R60: -0.5708990572 | U60: 0.3031024677
A61: 29 | B61: =OFFSET(InputPriceData!B$15,CalculationsAndCharts!$A61+$A$11,0,1,1) -> 2014-10-23 | C61: =OFFSET(InputPriceData!G$15,CalculationsAndCharts!$A61+$A$11,IF($C$7,8,0),1,1) -> 154944000 | D61: =OFFSET(InputPriceData!C$15,CalculationsAndCharts!$A61+$A$11,IF($C$7,8,0),1,1) -> 194.619995 | E61: =OFFSET(InputPriceData!D$15,CalculationsAndCharts!$A61+$A$11,IF($C$7,8,0),1,1) -> 196.199997 | F61: =OFFSET(InputPriceData!E$15,CalculationsAndCharts!$A61+$A$11,IF($C$7,8,0),1,1) -> 194.259995 | G61: =OFFSET(InputPriceData!F$15,CalculationsAndCharts!$A61+$A$11,IF($C$7,8,0),1,1) -> 194.929993 | H61: 0.6158590058 | I61: 194.314134 | J61: 195.2857047 | K61: 193.3425633 | L61: -2.149444324 | M61: -1.102675012 | O61: 1.816715045 | P61: 193.113278 | Q61: -1.477848134 | R61: -0.9097716228 | U61: 0.1929033892
A62: 30 | B62: =OFFSET(InputPriceData!B$15,CalculationsAndCharts!$A62+$A$11,0,1,1) -> 2014-10-22 | C62: =OFFSET(InputPriceData!G$15,CalculationsAndCharts!$A62+$A$11,IF($C$7,8,0),1,1) -> 151822000 | D62: =OFFSET(InputPriceData!C$15,CalculationsAndCharts!$A62+$A$11,IF($C$7,8,0),1,1) -> 194.410004 | E62: =OFFSET(InputPriceData!D$15,CalculationsAndCharts!$A62+$A$11,IF($C$7,8,0),1,1) -> 194.910004 | F62: =OFFSET(InputPriceData!E$15,CalculationsAndCharts!$A62+$A$11,IF($C$7,8,0),1,1) -> 192.610001 | G62: =OFFSET(InputPriceData!F$15,CalculationsAndCharts!$A62+$A$11,IF($C$7,8,0),1,1) -> 192.690002 | H62: -1.685208367 | I62: 194.3752104 | J62: 195.3470864 | K62: 193.4033343 | L62: -2.4935209 | M62: -1.294058267 | O62: -0.4337003819 | P62: 193.1237024 | Q62: -1.935686659 | R62: -1.205471984 | U62: 0.0885862826
A63: 31 | B63: =OFFSET(InputPriceData!B$15,CalculationsAndCharts!$A63+$A$11,0,1,1) -> 2014-10-21 | C63: =OFFSET(InputPriceData!G$15,CalculationsAndCharts!$A63+$A$11,IF($C$7,8,0),1,1) -> 154949000 | D63: =OFFSET(InputPriceData!C$15,CalculationsAndCharts!$A63+$A$11,IF($C$7,8,0),1,1) -> 191.679993 | E63: =OFFSET(InputPriceData!D$15,CalculationsAndCharts!$A63+$A$11,IF($C$7,8,0),1,1) -> 194.199997 | F63: =OFFSET(InputPriceData!E$15,CalculationsAndCharts!$A63+$A$11,IF($C$7,8,0),1,1) -> 191.479996 | G63: =OFFSET(InputPriceData!F$15,CalculationsAndCharts!$A63+$A$11,IF($C$7,8,0),1,1) -> 194.070007 | H63: -0.4014393251 | I63: 194.4714463 | J63: 195.4438036 | K63: 193.4990891 | L63: -2.838849531 | M63: -1.462796634 | O63: 0.8939736705 | P63: 193.1760333 | Q63: -2.420029727 | R63: -1.496385618 | U63: -0.03358898314
A64: 32 | B64: =OFFSET(InputPriceData!B$15,CalculationsAndCharts!$A64+$A$11,0,1,1) -> 2014-10-20 | C64: =OFFSET(InputPriceData!G$15,CalculationsAndCharts!$A64+$A$11,IF($C$7,8,0),1,1) -> 130011000 | D64: =OFFSET(InputPriceData!C$15,CalculationsAndCharts!$A64+$A$11,IF($C$7,8,0),1,1) -> 188.130005 | E64: =OFFSET(InputPriceData!D$15,CalculationsAndCharts!$A64+$A$11,IF($C$7,8,0),1,1) -> 190.449997 | F64: =OFFSET(InputPriceData!E$15,CalculationsAndCharts!$A64+$A$11,IF($C$7,8,0),1,1) -> 188.070007 | G64: =OFFSET(InputPriceData!F$15,CalculationsAndCharts!$A64+$A$11,IF($C$7,8,0),1,1) -> 190.300003 | H64: -4.360603878 | I64: 194.6606069 | J64: 195.6339099 | K64: 193.6873038 | L64: -3.121642256 | M64: -1.64037951 | O64: -3.043478602 | P64: 193.3434816 | Q64: -2.851665452 | R64: -1.798212553 | U64: -0.1578330438
A65: 33 | B65: =OFFSET(InputPriceData!B$15,CalculationsAndCharts!$A65+$A$11,0,1,1) -> 2014-10-17 | C65: =OFFSET(InputPriceData!G$15,CalculationsAndCharts!$A65+$A$11,IF($C$7,8,0),1,1) -> 214625000 | D65: =OFFSET(InputPriceData!C$15,CalculationsAndCharts!$A65+$A$11,IF($C$7,8,0),1,1) -> 188.419998 | E65: =OFFSET(InputPriceData!D$15,CalculationsAndCharts!$A65+$A$11,IF($C$7,8,0),1,1) -> 189.75 | F65: =OFFSET(InputPriceData!E$15,CalculationsAndCharts!$A65+$A$11,IF($C$7,8,0),1,1) -> 187.619995 | G65: =OFFSET(InputPriceData!F$15,CalculationsAndCharts!$A65+$A$11,IF($C$7,8,0),1,1) -> 188.470001 | H65: -6.594928342 | I65: 195.0649293 | J65: 196.040254 | K65: 194.0896047 | L65: -3.199385345 | M65: -1.697556814 | O65: -5.311448347 | P65: 193.7814493 | Q65: -3.046396862 | R65: -1.939659477 | U65: -0.2421026624 | X65: 1.755658377 | Y65: -1.942476534
A66: 34 | B66: =OFFSET(InputPriceData!B$15,CalculationsAndCharts!$A66+$A$11,0,1,1) -> 2014-10-16 | C66: =OFFSET(InputPriceData!G$15,CalculationsAndCharts!$A66+$A$11,IF($C$7,8,0),1,1) -> 270391000 | D66: =OFFSET(InputPriceData!C$15,CalculationsAndCharts!$A66+$A$11,IF($C$7,8,0),1,1) -> 183.059998 | E66: =OFFSET(InputPriceData!D$15,CalculationsAndCharts!$A66+$A$11,IF($C$7,8,0),1,1) -> 187.580002 | F66: =OFFSET(InputPriceData!E$15,CalculationsAndCharts!$A66+$A$11,IF($C$7,8,0),1,1) -> 182.889999 | G66: =OFFSET(InputPriceData!F$15,CalculationsAndCharts!$A66+$A$11,IF($C$7,8,0),1,1) -> 186.270004 | H66: -9.368743232 | I66: 195.6387472 | J66: 196.616941 | K66: 194.6605535 | L66: -3.089401838 | M66: -1.658561106 | O66: -8.166240199 | P66: 194.4362442 | Q66: -3.015209265 | R66: -1.942476534 | U66: -0.2839154282
A67: 35 | B67: =OFFSET(InputPriceData!B$15,CalculationsAndCharts!$A67+$A$11,0,1,1) -> 2014-10-15 | C67: =OFFSET(InputPriceData!G$15,CalculationsAndCharts!$A67+$A$11,IF($C$7,8,0),1,1) -> 380715000 | D67: =OFFSET(InputPriceData!C$15,CalculationsAndCharts!$A67+$A$11,IF($C$7,8,0),1,1) -> 185.160004 | E67: =OFFSET(InputPriceData!D$15,CalculationsAndCharts!$A67+$A$11,IF($C$7,8,0),1,1) -> 187.690002 | F67: =OFFSET(InputPriceData!E$15,CalculationsAndCharts!$A67+$A$11,IF($C$7,8,0),1,1) -> 181.919998 | G67: =OFFSET(InputPriceData!F$15,CalculationsAndCharts!$A67+$A$11,IF($C$7,8,0),1,1) -> 186.429993 | H67: -9.888507962 | I67: 196.318501 | J67: 197.3000935 | K67: 195.3369085 | L67: -2.831920289 | M67: -1.51902612 | O67: -8.801063233 | P67: 195.2310562 | Q67: -2.798501162 | R67: -1.801320345 | U67: -0.2822942253
A68: 36 | B68: =OFFSET(InputPriceData!B$15,CalculationsAndCharts!$A68+$A$11,0,1,1) -> 2014-10-14 | C68: =OFFSET(InputPriceData!G$15,CalculationsAndCharts!$A68+$A$11,IF($C$7,8,0),1,1) -> 215847000 | D68: =OFFSET(InputPriceData!C$15,CalculationsAndCharts!$A68+$A$11,IF($C$7,8,0),1,1) -> 188.419998 | E68: =OFFSET(InputPriceData!D$15,CalculationsAndCharts!$A68+$A$11,IF($C$7,8,0),1,1) -> 189.820007 | F68: =OFFSET(InputPriceData!E$15,CalculationsAndCharts!$A68+$A$11,IF($C$7,8,0),1,1) -> 187.039993 | G68: =OFFSET(InputPriceData!F$15,CalculationsAndCharts!$A68+$A$11,IF($C$7,8,0),1,1) -> 187.699997 | H68: -9.283077233 | I68: 196.9830742 | J68: 197.9679896 | K68: 195.9981589 | L68: -2.535999859 | M68: -1.351092115 | O68: -8.315691021 | P68: 196.015688 | Q68: -2.526518043 | R68: -1.615248642 | U68: -0.2641565268
A69: 37 | B69: =OFFSET(InputPriceData!B$15,CalculationsAndCharts!$A69+$A$11,0,1,1) -> 2014-10-13 | C69: =OFFSET(InputPriceData!G$15,CalculationsAndCharts!$A69+$A$11,IF($C$7,8,0),1,1) -> 230939000 | D69: =OFFSET(InputPriceData!C$15,CalculationsAndCharts!$A69+$A$11,IF($C$7,8,0),1,1) -> 190.460007 | E69: =OFFSET(InputPriceData!D$15,CalculationsAndCharts!$A69+$A$11,IF($C$7,8,0),1,1) -> 191.149994 | F69: =OFFSET(InputPriceData!E$15,CalculationsAndCharts!$A69+$A$11,IF($C$7,8,0),1,1) -> 187.300003 | G69: =OFFSET(InputPriceData!F$15,CalculationsAndCharts!$A69+$A$11,IF($C$7,8,0),1,1) -> 187.410004 | H69: -10.23784024 | I69: 197.6478442 | J69: 198.6360835 | K69: 196.659605 | L69: -2.180840383 | M69: -1.163673409 | O69: -9.399724539 | P69: 196.8097285 | Q69: -2.169396473 | R69: -1.389080472 | U69: -0.2254070628
A70: 38 | B70: =OFFSET(InputPriceData!B$15,CalculationsAndCharts!$A70+$A$11,0,1,1) -> 2014-10-10 | C70: =OFFSET(InputPriceData!G$15,CalculationsAndCharts!$A70+$A$11,IF($C$7,8,0),1,1) -> 221909000 | D70: =OFFSET(InputPriceData!C$15,CalculationsAndCharts!$A70+$A$11,IF($C$7,8,0),1,1) -> 192.690002 | E70: =OFFSET(InputPriceData!D$15,CalculationsAndCharts!$A70+$A$11,IF($C$7,8,0),1,1) -> 193.649994 | F70: =OFFSET(InputPriceData!E$15,CalculationsAndCharts!$A70+$A$11,IF($C$7,8,0),1,1) -> 190.490005 | G70: =OFFSET(InputPriceData!F$15,CalculationsAndCharts!$A70+$A$11,IF($C$7,8,0),1,1) -> 190.539993 | H70: -7.704692286 | I70: 198.2446853 | J70: 199.2359087 | K70: 197.2534619 | L70: -1.832556343 | M70: -0.9617699223 | O70: -6.987955891 | P70: 197.5279489 | Q70: -1.806991381 | R70: -1.138023374 | U70: -0.1762534514
A71: 39 | B71: =OFFSET(InputPriceData!B$15,CalculationsAndCharts!$A71+$A$11,0,1,1) -> 2014-10-09 | C71: =OFFSET(InputPriceData!G$15,CalculationsAndCharts!$A71+$A$11,IF($C$7,8,0),1,1) -> 210705000 | D71: =OFFSET(InputPriceData!C$15,CalculationsAndCharts!$A71+$A$11,IF($C$7,8,0),1,1) -> 196.330002 | E71: =OFFSET(InputPriceData!D$15,CalculationsAndCharts!$A71+$A$11,IF($C$7,8,0),1,1) -> 196.600006 | F71: =OFFSET(InputPriceData!E$15,CalculationsAndCharts!$A71+$A$11,IF($C$7,8,0),1,1) -> 192.580002 | G71: =OFFSET(InputPriceData!F$15,CalculationsAndCharts!$A71+$A$11,IF($C$7,8,0),1,1) -> 192.740005 | H71: -5.938750708 | I71: 198.6787557 | J71: 199.6721495 | K71: 197.6853619 | L71: -1.596054922 | M71: -0.8280869985 | O71: -5.310317921 | P71: 198.0503229 | Q71: -1.57286386 | R71: -0.9792656338 | U71: -0.1511786353
A72: 40 | B72: =OFFSET(InputPriceData!B$15,CalculationsAndCharts!$A72+$A$11,0,1,1) -> 2014-10-08 | C72: =OFFSET(InputPriceData!G$15,CalculationsAndCharts!$A72+$A$11,IF($C$7,8,0),1,1) -> 186461000 | D72: =OFFSET(InputPriceData!C$15,CalculationsAndCharts!$A72+$A$11,IF($C$7,8,0),1,1) -> 193.369995 | E72: =OFFSET(InputPriceData!D$15,CalculationsAndCharts!$A72+$A$11,IF($C$7,8,0),1,1) -> 196.919998 | F72: =OFFSET(InputPriceData!E$15,CalculationsAndCharts!$A72+$A$11,IF($C$7,8,0),1,1) -> 192.360001 | G72: =OFFSET(InputPriceData!F$15,CalculationsAndCharts!$A72+$A$11,IF($C$7,8,0),1,1) -> 196.639999 | H72: -2.272870589 | I72: 198.9128696 | J72: 199.9074339 | K72: 197.9183052 | L72: -1.529689978 | M72: -0.7779139474 | O72: -1.687687477 | P72: 198.3276865 | Q72: -1.547865124 | R72: -0.9445881602 | U72: -0.1666742128
A73: 41 | B73: =OFFSET(InputPriceData!B$15,CalculationsAndCharts!$A73+$A$11,0,1,1) -> 2014-10-07 | C73: =OFFSET(InputPriceData!G$15,CalculationsAndCharts!$A73+$A$11,IF($C$7,8,0),1,1) -> 147913000 | D73: =OFFSET(InputPriceData!C$15,CalculationsAndCharts!$A73+$A$11,IF($C$7,8,0),1,1) -> 195.279999 | E73: =OFFSET(InputPriceData!D$15,CalculationsAndCharts!$A73+$A$11,IF($C$7,8,0),1,1) -> 195.720001 | F73: =OFFSET(InputPriceData!E$15,CalculationsAndCharts!$A73+$A$11,IF($C$7,8,0),1,1) -> 193.220001 | G73: =OFFSET(InputPriceData!F$15,CalculationsAndCharts!$A73+$A$11,IF($C$7,8,0),1,1) -> 193.259995 | H73: -5.879722738 | I73: 199.1397177 | J73: 200.1354163 | K73: 198.1440191 | L73: -1.452675095 | M73: -0.7516688052 | O73: -5.339427028 | P73: 198.599422 | Q73: -1.510763568 | R73: -0.9380711627 | U73: -0.1864023575
A74: 42 | B74: =OFFSET(InputPriceData!B$15,CalculationsAndCharts!$A74+$A$11,0,1,1) -> 2014-10-06 | C74: =OFFSET(InputPriceData!G$15,CalculationsAndCharts!$A74+$A$11,IF($C$7,8,0),1,1) -> 104778000 | D74: =OFFSET(InputPriceData!C$15,CalculationsAndCharts!$A74+$A$11,IF($C$7,8,0),1,1) -> 197.339996 | E74: =OFFSET(InputPriceData!D$15,CalculationsAndCharts!$A74+$A$11,IF($C$7,8,0),1,1) -> 197.600006 | F74: =OFFSET(InputPriceData!E$15,CalculationsAndCharts!$A74+$A$11,IF($C$7,8,0),1,1) -> 195.580002 | G74: =OFFSET(InputPriceData!F$15,CalculationsAndCharts!$A74+$A$11,IF($C$7,8,0),1,1) -> 196.289993 | H74: -3.100580338 | I74: 199.3905733 | J74: 200.3875262 | K74: 198.3936205 | L74: -1.330179297 | M74: -0.6776602702 | O74: -2.614969928 | P74: 198.9049629 | Q74: -1.416336026 | R74: -0.8658634122 | U74: -0.188203142
A75: 43 | B75: =OFFSET(InputPriceData!B$15,CalculationsAndCharts!$A75+$A$11,0,1,1) -> 2014-10-03 | C75: =OFFSET(InputPriceData!G$15,CalculationsAndCharts!$A75+$A$11,IF($C$7,8,0),1,1) -> 121569000 | D75: =OFFSET(InputPriceData!C$15,CalculationsAndCharts!$A75+$A$11,IF($C$7,8,0),1,1) -> 195.679993 | E75: =OFFSET(InputPriceData!D$15,CalculationsAndCharts!$A75+$A$11,IF($C$7,8,0),1,1) -> 196.940002 | F75: =OFFSET(InputPriceData!E$15,CalculationsAndCharts!$A75+$A$11,IF($C$7,8,0),1,1) -> 195.080002 | G75: =OFFSET(InputPriceData!F$15,CalculationsAndCharts!$A75+$A$11,IF($C$7,8,0),1,1) -> 196.520004 | H75: -3.014835527 | I75: 199.5348395 | J75: 200.5325137 | K75: 198.5371653 | L75: -1.296317689 | M75: -0.6596365067 | O75: -2.560556681 | P75: 199.0805607 | Q75: -1.43357437 | R75: -0.8753761497 | U75: -0.2157396431
A76: 44 | B76: =OFFSET(InputPriceData!B$15,CalculationsAndCharts!$A76+$A$11,0,1,1) -> 2014-10-02 | C76: =OFFSET(InputPriceData!G$15,CalculationsAndCharts!$A76+$A$11,IF($C$7,8,0),1,1) -> 157285000 | D76: =OFFSET(InputPriceData!C$15,CalculationsAndCharts!$A76+$A$11,IF($C$7,8,0),1,1) -> 194.179993 | E76: =OFFSET(InputPriceData!D$15,CalculationsAndCharts!$A76+$A$11,IF($C$7,8,0),1,1) -> 195.059998 | F76: =OFFSET(InputPriceData!E$15,CalculationsAndCharts!$A76+$A$11,IF($C$7,8,0),1,1) -> 192.350006 | G76: =OFFSET(InputPriceData!F$15,CalculationsAndCharts!$A76+$A$11,IF($C$7,8,0),1,1) -> 194.380005 | H76: -5.375369125 | I76: 199.7553741 | J76: 200.754151 | K76: 198.7565973 | L76: -1.168237713 | M76: -0.6010071424 | O76: -4.974723219 | P76: 199.3547282 | Q76: -1.33380649 | R76: -0.8234220325 | U76: -0.2224148901
A77: 45 | B77: =OFFSET(InputPriceData!B$15,CalculationsAndCharts!$A77+$A$11,0,1,1) -> 2014-10-01 | C77: =OFFSET(InputPriceData!G$15,CalculationsAndCharts!$A77+$A$11,IF($C$7,8,0),1,1) -> 177798000 | D77: =OFFSET(InputPriceData!C$15,CalculationsAndCharts!$A77+$A$11,IF($C$7,8,0),1,1) -> 196.699997 | E77: =OFFSET(InputPriceData!D$15,CalculationsAndCharts!$A77+$A$11,IF($C$7,8,0),1,1) -> 196.770004 | F77: =OFFSET(InputPriceData!E$15,CalculationsAndCharts!$A77+$A$11,IF($C$7,8,0),1,1) -> 193.910004 | G77: =OFFSET(InputPriceData!F$15,CalculationsAndCharts!$A77+$A$11,IF($C$7,8,0),1,1) -> 194.350006 | H77: -5.715744747 | I77: 200.0657507 | J77: 201.0660795 | K77: 199.065422 | L77: -0.9176378511 | M77: -0.4721573567 | O77: -5.396031778 | P77: 199.7460378 | Q77: -1.074770663 | R77: -0.6636093419 | U77: -0.1914519852
A78: 46 | B78: =OFFSET(InputPriceData!B$15,CalculationsAndCharts!$A78+$A$11,0,1,1) -> 2014-09-30 | C78: =OFFSET(InputPriceData!G$15,CalculationsAndCharts!$A78+$A$11,IF($C$7,8,0),1,1) -> 131302000 | D78: =OFFSET(InputPriceData!C$15,CalculationsAndCharts!$A78+$A$11,IF($C$7,8,0),1,1) -> 197.690002 | E78: =OFFSET(InputPriceData!D$15,CalculationsAndCharts!$A78+$A$11,IF($C$7,8,0),1,1) -> 198.300003 | F78: =OFFSET(InputPriceData!E$15,CalculationsAndCharts!$A78+$A$11,IF($C$7,8,0),1,1) -> 196.610001 | G78: =OFFSET(InputPriceData!F$15,CalculationsAndCharts!$A78+$A$11,IF($C$7,8,0),1,1) -> 197.020004 | H78: -3.275136212 | I78: 200.2951402 | J78: 201.2966159 | K78: 199.2936645 | L78: -0.7108043276 | M78: -0.360777745 | O78: -3.021281241 | P78: 200.0412852 | Q78: -0.8611960926 | R78: -0.5245331896 | U78: -0.1637554446
A79: 47 | B79: =OFFSET(InputPriceData!B$15,CalculationsAndCharts!$A79+$A$11,0,1,1) -> 2014-09-29 | C79: =OFFSET(InputPriceData!G$15,CalculationsAndCharts!$A79+$A$11,IF($C$7,8,0),1,1) -> 95112000 | D79: =OFFSET(InputPriceData!C$15,CalculationsAndCharts!$A79+$A$11,IF($C$7,8,0),1,1) -> 196.199997 | E79: =OFFSET(InputPriceData!D$15,CalculationsAndCharts!$A79+$A$11,IF($C$7,8,0),1,1) -> 197.889999 | F79: =OFFSET(InputPriceData!E$15,CalculationsAndCharts!$A79+$A$11,IF($C$7,8,0),1,1) -> 196.050003 | G79: =OFFSET(InputPriceData!F$15,CalculationsAndCharts!$A79+$A$11,IF($C$7,8,0),1,1) -> 197.539993 | H79: -2.878929434 | I79: 200.4189224 | J79: 201.421017 | K79: 199.4168278 | L79: -0.5820214745 | M79: -0.2946347551 | O79: -2.66839046 | P79: 200.2083835 | Q79: -0.7389262396 | R79: -0.4488769459 | U79: -0.1542421908
A80: 48 | B80: =OFFSET(InputPriceData!B$15,CalculationsAndCharts!$A80+$A$11,0,1,1) -> 2014-09-26 | C80: =OFFSET(InputPriceData!G$15,CalculationsAndCharts!$A80+$A$11,IF($C$7,8,0),1,1) -> 103547000 | D80: =OFFSET(InputPriceData!C$15,CalculationsAndCharts!$A80+$A$11,IF($C$7,8,0),1,1) -> 196.699997 | E80: =OFFSET(InputPriceData!D$15,CalculationsAndCharts!$A80+$A$11,IF($C$7,8,0),1,1) -> 198.389999 | F80: =OFFSET(InputPriceData!E$15,CalculationsAndCharts!$A80+$A$11,IF($C$7,8,0),1,1) -> 196.419998 | G80: =OFFSET(InputPriceData!F$15,CalculationsAndCharts!$A80+$A$11,IF($C$7,8,0),1,1) -> 197.899994 | H80: -2.615590863 | I80: 200.5155849 | J80: 201.5181628 | K80: 199.5130069 | L80: -0.4595416521 | M80: -0.2322090278 | O80: -2.444532032 | P80: 200.344526 | Q80: -0.620352862 | R80: -0.3761614235 | U80: -0.1439523956
A81: 49 | B81: =OFFSET(InputPriceData!B$15,CalculationsAndCharts!$A81+$A$11,0,1,1) -> 2014-09-25 | C81: =OFFSET(InputPriceData!G$15,CalculationsAndCharts!$A81+$A$11,IF($C$7,8,0),1,1) -> 150300000 | D81: =OFFSET(InputPriceData!C$15,CalculationsAndCharts!$A81+$A$11,IF($C$7,8,0),1,1) -> 199.039993 | E81: =OFFSET(InputPriceData!D$15,CalculationsAndCharts!$A81+$A$11,IF($C$7,8,0),1,1) -> 199.050003 | F81: =OFFSET(InputPriceData!E$15,CalculationsAndCharts!$A81+$A$11,IF($C$7,8,0),1,1) -> 196.270004 | G81: =OFFSET(InputPriceData!F$15,CalculationsAndCharts!$A81+$A$11,IF($C$7,8,0),1,1) -> 196.339996 | H81: -4.319526935 | I81: 200.6595229 | J81: 201.6628205 | K81: 199.6562253 | L81: -0.2650128223 | M81: -0.1349764835 | O81: -4.203053049 | P81: 200.543049 | Q81: -0.4050002584 | R81: -0.2475299582 | U81: -0.1125534748
A82: 50 | B82: =OFFSET(InputPriceData!B$15,CalculationsAndCharts!$A82+$A$11,0,1,1) -> 2014-09-24 | C82: =OFFSET(InputPriceData!G$15,CalculationsAndCharts!$A82+$A$11,IF($C$7,8,0),1,1) -> 107276000 | D82: =OFFSET(InputPriceData!C$15,CalculationsAndCharts!$A82+$A$11,IF($C$7,8,0),1,1) -> 198.039993 | E82: =OFFSET(InputPriceData!D$15,CalculationsAndCharts!$A82+$A$11,IF($C$7,8,0),1,1) -> 199.690002 | F82: =OFFSET(InputPriceData!E$15,CalculationsAndCharts!$A82+$A$11,IF($C$7,8,0),1,1) -> 197.520004 | G82: =OFFSET(InputPriceData!F$15,CalculationsAndCharts!$A82+$A$11,IF($C$7,8,0),1,1) -> 199.559998 | H82: -1.188824037 | I82: 200.748822 | J82: 201.7525661 | K82: 199.7450779 | L82: -0.09804380863 | M82: -0.04912999079 | O82: -1.116672226 | P82: 200.6766702 | Q82: -0.2152863155 | R82: -0.1294565951 | U82: -0.08032660435
A83: 51 | B83: =OFFSET(InputPriceData!B$15,CalculationsAndCharts!$A83+$A$11,0,1,1) -> 2014-09-23 | C83: =OFFSET(InputPriceData!G$15,CalculationsAndCharts!$A83+$A$11,IF($C$7,8,0),1,1) -> 111393000 | D83: =OFFSET(InputPriceData!C$15,CalculationsAndCharts!$A83+$A$11,IF($C$7,8,0),1,1) -> 198.429993 | E83: =OFFSET(InputPriceData!D$15,CalculationsAndCharts!$A83+$A$11,IF($C$7,8,0),1,1) -> 199.259995 | F83: =OFFSET(InputPriceData!E$15,CalculationsAndCharts!$A83+$A$11,IF($C$7,8,0),1,1) -> 197.949997 | G83: =OFFSET(InputPriceData!F$15,CalculationsAndCharts!$A83+$A$11,IF($C$7,8,0),1,1) -> 198.009995 | H83: -2.770066344 | I83: 200.7800613 | J83: 201.7839617 | K83: 199.776161 | L83: 0.03256655202 | M83: 0.01644692331 | O83: -2.730340923 | P83: 200.7403359 | Q83: -0.06338067796 | R83: -0.03841059314 | U83: -0.05485751645
A84: 52 | B84: =OFFSET(InputPriceData!B$15,CalculationsAndCharts!$A84+$A$11,0,1,1) -> 2014-09-22 | C84: =OFFSET(InputPriceData!G$15,CalculationsAndCharts!$A84+$A$11,IF($C$7,8,0),1,1) -> 125553000 | D84: =OFFSET(InputPriceData!C$15,CalculationsAndCharts!$A84+$A$11,IF($C$7,8,0),1,1) -> 200.350006 | E84: =OFFSET(InputPriceData!D$15,CalculationsAndCharts!$A84+$A$11,IF($C$7,8,0),1,1) -> 200.380005 | F84: =OFFSET(InputPriceData!E$15,CalculationsAndCharts!$A84+$A$11,IF($C$7,8,0),1,1) -> 198.729996 | G84: =OFFSET(InputPriceData!F$15,CalculationsAndCharts!$A84+$A$11,IF($C$7,8,0),1,1) -> 199.149994 | H84: -1.675966119 | I84: 200.8259601 | J84: 201.8300899 | K84: 199.8218303 | L84: 0.1987289094 | M84: 0.09978855905 | O84: -1.674729432 | P84: 200.8247234 | Q84: 0.1413492067 | R84: 0.08517150548 | U84: -0.01461705356
A85: 53 | B85: =OFFSET(InputPriceData!B$15,CalculationsAndCharts!$A85+$A$11,0,1,1) -> 2014-09-19 | C85: =OFFSET(InputPriceData!G$15,CalculationsAndCharts!$A85+$A$11,IF($C$7,8,0),1,1) -> 121649000 | D85: =OFFSET(InputPriceData!C$15,CalculationsAndCharts!$A85+$A$11,IF($C$7,8,0),1,1) -> 201.520004 | E85: =OFFSET(InputPriceData!D$15,CalculationsAndCharts!$A85+$A$11,IF($C$7,8,0),1,1) -> 201.899994 | F85: =OFFSET(InputPriceData!E$15,CalculationsAndCharts!$A85+$A$11,IF($C$7,8,0),1,1) -> 200.289993 | G85: =OFFSET(InputPriceData!F$15,CalculationsAndCharts!$A85+$A$11,IF($C$7,8,0),1,1) -> 200.699997 | H85: -0.07408617066 | I85: 200.7740832 | J85: 201.7779536 | K85: 199.7702128 | L85: 0.2840981349 | M85: 0.1415536318 | O85: -0.08870338343 | P85: 200.7887004 | Q85: 0.2528492731 | R85: 0.1511804346 | U85: 0.00962680273
A86: 54 | B86: =OFFSET(InputPriceData!B$15,CalculationsAndCharts!$A86+$A$11,0,1,1) -> 2014-09-18 | C86: =OFFSET(InputPriceData!G$15,CalculationsAndCharts!$A86+$A$11,IF($C$7,8,0),1,1) -> 94990000 | D86: =OFFSET(InputPriceData!C$15,CalculationsAndCharts!$A86+$A$11,IF($C$7,8,0),1,1) -> 201.360001 | E86: =OFFSET(InputPriceData!D$15,CalculationsAndCharts!$A86+$A$11,IF($C$7,8,0),1,1) -> 201.850006 | F86: =OFFSET(InputPriceData!E$15,CalculationsAndCharts!$A86+$A$11,IF($C$7,8,0),1,1) -> 201.100006 | G86: =OFFSET(InputPriceData!F$15,CalculationsAndCharts!$A86+$A$11,IF($C$7,8,0),1,1) -> 201.820007 | H86: 1.200221655 | I86: 200.6197853 | J86: 201.6228843 | K86: 199.6166864 | L86: 0.2708639085 | M86: 0.1342106328 | O86: 1.195161485 | P86: 200.6248455 | Q86: 0.2438716555 | R86: 0.1450034568 | U86: 0.01079282397
A87: 55 | B87: =OFFSET(InputPriceData!B$15,CalculationsAndCharts!$A87+$A$11,0,1,1) -> 2014-09-17 | C87: =OFFSET(InputPriceData!G$15,CalculationsAndCharts!$A87+$A$11,IF($C$7,8,0),1,1) -> 151266000 | D87: =OFFSET(InputPriceData!C$15,CalculationsAndCharts!$A87+$A$11,IF($C$7,8,0),1,1) -> 200.770004 | E87: =OFFSET(InputPriceData!D$15,CalculationsAndCharts!$A87+$A$11,IF($C$7,8,0),1,1) -> 201.679993 | F87: =OFFSET(InputPriceData!E$15,CalculationsAndCharts!$A87+$A$11,IF($C$7,8,0),1,1) -> 199.75 | G87: =OFFSET(InputPriceData!F$15,CalculationsAndCharts!$A87+$A$11,IF($C$7,8,0),1,1) -> 200.75 | H87: 0.2968683257 | I87: 200.4531317 | J87: 201.4553973 | K87: 199.450866 | L87: 0.2408504239 | M87: 0.1199753046 | O87: 0.3052249005 | P87: 200.4447751 | Q87: 0.2132755046 | R87: 0.1274872257 | U87: 0.007511921095
A88: 56 | B88: =OFFSET(InputPriceData!B$15,CalculationsAndCharts!$A88+$A$11,0,1,1) -> 2014-09-16 | C88: =OFFSET(InputPriceData!G$15,CalculationsAndCharts!$A88+$A$11,IF($C$7,8,0),1,1) -> 116201000 | D88: =OFFSET(InputPriceData!C$15,CalculationsAndCharts!$A88+$A$11,IF($C$7,8,0),1,1) -> 198.610001 | E88: =OFFSET(InputPriceData!D$15,CalculationsAndCharts!$A88+$A$11,IF($C$7,8,0),1,1) -> 200.839996 | F88: =OFFSET(InputPriceData!E$15,CalculationsAndCharts!$A88+$A$11,IF($C$7,8,0),1,1) -> 198.5 | G88: =OFFSET(InputPriceData!F$15,CalculationsAndCharts!$A88+$A$11,IF($C$7,8,0),1,1) -> 200.479996 | H88: 0.1557813633 | I88: 200.3242146 | J88: 201.3258357 | K88: 199.3225936 | L88: 0.2455091572 | M88: 0.1224606755 | O88: 0.1687124585 | P88: 200.3112835 | Q88: 0.2258884093 | R88: 0.1352085478 | U88: 0.01274787231
A89: 57 | B89: =OFFSET(InputPriceData!B$15,CalculationsAndCharts!$A89+$A$11,0,1,1) -> 2014-09-15 | C89: =OFFSET(InputPriceData!G$15,CalculationsAndCharts!$A89+$A$11,IF($C$7,8,0),1,1) -> 76401000 | D89: =OFFSET(InputPriceData!C$15,CalculationsAndCharts!$A89+$A$11,IF($C$7,8,0),1,1) -> 199.160004 | E89: =OFFSET(InputPriceData!D$15,CalculationsAndCharts!$A89+$A$11,IF($C$7,8,0),1,1) -> 199.320007 | F89: =OFFSET(InputPriceData!E$15,CalculationsAndCharts!$A89+$A$11,IF($C$7,8,0),1,1) -> 198.380005 | G89: =OFFSET(InputPriceData!F$15,CalculationsAndCharts!$A89+$A$11,IF($C$7,8,0),1,1) -> 198.979996 | H89: -1.270809959 | I89: 200.250806 | J89: 201.25206 | K89: 199.2495519 | L89: 0.3092218968 | M89: 0.1554035094 | O89: -1.267356588 | P89: 200.2473526 | Q89: 0.315185084 | R89: 0.1900804646 | U89: 0.03467695522
A90: 58 | B90: =OFFSET(InputPriceData!B$15,CalculationsAndCharts!$A90+$A$11,0,1,1) -> 2014-09-12 | C90: =OFFSET(InputPriceData!G$15,CalculationsAndCharts!$A90+$A$11,IF($C$7,8,0),1,1) -> 117479000 | D90: =OFFSET(InputPriceData!C$15,CalculationsAndCharts!$A90+$A$11,IF($C$7,8,0),1,1) -> 200.100006 | E90: =OFFSET(InputPriceData!D$15,CalculationsAndCharts!$A90+$A$11,IF($C$7,8,0),1,1) -> 200.119995 | F90: =OFFSET(InputPriceData!E$15,CalculationsAndCharts!$A90+$A$11,IF($C$7,8,0),1,1) -> 198.559998 | G90: =OFFSET(InputPriceData!F$15,CalculationsAndCharts!$A90+$A$11,IF($C$7,8,0),1,1) -> 199.130005 | H90: -1.090592343 | I90: 200.2205973 | J90: 201.2217003 | K90: 199.2194944 | L90: 0.4274385369 | M90: 0.2146530036 | O90: -1.108445411 | P90: 200.2384504 | Q90: 0.4794101263 | R90: 0.2889027957 | U90: 0.07424979207
A91: 59 | B91: =OFFSET(InputPriceData!B$15,CalculationsAndCharts!$A91+$A$11,0,1,1) -> 2014-09-11 | C91: =OFFSET(InputPriceData!G$15,CalculationsAndCharts!$A91+$A$11,IF($C$7,8,0),1,1) -> 66774400 | D91: =OFFSET(InputPriceData!C$15,CalculationsAndCharts!$A91+$A$11,IF($C$7,8,0),1,1) -> 199.270004 | E91: =OFFSET(InputPriceData!D$15,CalculationsAndCharts!$A91+$A$11,IF($C$7,8,0),1,1) -> 200.330002 | F91: =OFFSET(InputPriceData!E$15,CalculationsAndCharts!$A91+$A$11,IF($C$7,8,0),1,1) -> 199.119995 | G91: =OFFSET(InputPriceData!F$15,CalculationsAndCharts!$A91+$A$11,IF($C$7,8,0),1,1) -> 200.300003 | H91: 0.1615619423 | I91: 200.1384411 | J91: 201.1391333 | K91: 199.1377489 | L91: 0.5055575897 | M91: 0.2524001908 | O91: 0.1343865453 | P91: 200.1656165 | Q91: 0.6014471144 | R91: 0.3603277716 | U91: 0.1079275808
A92: 60 | B92: =OFFSET(InputPriceData!B$15,CalculationsAndCharts!$A92+$A$11,0,1,1) -> 2014-09-10 | C92: =OFFSET(InputPriceData!G$15,CalculationsAndCharts!$A92+$A$11,IF($C$7,8,0),1,1) -> 67251000 | D92: =OFFSET(InputPriceData!C$15,CalculationsAndCharts!$A92+$A$11,IF($C$7,8,0),1,1) -> 199.429993 | E92: =OFFSET(InputPriceData!D$15,CalculationsAndCharts!$A92+$A$11,IF($C$7,8,0),1,1) -> 200.199997 | F92: =OFFSET(InputPriceData!E$15,CalculationsAndCharts!$A92+$A$11,IF($C$7,8,0),1,1) -> 198.770004 | G92: =OFFSET(InputPriceData!F$15,CalculationsAndCharts!$A92+$A$11,IF($C$7,8,0),1,1) -> 200.070007 | H92: 0.05465092537 | I92: 200.0153561 | J92: 201.0154329 | K92: 199.0152793 | L92: 0.5488703025 | M92: 0.2743391229 | O92: 0.02812203584 | P92: 200.041885 | Q92: 0.6862994089 | R92: 0.4116355585 | U92: 0.1372964355
A93: 61 | B93: =OFFSET(InputPriceData!B$15,CalculationsAndCharts!$A93+$A$11,0,1,1) -> 2014-09-09 | C93: =OFFSET(InputPriceData!G$15,CalculationsAndCharts!$A93+$A$11,IF($C$7,8,0),1,1) -> 88591000 | D93: =OFFSET(InputPriceData!C$15,CalculationsAndCharts!$A93+$A$11,IF($C$7,8,0),1,1) -> 200.410004 | E93: =OFFSET(InputPriceData!D$15,CalculationsAndCharts!$A93+$A$11,IF($C$7,8,0),1,1) -> 200.550003 | F93: =OFFSET(InputPriceData!E$15,CalculationsAndCharts!$A93+$A$11,IF($C$7,8,0),1,1) -> 198.910004 | G93: =OFFSET(InputPriceData!F$15,CalculationsAndCharts!$A93+$A$11,IF($C$7,8,0),1,1) -> 199.320007 | H93: -0.5991989385 | I93: 199.9192059 | J93: 200.918802 | K93: 198.9196099 | L93: 0.6247788582 | M93: 0.3134551657 | O93: -0.6319778 | P93: 199.9519848 | Q93: 0.818786686 | R93: 0.4929480176 | U93: 0.1794928519
A94: 62 | B94: =OFFSET(InputPriceData!B$15,CalculationsAndCharts!$A94+$A$11,0,1,1) -> 2014-09-08 | C94: =OFFSET(InputPriceData!G$15,CalculationsAndCharts!$A94+$A$11,IF($C$7,8,0),1,1) -> 64146000 | D94: =OFFSET(InputPriceData!C$15,CalculationsAndCharts!$A94+$A$11,IF($C$7,8,0),1,1) -> 200.919998 | E94: =OFFSET(InputPriceData!D$15,CalculationsAndCharts!$A94+$A$11,IF($C$7,8,0),1,1) -> 201.210007 | F94: =OFFSET(InputPriceData!E$15,CalculationsAndCharts!$A94+$A$11,IF($C$7,8,0),1,1) -> 200 | G94: =OFFSET(InputPriceData!F$15,CalculationsAndCharts!$A94+$A$11,IF($C$7,8,0),1,1) -> 200.589996 | H94: 0.7933036459 | I94: 199.7966924 | J94: 200.7956758 | K94: 198.7977089 | L94: 0.6805539622 | M94: 0.3392761233 | O94: 0.760693576 | P94: 199.8293024 | Q94: 0.934082908 | R94: 0.5588012922 | U94: 0.2195251689
A95: 63 | B95: =OFFSET(InputPriceData!B$15,CalculationsAndCharts!$A95+$A$11,0,1,1) -> 2014-09-05 | C95: =OFFSET(InputPriceData!G$15,CalculationsAndCharts!$A95+$A$11,IF($C$7,8,0),1,1) -> 102177000 | D95: =OFFSET(InputPriceData!C$15,CalculationsAndCharts!$A95+$A$11,IF($C$7,8,0),1,1) -> 200.169998 | E95: =OFFSET(InputPriceData!D$15,CalculationsAndCharts!$A95+$A$11,IF($C$7,8,0),1,1) -> 201.190002 | F95: =OFFSET(InputPriceData!E$15,CalculationsAndCharts!$A95+$A$11,IF($C$7,8,0),1,1) -> 199.410004 | G95: =OFFSET(InputPriceData!F$15,CalculationsAndCharts!$A95+$A$11,IF($C$7,8,0),1,1) -> 201.110001 | H95: 1.509997422 | I95: 199.6000036 | J95: 200.5980036 | K95: 198.6020036 | L95: 0.6614125605 | M95: 0.3288809891 | O95: 1.496783003 | P95: 199.613218 | Q95: 0.9614513925 | R95: 0.5736868705 | U95: 0.2448058814
A96: 64 | B96: =OFFSET(InputPriceData!B$15,CalculationsAndCharts!$A96+$A$11,0,1,1) -> 2014-09-04 | C96: =OFFSET(InputPriceData!G$15,CalculationsAndCharts!$A96+$A$11,IF($C$7,8,0),1,1) -> 85236000 | D96: =OFFSET(InputPriceData!C$15,CalculationsAndCharts!$A96+$A$11,IF($C$7,8,0),1,1) -> 200.839996 | E96: =OFFSET(InputPriceData!D$15,CalculationsAndCharts!$A96+$A$11,IF($C$7,8,0),1,1) -> 201.580002 | F96: =OFFSET(InputPriceData!E$15,CalculationsAndCharts!$A96+$A$11,IF($C$7,8,0),1,1) -> 199.660004 | G96: =OFFSET(InputPriceData!F$15,CalculationsAndCharts!$A96+$A$11,IF($C$7,8,0),1,1) -> 200.210007 | H96: 0.8056731655 | I96: 199.4043338 | J96: 200.4013555 | K96: 198.4073122 | L96: 0.6368450325 | M96: 0.3180885122 | O96: 0.8129408639 | P96: 199.3970661 | Q96: 0.9857531065 | R96: 0.5908314702 | U96: 0.272742958
A97: 65 | B97: =OFFSET(InputPriceData!B$15,CalculationsAndCharts!$A97+$A$11,0,1,1) -> 2014-09-03 | C97: =OFFSET(InputPriceData!G$15,CalculationsAndCharts!$A97+$A$11,IF($C$7,8,0),1,1) -> 57462000 | D97: =OFFSET(InputPriceData!C$15,CalculationsAndCharts!$A97+$A$11,IF($C$7,8,0),1,1) -> 201.380005 | E97: =OFFSET(InputPriceData!D$15,CalculationsAndCharts!$A97+$A$11,IF($C$7,8,0),1,1) -> 201.410004 | F97: =OFFSET(InputPriceData!E$15,CalculationsAndCharts!$A97+$A$11,IF($C$7,8,0),1,1) -> 200.220001 | G97: =OFFSET(InputPriceData!F$15,CalculationsAndCharts!$A97+$A$11,IF($C$7,8,0),1,1) -> 200.5 | H97: =$C$20*(G97-2*G98+G99)+2*$C$21*H98-$C$22*H99 -> 1.281836214 | I97: 199.2181638 | J97: 200.2142546 | K97: 198.222073 | L97: 0.6152727594 | M97: 0.3068692067 | O97: 1.308535215 | P97: 199.1914648 | Q97: 1.017809287 | R97: 0.6091626653 | U97: 0.3022934586
A98: 66 | B98: =OFFSET(InputPriceData!B$15,CalculationsAndCharts!$A98+$A$11,0,1,1) -> 2014-09-02 | C98: =OFFSET(InputPriceData!G$15,CalculationsAndCharts!$A98+$A$11,IF($C$7,8,0),1,1) -> 72426000 | D98: =OFFSET(InputPriceData!C$15,CalculationsAndCharts!$A98+$A$11,IF($C$7,8,0),1,1) -> 200.970001 | E98: =OFFSET(InputPriceData!D$15,CalculationsAndCharts!$A98+$A$11,IF($C$7,8,0),1,1) -> 201 | F98: =OFFSET(InputPriceData!E$15,CalculationsAndCharts!$A98+$A$11,IF($C$7,8,0),1,1) -> 199.860001 | G98: =OFFSET(InputPriceData!F$15,CalculationsAndCharts!$A98+$A$11,IF($C$7,8,0),1,1) -> 200.610001 | H98: 1.604839959 | I98: =G98-H98 -> 199.005161 | J98: =I98*(1+$F$15) -> 200.0001868 | K98: =I98*(1-$F$15) -> 198.0101352 | L98: =$F$20*(I98-2*I99+I100)+2*$F$21*L99-$F$22*L100 -> 0.5582105171 | M98: =100*$F$16*L98/G98 -> 0.2782565746 | O98: =$U$20*($G98-2*$G99+$G100)+2*$U$21*O99-$U$22*O100 -> 1.659226025 | P98: =$G98-O98 -> 198.950775 | Q98: =$X$20*(P98-2*P99+P100)+2*$X$21*Q99-$X$22*Q100 -> 1.00886859 | R98: =100*$F$17*Q98/$G98 -> 0.6034805355 | U98: =R98-M98 -> 0.3252239609 | X98: =IF($A98=$E$25,X$31,NA()) -> 
A99: 67 | B99: =OFFSET(InputPriceData!B$15,CalculationsAndCharts!$A99+$A$11,0,1,1) -> 2014-08-29 | C99: =OFFSET(InputPriceData!G$15,CalculationsAndCharts!$A99+$A$11,IF($C$7,8,0),1,1) -> 65907000 | D99: =OFFSET(InputPriceData!C$15,CalculationsAndCharts!$A99+$A$11,IF($C$7,8,0),1,1) -> 200.449997 | E99: =OFFSET(InputPriceData!D$15,CalculationsAndCharts!$A99+$A$11,IF($C$7,8,0),1,1) -> 200.729996 | F99: =OFFSET(InputPriceData!E$15,CalculationsAndCharts!$A99+$A$11,IF($C$7,8,0),1,1) -> 199.820007 | G99: =OFFSET(InputPriceData!F$15,CalculationsAndCharts!$A99+$A$11,IF($C$7,8,0),1,1) -> 200.710007 | H99: 1.939180873 | I99: 198.7708261 | J99: 199.7646803 | K99: 197.776972 | L99: 0.4664559969 | M99: 0.2324029598 | O99: 2.028630763 | P99: 198.6813762 | Q99: 0.9580118438 | R99: 0.5727737395 | U99: 0.3403707797
A100: 68 | B100: =OFFSET(InputPriceData!B$15,CalculationsAndCharts!$A100+$A$11,0,1,1) -> 2014-08-28 | C100: =OFFSET(InputPriceData!G$15,CalculationsAndCharts!$A100+$A$11,IF($C$7,8,0),1,1) -> 58330000 | D100: =OFFSET(InputPriceData!C$15,CalculationsAndCharts!$A100+$A$11,IF($C$7,8,0),1,1) -> 199.589996 | E100: =OFFSET(InputPriceData!D$15,CalculationsAndCharts!$A100+$A$11,IF($C$7,8,0),1,1) -> 200.270004 | F100: =OFFSET(InputPriceData!E$15,CalculationsAndCharts!$A100+$A$11,IF($C$7,8,0),1,1) -> 199.389999 | G100: =OFFSET(InputPriceData!F$15,CalculationsAndCharts!$A100+$A$11,IF($C$7,8,0),1,1) -> 200.139999 | H100: 1.601139027 | I100: 198.53886 | J100: 199.5315543 | K100: 197.5461657 | L100: 0.360684409 | M100: 0.1802160542 | O100: 1.727375861 | P100: 198.4126231 | Q100: 0.8896660286 | R100: 0.5334262214 | U100: 0.3532101673
A101: 69 | B101: =OFFSET(InputPriceData!B$15,CalculationsAndCharts!$A101+$A$11,0,1,1) -> 2014-08-27 | C101: =OFFSET(InputPriceData!G$15,CalculationsAndCharts!$A101+$A$11,IF($C$7,8,0),1,1) -> 47874000 | D101: =OFFSET(InputPriceData!C$15,CalculationsAndCharts!$A101+$A$11,IF($C$7,8,0),1,1) -> 200.429993 | E101: =OFFSET(InputPriceData!D$15,CalculationsAndCharts!$A101+$A$11,IF($C$7,8,0),1,1) -> 200.570007 | F101: =OFFSET(InputPriceData!E$15,CalculationsAndCharts!$A101+$A$11,IF($C$7,8,0),1,1) -> 199.940002 | G101: =OFFSET(InputPriceData!F$15,CalculationsAndCharts!$A101+$A$11,IF($C$7,8,0),1,1) -> 200.25 | H101: 1.940931804 | I101: 198.3090682 | J101: 199.3006135 | K101: 197.3175229 | L101: 0.2391186572 | M101: 0.119410066 | O101: 2.105813945 | P101: 198.1441861 | Q101: 0.800656051 | R101: 0.4797938883 | U101: 0.3603838222
A102: 70 | B102: =OFFSET(InputPriceData!B$15,CalculationsAndCharts!$A102+$A$11,0,1,1) -> 2014-08-26 | C102: =OFFSET(InputPriceData!G$15,CalculationsAndCharts!$A102+$A$11,IF($C$7,8,0),1,1) -> 47298000 | D102: =OFFSET(InputPriceData!C$15,CalculationsAndCharts!$A102+$A$11,IF($C$7,8,0),1,1) -> 200.330002 | E102: =OFFSET(InputPriceData!D$15,CalculationsAndCharts!$A102+$A$11,IF($C$7,8,0),1,1) -> 200.820007 | F102: =OFFSET(InputPriceData!E$15,CalculationsAndCharts!$A102+$A$11,IF($C$7,8,0),1,1) -> 200.279999 | G102: =OFFSET(InputPriceData!F$15,CalculationsAndCharts!$A102+$A$11,IF($C$7,8,0),1,1) -> 200.330002 | H102: 2.272124304 | I102: 198.0578777 | J102: 199.0481671 | K102: 197.0675883 | L102: 0.07466167936 | M102: 0.03726934489 | O102: 2.483699505 | P102: 197.8463025 | Q102: 0.6551324479 | R102: 0.3924319521 | U102: 0.3551626072
A103: 71 | B103: =OFFSET(InputPriceData!B$15,CalculationsAndCharts!$A103+$A$11,0,1,1) -> 2014-08-25 | C103: =OFFSET(InputPriceData!G$15,CalculationsAndCharts!$A103+$A$11,IF($C$7,8,0),1,1) -> 63855000 | D103: =OFFSET(InputPriceData!C$15,CalculationsAndCharts!$A103+$A$11,IF($C$7,8,0),1,1) -> 200.139999 | E103: =OFFSET(InputPriceData!D$15,CalculationsAndCharts!$A103+$A$11,IF($C$7,8,0),1,1) -> 200.589996 | F103: =OFFSET(InputPriceData!E$15,CalculationsAndCharts!$A103+$A$11,IF($C$7,8,0),1,1) -> 199.149994 | G103: =OFFSET(InputPriceData!F$15,CalculationsAndCharts!$A103+$A$11,IF($C$7,8,0),1,1) -> 200.199997 | H103: 2.407068826 | I103: 197.7929282 | J103: 198.7818928 | K103: 196.8039635 | L103: -0.1301368493 | M103: -0.06500342218 | O103: 2.671920704 | P103: 197.5280763 | Q103: 0.4533203724 | R103: 0.271720507 | U103: 0.3367239292
A104: 72 | B104: =OFFSET(InputPriceData!B$15,CalculationsAndCharts!$A104+$A$11,0,1,1) -> 2014-08-22 | C104: =OFFSET(InputPriceData!G$15,CalculationsAndCharts!$A104+$A$11,IF($C$7,8,0),1,1) -> 76107000 | D104: =OFFSET(InputPriceData!C$15,CalculationsAndCharts!$A104+$A$11,IF($C$7,8,0),1,1) -> 199.339996 | E104: =OFFSET(InputPriceData!D$15,CalculationsAndCharts!$A104+$A$11,IF($C$7,8,0),1,1) -> 199.690002 | F104: =OFFSET(InputPriceData!E$15,CalculationsAndCharts!$A104+$A$11,IF($C$7,8,0),1,1) -> 198.740005 | G104: =OFFSET(InputPriceData!F$15,CalculationsAndCharts!$A104+$A$11,IF($C$7,8,0),1,1) -> 199.190002 | H104: 1.636684201 | I104: 197.5533178 | J104: 198.5410844 | K104: 196.5655512 | L104: -0.33829762 | M104: -0.1698366467 | O104: 1.951688995 | P104: 197.238313 | Q104: 0.2394574723 | R104: 0.1442587298 | U104: 0.3140953765
A105: 73 | B105: =OFFSET(InputPriceData!B$15,CalculationsAndCharts!$A105+$A$11,0,1,1) -> 2014-08-21 | C105: =OFFSET(InputPriceData!G$15,CalculationsAndCharts!$A105+$A$11,IF($C$7,8,0),1,1) -> 67791000 | D105: =OFFSET(InputPriceData!C$15,CalculationsAndCharts!$A105+$A$11,IF($C$7,8,0),1,1) -> 199.089996 | E105: =OFFSET(InputPriceData!D$15,CalculationsAndCharts!$A105+$A$11,IF($C$7,8,0),1,1) -> 199.759995 | F105: =OFFSET(InputPriceData!E$15,CalculationsAndCharts!$A105+$A$11,IF($C$7,8,0),1,1) -> 198.929993 | G105: =OFFSET(InputPriceData!F$15,CalculationsAndCharts!$A105+$A$11,IF($C$7,8,0),1,1) -> 199.5 | H105: 2.175584366 | I105: 197.3244156 | J105: 198.3110377 | K105: 196.3377936 | L105: -0.5649327103 | M105: -0.2831742909 | O105: 2.541140911 | P105: 196.9588591 | Q105: -0.006833511019 | R105: -0.004110382568 | U105: 0.2790639083
A106: 74 | B106: =OFFSET(InputPriceData!B$15,CalculationsAndCharts!$A106+$A$11,0,1,1) -> 2014-08-20 | C106: =OFFSET(InputPriceData!G$15,CalculationsAndCharts!$A106+$A$11,IF($C$7,8,0),1,1) -> 72763000 | D106: =OFFSET(InputPriceData!C$15,CalculationsAndCharts!$A106+$A$11,IF($C$7,8,0),1,1) -> 198.119995 | E106: =OFFSET(InputPriceData!D$15,CalculationsAndCharts!$A106+$A$11,IF($C$7,8,0),1,1) -> 199.160004 | F106: =OFFSET(InputPriceData!E$15,CalculationsAndCharts!$A106+$A$11,IF($C$7,8,0),1,1) -> 198.080002 | G106: =OFFSET(InputPriceData!F$15,CalculationsAndCharts!$A106+$A$11,IF($C$7,8,0),1,1) -> 198.919998 | H106: 1.828845727 | I106: 197.0911523 | J106: 198.076608 | K106: 196.1056965 | L106: -0.8278356337 | M106: -0.4161651126 | O106: 2.249231259 | P106: 196.6707667 | Q106: -0.3104871484 | R106: -0.1873037311 | U106: 0.2288613815
A107: 75 | B107: =OFFSET(InputPriceData!B$15,CalculationsAndCharts!$A107+$A$11,0,1,1) -> 2014-08-19 | C107: =OFFSET(InputPriceData!G$15,CalculationsAndCharts!$A107+$A$11,IF($C$7,8,0),1,1) -> 59135000 | D107: =OFFSET(InputPriceData!C$15,CalculationsAndCharts!$A107+$A$11,IF($C$7,8,0),1,1) -> 197.839996 | E107: =OFFSET(InputPriceData!D$15,CalculationsAndCharts!$A107+$A$11,IF($C$7,8,0),1,1) -> 198.539993 | F107: =OFFSET(InputPriceData!E$15,CalculationsAndCharts!$A107+$A$11,IF($C$7,8,0),1,1) -> 197.440002 | G107: =OFFSET(InputPriceData!F$15,CalculationsAndCharts!$A107+$A$11,IF($C$7,8,0),1,1) -> 198.389999 | H107: 1.505994159 | I107: 196.8840048 | J107: 197.8684249 | K107: 195.8995848 | L107: -1.098356783 | M107: -0.5536351575 | O107: 1.977847763 | P107: 196.4121512 | Q107: -0.6383014245 | R107: -0.3860888721 | U107: 0.1675462854
A108: 76 | B108: =OFFSET(InputPriceData!B$15,CalculationsAndCharts!$A108+$A$11,0,1,1) -> 2014-08-18 | C108: =OFFSET(InputPriceData!G$15,CalculationsAndCharts!$A108+$A$11,IF($C$7,8,0),1,1) -> 75424000 | D108: =OFFSET(InputPriceData!C$15,CalculationsAndCharts!$A108+$A$11,IF($C$7,8,0),1,1) -> 196.800003 | E108: =OFFSET(InputPriceData!D$15,CalculationsAndCharts!$A108+$A$11,IF($C$7,8,0),1,1) -> 197.449997 | F108: =OFFSET(InputPriceData!E$15,CalculationsAndCharts!$A108+$A$11,IF($C$7,8,0),1,1) -> 196.690002 | G108: =OFFSET(InputPriceData!F$15,CalculationsAndCharts!$A108+$A$11,IF($C$7,8,0),1,1) -> 197.360001 | H108: 0.6391287791 | I108: 196.7208722 | J108: 197.7044766 | K108: 195.7372679 | L108: -1.356947625 | M108: -0.687549462 | O108: 1.154181146 | P108: 196.2058199 | Q108: -0.9671650202 | R108: -0.5880614199 | U108: 0.09948804208
A109: 77 | B109: =OFFSET(InputPriceData!B$15,CalculationsAndCharts!$A109+$A$11,0,1,1) -> 2014-08-15 | C109: =OFFSET(InputPriceData!G$15,CalculationsAndCharts!$A109+$A$11,IF($C$7,8,0),1,1) -> 139951000 | D109: =OFFSET(InputPriceData!C$15,CalculationsAndCharts!$A109+$A$11,IF($C$7,8,0),1,1) -> 196.470001 | E109: =OFFSET(InputPriceData!D$15,CalculationsAndCharts!$A109+$A$11,IF($C$7,8,0),1,1) -> 196.649994 | F109: =OFFSET(InputPriceData!E$15,CalculationsAndCharts!$A109+$A$11,IF($C$7,8,0),1,1) -> 194.309998 | G109: =OFFSET(InputPriceData!F$15,CalculationsAndCharts!$A109+$A$11,IF($C$7,8,0),1,1) -> 195.720001 | H109: -0.9247167991 | I109: 196.6447178 | J109: 197.6279414 | K109: 195.6614942 | L109: -1.554189247 | M109: -0.7940881052 | O109: -0.3864566638 | P109: 196.1064577 | Q109: -1.234544356 | R109: -0.7569248007 | U109: 0.03716330445
A110: 78 | B110: =OFFSET(InputPriceData!B$15,CalculationsAndCharts!$A110+$A$11,0,1,1) -> 2014-08-14 | C110: =OFFSET(InputPriceData!G$15,CalculationsAndCharts!$A110+$A$11,IF($C$7,8,0),1,1) -> 57371000 | D110: =OFFSET(InputPriceData!C$15,CalculationsAndCharts!$A110+$A$11,IF($C$7,8,0),1,1) -> 195.160004 | E110: =OFFSET(InputPriceData!D$15,CalculationsAndCharts!$A110+$A$11,IF($C$7,8,0),1,1) -> 195.759995 | F110: =OFFSET(InputPriceData!E$15,CalculationsAndCharts!$A110+$A$11,IF($C$7,8,0),1,1) -> 194.979996 | G110: =OFFSET(InputPriceData!F$15,CalculationsAndCharts!$A110+$A$11,IF($C$7,8,0),1,1) -> 195.759995 | H110: -0.8612394286 | I110: 196.6212344 | J110: 197.6043406 | K110: 195.6381283 | L110: -1.716513041 | M110: -0.8768456705 | O110: -0.3122889388 | P110: 196.0722839 | Q110: -1.471910301 | R110: -0.9022744208 | U110: -0.02542875033
A111: 79 | B111: =OFFSET(InputPriceData!B$15,CalculationsAndCharts!$A111+$A$11,0,1,1) -> 2014-08-13 | C111: =OFFSET(InputPriceData!G$15,CalculationsAndCharts!$A111+$A$11,IF($C$7,8,0),1,1) -> 69047000 | D111: =OFFSET(InputPriceData!C$15,CalculationsAndCharts!$A111+$A$11,IF($C$7,8,0),1,1) -> 194.289993 | E111: =OFFSET(InputPriceData!D$15,CalculationsAndCharts!$A111+$A$11,IF($C$7,8,0),1,1) -> 195.059998 | F111: =OFFSET(InputPriceData!E$15,CalculationsAndCharts!$A111+$A$11,IF($C$7,8,0),1,1) -> 193.960007 | G111: =OFFSET(InputPriceData!F$15,CalculationsAndCharts!$A111+$A$11,IF($C$7,8,0),1,1) -> 194.839996 | H111: -1.787001586 | I111: 196.6269976 | J111: 197.6101326 | K111: 195.6438626 | L111: -1.862881503 | M111: -0.9561083667 | O111: -1.234692598 | P111: 196.0746886 | Q111: -1.702697414 | R111: -1.048674265 | U111: -0.09256589852
A112: 80 | B112: =OFFSET(InputPriceData!B$15,CalculationsAndCharts!$A112+$A$11,0,1,1) -> 2014-08-12 | C112: =OFFSET(InputPriceData!G$15,CalculationsAndCharts!$A112+$A$11,IF($C$7,8,0),1,1) -> 73632000 | D112: =OFFSET(InputPriceData!C$15,CalculationsAndCharts!$A112+$A$11,IF($C$7,8,0),1,1) -> 193.610001 | E112: =OFFSET(InputPriceData!D$15,CalculationsAndCharts!$A112+$A$11,IF($C$7,8,0),1,1) -> 194.149994 | F112: =OFFSET(InputPriceData!E$15,CalculationsAndCharts!$A112+$A$11,IF($C$7,8,0),1,1) -> 192.940002 | G112: =OFFSET(InputPriceData!F$15,CalculationsAndCharts!$A112+$A$11,IF($C$7,8,0),1,1) -> 193.529999 | H112: -3.182870042 | I112: 196.712869 | J112: 197.6964334 | K112: 195.7293047 | L112: -1.935378899 | M112: -1.000040774 | O112: -2.648197739 | P112: 196.1781967 | Q112: -1.852958808 | R112: -1.148943616 | U112: -0.1489028427
A113: 81 | B113: =OFFSET(InputPriceData!B$15,CalculationsAndCharts!$A113+$A$11,0,1,1) -> 2014-08-11 | C113: =OFFSET(InputPriceData!G$15,CalculationsAndCharts!$A113+$A$11,IF($C$7,8,0),1,1) -> 74544000 | D113: =OFFSET(InputPriceData!C$15,CalculationsAndCharts!$A113+$A$11,IF($C$7,8,0),1,1) -> 193.970001 | E113: =OFFSET(InputPriceData!D$15,CalculationsAndCharts!$A113+$A$11,IF($C$7,8,0),1,1) -> 194.660004 | F113: =OFFSET(InputPriceData!E$15,CalculationsAndCharts!$A113+$A$11,IF($C$7,8,0),1,1) -> 193.710007 | G113: =OFFSET(InputPriceData!F$15,CalculationsAndCharts!$A113+$A$11,IF($C$7,8,0),1,1) -> 193.800003 | H113: -3.039726581 | I113: 196.8397296 | J113: 197.8239282 | K113: 195.8555309 | L113: -1.964373616 | M113: -1.013608661 | O113: -2.534999725 | P113: 196.3350027 | Q113: -1.958069637 | R113: -1.212427001 | U113: -0.1988183396
A114: 82 | B114: =OFFSET(InputPriceData!B$15,CalculationsAndCharts!$A114+$A$11,0,1,1) -> 2014-08-08 | C114: =OFFSET(InputPriceData!G$15,CalculationsAndCharts!$A114+$A$11,IF($C$7,8,0),1,1) -> 117014000 | D114: =OFFSET(InputPriceData!C$15,CalculationsAndCharts!$A114+$A$11,IF($C$7,8,0),1,1) -> 191.460007 | E114: =OFFSET(InputPriceData!D$15,CalculationsAndCharts!$A114+$A$11,IF($C$7,8,0),1,1) -> 193.369995 | F114: =OFFSET(InputPriceData!E$15,CalculationsAndCharts!$A114+$A$11,IF($C$7,8,0),1,1) -> 190.949997 | G114: =OFFSET(InputPriceData!F$15,CalculationsAndCharts!$A114+$A$11,IF($C$7,8,0),1,1) -> 193.240005 | H114: -3.74236346 | I114: 196.9823685 | J114: 197.9672803 | K114: 195.9974566 | L114: -1.970160689 | M114: -1.019540798 | O114: -3.274191587 | P114: 196.5141966 | Q114: -2.042180418 | R114: -1.268172448 | U114: -0.2486316501
A115: 83 | B115: =OFFSET(InputPriceData!B$15,CalculationsAndCharts!$A115+$A$11,0,1,1) -> 2014-08-07 | C115: =OFFSET(InputPriceData!G$15,CalculationsAndCharts!$A115+$A$11,IF($C$7,8,0),1,1) -> 135733000 | D115: =OFFSET(InputPriceData!C$15,CalculationsAndCharts!$A115+$A$11,IF($C$7,8,0),1,1) -> 192.940002 | E115: =OFFSET(InputPriceData!D$15,CalculationsAndCharts!$A115+$A$11,IF($C$7,8,0),1,1) -> 193.130005 | F115: =OFFSET(InputPriceData!E$15,CalculationsAndCharts!$A115+$A$11,IF($C$7,8,0),1,1) -> 190.550003 | G115: =OFFSET(InputPriceData!F$15,CalculationsAndCharts!$A115+$A$11,IF($C$7,8,0),1,1) -> 191.029999 | H115: -6.202122197 | I115: 197.2321212 | J115: 198.2182818 | K115: 196.2459606 | L115: -1.850966994 | M115: -0.9689404827 | O115: -5.801159635 | P115: 196.8311586 | Q115: -1.974108874 | R115: -1.240083056 | U115: -0.2711425731
A116: 84 | B116: =OFFSET(InputPriceData!B$15,CalculationsAndCharts!$A116+$A$11,0,1,1) -> 2014-08-06 | C116: =OFFSET(InputPriceData!G$15,CalculationsAndCharts!$A116+$A$11,IF($C$7,8,0),1,1) -> 94818000 | D116: =OFFSET(InputPriceData!C$15,CalculationsAndCharts!$A116+$A$11,IF($C$7,8,0),1,1) -> 191.110001 | E116: =OFFSET(InputPriceData!D$15,CalculationsAndCharts!$A116+$A$11,IF($C$7,8,0),1,1) -> 192.889999 | F116: =OFFSET(InputPriceData!E$15,CalculationsAndCharts!$A116+$A$11,IF($C$7,8,0),1,1) -> 191.080002 | G116: =OFFSET(InputPriceData!F$15,CalculationsAndCharts!$A116+$A$11,IF($C$7,8,0),1,1) -> 192.070007 | H116: -5.466313259 | I116: 197.5363203 | J116: 198.5240019 | K116: 196.5486387 | L116: -1.644954382 | M116: -0.8564348008 | O116: -5.151644056 | P116: 197.2216511 | Q116: -1.795162739 | R116: -1.121567766 | U116: -0.265132965
A117: 85 | B117: =OFFSET(InputPriceData!B$15,CalculationsAndCharts!$A117+$A$11,0,1,1) -> 2014-08-05 | C117: =OFFSET(InputPriceData!G$15,CalculationsAndCharts!$A117+$A$11,IF($C$7,8,0),1,1) -> 152690000 | D117: =OFFSET(InputPriceData!C$15,CalculationsAndCharts!$A117+$A$11,IF($C$7,8,0),1,1) -> 193.100006 | E117: =OFFSET(InputPriceData!D$15,CalculationsAndCharts!$A117+$A$11,IF($C$7,8,0),1,1) -> 193.600006 | F117: =OFFSET(InputPriceData!E$15,CalculationsAndCharts!$A117+$A$11,IF($C$7,8,0),1,1) -> 191.309998 | G117: =OFFSET(InputPriceData!F$15,CalculationsAndCharts!$A117+$A$11,IF($C$7,8,0),1,1) -> 192.009995 | H117: -5.809317788 | I117: 197.8193128 | J117: 198.8084094 | K117: 196.8302162 | L117: -1.421302314 | M117: -0.740223088 | O117: -5.581695856 | P117: 197.5916909 | Q117: -1.588230461 | R117: -0.9925923665 | U117: -0.2523692784
A118: 86 | B118: =OFFSET(InputPriceData!B$15,CalculationsAndCharts!$A118+$A$11,0,1,1) -> 2014-08-04 | C118: =OFFSET(InputPriceData!G$15,CalculationsAndCharts!$A118+$A$11,IF($C$7,8,0),1,1) -> 91340000 | D118: =OFFSET(InputPriceData!C$15,CalculationsAndCharts!$A118+$A$11,IF($C$7,8,0),1,1) -> 192.869995 | E118: =OFFSET(InputPriceData!D$15,CalculationsAndCharts!$A118+$A$11,IF($C$7,8,0),1,1) -> 194.300003 | F118: =OFFSET(InputPriceData!E$15,CalculationsAndCharts!$A118+$A$11,IF($C$7,8,0),1,1) -> 192.050003 | G118: =OFFSET(InputPriceData!F$15,CalculationsAndCharts!$A118+$A$11,IF($C$7,8,0),1,1) -> 193.889999 | H118: -4.159138602 | I118: 198.0491376 | J118: 199.0393833 | K118: 197.0588919 | L118: -1.212890602 | M118: -0.6255560413 | O118: -4.011023774 | P118: 197.9010228 | Q118: -1.393741115 | R118: -0.8625970119 | U118: -0.2370409706
A119: 87 | B119: =OFFSET(InputPriceData!B$15,CalculationsAndCharts!$A119+$A$11,0,1,1) -> 2014-08-01 | C119: =OFFSET(InputPriceData!G$15,CalculationsAndCharts!$A119+$A$11,IF($C$7,8,0),1,1) -> 189261000 | D119: =OFFSET(InputPriceData!C$15,CalculationsAndCharts!$A119+$A$11,IF($C$7,8,0),1,1) -> 192.559998 | E119: =OFFSET(InputPriceData!D$15,CalculationsAndCharts!$A119+$A$11,IF($C$7,8,0),1,1) -> 193.759995 | F119: =OFFSET(InputPriceData!E$15,CalculationsAndCharts!$A119+$A$11,IF($C$7,8,0),1,1) -> 191.570007 | G119: =OFFSET(InputPriceData!F$15,CalculationsAndCharts!$A119+$A$11,IF($C$7,8,0),1,1) -> 192.5 | H119: -5.771328162 | I119: 198.2713282 | J119: 199.2626848 | K119: 197.2799715 | L119: -0.9742298063 | M119: -0.5060934059 | O119: -5.706364223 | P119: 198.2063642 | Q119: -1.153684226 | R119: -0.7191797771 | U119: -0.2130863713
A120: 88 | B120: =OFFSET(InputPriceData!B$15,CalculationsAndCharts!$A120+$A$11,0,1,1) -> 2014-07-31 | C120: =OFFSET(InputPriceData!G$15,CalculationsAndCharts!$A120+$A$11,IF($C$7,8,0),1,1) -> 183479000 | D120: =OFFSET(InputPriceData!C$15,CalculationsAndCharts!$A120+$A$11,IF($C$7,8,0),1,1) -> 195.610001 | E120: =OFFSET(InputPriceData!D$15,CalculationsAndCharts!$A120+$A$11,IF($C$7,8,0),1,1) -> 195.779999 | F120: =OFFSET(InputPriceData!E$15,CalculationsAndCharts!$A120+$A$11,IF($C$7,8,0),1,1) -> 192.970001 | G120: =OFFSET(InputPriceData!F$15,CalculationsAndCharts!$A120+$A$11,IF($C$7,8,0),1,1) -> 193.089996 | H120: -5.442456357 | I120: 198.5324524 | J120: 199.5251146 | K120: 197.5397901 | L120: -0.6519279914 | M120: -0.3376290874 | O120: -5.476506069 | P120: 198.5665021 | Q120: -0.7968807404 | R120: -0.4952389602 | U120: -0.1576098728
A121: 89 | B121: =OFFSET(InputPriceData!B$15,CalculationsAndCharts!$A121+$A$11,0,1,1) -> 2014-07-30 | C121: =OFFSET(InputPriceData!G$15,CalculationsAndCharts!$A121+$A$11,IF($C$7,8,0),1,1) -> 104222000 | D121: =OFFSET(InputPriceData!C$15,CalculationsAndCharts!$A121+$A$11,IF($C$7,8,0),1,1) -> 197.649994 | E121: =OFFSET(InputPriceData!D$15,CalculationsAndCharts!$A121+$A$11,IF($C$7,8,0),1,1) -> 197.910004 | F121: =OFFSET(InputPriceData!E$15,CalculationsAndCharts!$A121+$A$11,IF($C$7,8,0),1,1) -> 196.160004 | G121: =OFFSET(InputPriceData!F$15,CalculationsAndCharts!$A121+$A$11,IF($C$7,8,0),1,1) -> 196.979996 | H121: -1.661734916 | I121: 198.6417309 | J121: 199.6349396 | K121: 197.6485223 | L121: -0.4400533117 | M121: -0.2234000003 | O121: -1.762321364 | P121: 198.7423174 | Q121: -0.5655684461 | R121: -0.3445436842 | U121: -0.1211436838
A122: 90 | B122: =OFFSET(InputPriceData!B$15,CalculationsAndCharts!$A122+$A$11,0,1,1) -> 2014-07-29 | C122: =OFFSET(InputPriceData!G$15,CalculationsAndCharts!$A122+$A$11,IF($C$7,8,0),1,1) -> 80466000 | D122: =OFFSET(InputPriceData!C$15,CalculationsAndCharts!$A122+$A$11,IF($C$7,8,0),1,1) -> 198.169998 | E122: =OFFSET(InputPriceData!D$15,CalculationsAndCharts!$A122+$A$11,IF($C$7,8,0),1,1) -> 198.449997 | F122: =OFFSET(InputPriceData!E$15,CalculationsAndCharts!$A122+$A$11,IF($C$7,8,0),1,1) -> 196.919998 | G122: =OFFSET(InputPriceData!F$15,CalculationsAndCharts!$A122+$A$11,IF($C$7,8,0),1,1) -> 196.949997 | H122: -1.663406031 | I122: 198.613403 | J122: 199.60647 | K122: 197.620336 | L122: -0.3413321361 | M122: -0.1733090334 | O122: -1.799435506 | P122: 198.7494325 | Q122: -0.4690772014 | R122: -0.2858048491 | U122: -0.1124958157
A123: 91 | B123: =OFFSET(InputPriceData!B$15,CalculationsAndCharts!$A123+$A$11,0,1,1) -> 2014-07-28 | C123: =OFFSET(InputPriceData!G$15,CalculationsAndCharts!$A123+$A$11,IF($C$7,8,0),1,1) -> 69259000 | D123: =OFFSET(InputPriceData!C$15,CalculationsAndCharts!$A123+$A$11,IF($C$7,8,0),1,1) -> 197.759995 | E123: =OFFSET(InputPriceData!D$15,CalculationsAndCharts!$A123+$A$11,IF($C$7,8,0),1,1) -> 198.089996 | F123: =OFFSET(InputPriceData!E$15,CalculationsAndCharts!$A123+$A$11,IF($C$7,8,0),1,1) -> 196.619995 | G123: =OFFSET(InputPriceData!F$15,CalculationsAndCharts!$A123+$A$11,IF($C$7,8,0),1,1) -> 197.800003 | H123: -0.7508867897 | I123: 198.5508898 | J123: 199.5436442 | K123: 197.5581353 | L123: -0.2624144503 | M123: -0.1326665553 | O123: -0.9158382125 | P123: 198.7158412 | Q123: -0.3943173167 | R123: -0.2392218265 | U123: -0.1065552713
A124: 92 | B124: =OFFSET(InputPriceData!B$15,CalculationsAndCharts!$A124+$A$11,0,1,1) -> 2014-07-25 | C124: =OFFSET(InputPriceData!G$15,CalculationsAndCharts!$A124+$A$11,IF($C$7,8,0),1,1) -> 76837000 | D124: =OFFSET(InputPriceData!C$15,CalculationsAndCharts!$A124+$A$11,IF($C$7,8,0),1,1) -> 198.089996 | E124: =OFFSET(InputPriceData!D$15,CalculationsAndCharts!$A124+$A$11,IF($C$7,8,0),1,1) -> 198.259995 | F124: =OFFSET(InputPriceData!E$15,CalculationsAndCharts!$A124+$A$11,IF($C$7,8,0),1,1) -> 197.330002 | G124: =OFFSET(InputPriceData!F$15,CalculationsAndCharts!$A124+$A$11,IF($C$7,8,0),1,1) -> 197.720001 | H124: -0.7341158492 | I124: 198.4541168 | J124: 199.4463874 | K124: 197.4618463 | L124: -0.2068368737 | M124: -0.1046110017 | O124: -0.9209729055 | P124: 198.6409739 | Q124: -0.3467915411 | R124: -0.210474331 | U124: -0.1058633292
A125: 93 | B125: =OFFSET(InputPriceData!B$15,CalculationsAndCharts!$A125+$A$11,0,1,1) -> 2014-07-24 | C125: =OFFSET(InputPriceData!G$15,CalculationsAndCharts!$A125+$A$11,IF($C$7,8,0),1,1) -> 56888000 | D125: =OFFSET(InputPriceData!C$15,CalculationsAndCharts!$A125+$A$11,IF($C$7,8,0),1,1) -> 198.830002 | E125: =OFFSET(InputPriceData!D$15,CalculationsAndCharts!$A125+$A$11,IF($C$7,8,0),1,1) -> 199.059998 | F125: =OFFSET(InputPriceData!E$15,CalculationsAndCharts!$A125+$A$11,IF($C$7,8,0),1,1) -> 198.449997 | G125: =OFFSET(InputPriceData!F$15,CalculationsAndCharts!$A125+$A$11,IF($C$7,8,0),1,1) -> 198.649994 | H125: 0.3317236583 | I125: 198.3182703 | J125: 199.3098617 | K125: 197.326679 | L125: -0.1836452586 | M125: -0.09244664696 | O125: 0.1317260223 | P125: 198.518268 | Q125: -0.3394020265 | R125: -0.2050251417 | U125: -0.1125784948
A126: 94 | B126: =OFFSET(InputPriceData!B$15,CalculationsAndCharts!$A126+$A$11,0,1,1) -> 2014-07-23 | C126: =OFFSET(InputPriceData!G$15,CalculationsAndCharts!$A126+$A$11,IF($C$7,8,0),1,1) -> 65612000 | D126: =OFFSET(InputPriceData!C$15,CalculationsAndCharts!$A126+$A$11,IF($C$7,8,0),1,1) -> 198.5 | E126: =OFFSET(InputPriceData!D$15,CalculationsAndCharts!$A126+$A$11,IF($C$7,8,0),1,1) -> 198.850006 | F126: =OFFSET(InputPriceData!E$15,CalculationsAndCharts!$A126+$A$11,IF($C$7,8,0),1,1) -> 198.100006 | G126: =OFFSET(InputPriceData!F$15,CalculationsAndCharts!$A126+$A$11,IF($C$7,8,0),1,1) -> 198.639999 | H126: 0.5013493663 | I126: 198.1386496 | J126: 199.1293429 | K126: 197.1479564 | L126: -0.2029706922 | M126: -0.1021801718 | O126: 0.2988081449 | P126: 198.3411909 | Q126: -0.387183082 | R126: -0.2339003729 | U126: -0.1317202011
A127: 95 | B127: =OFFSET(InputPriceData!B$15,CalculationsAndCharts!$A127+$A$11,0,1,1) -> 2014-07-22 | C127: =OFFSET(InputPriceData!G$15,CalculationsAndCharts!$A127+$A$11,IF($C$7,8,0),1,1) -> 67678000 | D127: =OFFSET(InputPriceData!C$15,CalculationsAndCharts!$A127+$A$11,IF($C$7,8,0),1,1) -> 198.009995 | E127: =OFFSET(InputPriceData!D$15,CalculationsAndCharts!$A127+$A$11,IF($C$7,8,0),1,1) -> 198.559998 | F127: =OFFSET(InputPriceData!E$15,CalculationsAndCharts!$A127+$A$11,IF($C$7,8,0),1,1) -> 197.869995 | G127: =OFFSET(InputPriceData!F$15,CalculationsAndCharts!$A127+$A$11,IF($C$7,8,0),1,1) -> 198.199997 | H127: 0.2371090479 | I127: 197.962888 | J127: 198.9527024 | K127: 196.9730735 | L127: -0.2199987145 | M127: -0.110998344 | O127: 0.03103435356 | P127: 198.1689626 | Q127: -0.4356066286 | R127: -0.2637376197 | U127: -0.1527392756
A128: 96 | B128: =OFFSET(InputPriceData!B$15,CalculationsAndCharts!$A128+$A$11,0,1,1) -> 2014-07-21 | C128: =OFFSET(InputPriceData!G$15,CalculationsAndCharts!$A128+$A$11,IF($C$7,8,0),1,1) -> 67592000 | D128: =OFFSET(InputPriceData!C$15,CalculationsAndCharts!$A128+$A$11,IF($C$7,8,0),1,1) -> 197.089996 | E128: =OFFSET(InputPriceData!D$15,CalculationsAndCharts!$A128+$A$11,IF($C$7,8,0),1,1) -> 197.5 | F128: =OFFSET(InputPriceData!E$15,CalculationsAndCharts!$A128+$A$11,IF($C$7,8,0),1,1) -> 196.429993 | G128: =OFFSET(InputPriceData!F$15,CalculationsAndCharts!$A128+$A$11,IF($C$7,8,0),1,1) -> 197.339996 | H128: -0.4822443966 | I128: 197.8222404 | J128: 198.8113516 | K128: 196.8331292 | L128: -0.2006836186 | M128: -0.1016943462 | O128: -0.7009911007 | P128: 198.0409871 | Q128: -0.4412235368 | R128: -0.2683025514 | U128: -0.1666082052
A129: 97 | B129: =OFFSET(InputPriceData!B$15,CalculationsAndCharts!$A129+$A$11,0,1,1) -> 2014-07-18 | C129: =OFFSET(InputPriceData!G$15,CalculationsAndCharts!$A129+$A$11,IF($C$7,8,0),1,1) -> 124330000 | D129: =OFFSET(InputPriceData!C$15,CalculationsAndCharts!$A129+$A$11,IF($C$7,8,0),1,1) -> 196.350006 | E129: =OFFSET(InputPriceData!D$15,CalculationsAndCharts!$A129+$A$11,IF($C$7,8,0),1,1) -> 197.910004 | F129: =OFFSET(InputPriceData!E$15,CalculationsAndCharts!$A129+$A$11,IF($C$7,8,0),1,1) -> 196.240005 | G129: =OFFSET(InputPriceData!F$15,CalculationsAndCharts!$A129+$A$11,IF($C$7,8,0),1,1) -> 197.710007 | H129: 0.02095481483 | I129: 197.6890522 | J129: 198.6774974 | K129: 196.7006069 | L129: -0.1693051975 | M129: -0.08563309467 | O129: -0.2130681894 | P129: 197.9230752 | Q129: -0.4330932299 | R129: -0.2628657415 | U129: -0.1772326468
A130: 98 | B130: =OFFSET(InputPriceData!B$15,CalculationsAndCharts!$A130+$A$11,0,1,1) -> 2014-07-17 | C130: =OFFSET(InputPriceData!G$15,CalculationsAndCharts!$A130+$A$11,IF($C$7,8,0),1,1) -> 145398000 | D130: =OFFSET(InputPriceData!C$15,CalculationsAndCharts!$A130+$A$11,IF($C$7,8,0),1,1) -> 197.350006 | E130: =OFFSET(InputPriceData!D$15,CalculationsAndCharts!$A130+$A$11,IF($C$7,8,0),1,1) -> 198.100006 | F130: =OFFSET(InputPriceData!E$15,CalculationsAndCharts!$A130+$A$11,IF($C$7,8,0),1,1) -> 195.429993 | G130: =OFFSET(InputPriceData!F$15,CalculationsAndCharts!$A130+$A$11,IF($C$7,8,0),1,1) -> 195.710007 | H130: -1.895342922 | I130: 197.6053499 | J130: 198.5933767 | K130: 196.6173232 | L130: -0.07900747783 | M130: -0.04036966686 | O130: -2.158281528 | P130: 197.8682885 | Q130: -0.3504958379 | R130: -0.2149072559 | U130: -0.174537589
A131: 99 | B131: =OFFSET(InputPriceData!B$15,CalculationsAndCharts!$A131+$A$11,0,1,1) -> 2014-07-16 | C131: =OFFSET(InputPriceData!G$15,CalculationsAndCharts!$A131+$A$11,IF($C$7,8,0),1,1) -> 80073000 | D131: =OFFSET(InputPriceData!C$15,CalculationsAndCharts!$A131+$A$11,IF($C$7,8,0),1,1) -> 198.110001 | E131: =OFFSET(InputPriceData!D$15,CalculationsAndCharts!$A131+$A$11,IF($C$7,8,0),1,1) -> 198.259995 | F131: =OFFSET(InputPriceData!E$15,CalculationsAndCharts!$A131+$A$11,IF($C$7,8,0),1,1) -> 197.419998 | G131: =OFFSET(InputPriceData!F$15,CalculationsAndCharts!$A131+$A$11,IF($C$7,8,0),1,1) -> 197.960007 | H131: 0.4548266093 | I131: 197.5051804 | J131: 198.4927063 | K131: 196.5176545 | L131: 0.007821466659 | M131: 0.003951033735 | O131: 0.1654773771 | P131: 197.7945296 | Q131: -0.2695585158 | R131: -0.1634018021 | U131: -0.1673528359
A132: 100 | B132: =OFFSET(InputPriceData!B$15,CalculationsAndCharts!$A132+$A$11,0,1,1) -> 2014-07-15 | C132: =OFFSET(InputPriceData!G$15,CalculationsAndCharts!$A132+$A$11,IF($C$7,8,0),1,1) -> 111307000 | D132: =OFFSET(InputPriceData!C$15,CalculationsAndCharts!$A132+$A$11,IF($C$7,8,0),1,1) -> 197.720001 | E132: =OFFSET(InputPriceData!D$15,CalculationsAndCharts!$A132+$A$11,IF($C$7,8,0),1,1) -> 198.100006 | F132: =OFFSET(InputPriceData!E$15,CalculationsAndCharts!$A132+$A$11,IF($C$7,8,0),1,1) -> 196.360001 | G132: =OFFSET(InputPriceData!F$15,CalculationsAndCharts!$A132+$A$11,IF($C$7,8,0),1,1) -> 197.229996 | H132: -0.1112595585 | I132: 197.3412556 | J132: 198.3279618 | K132: 196.3545493 | L132: 0.03934065951 | M132: 0.01994659043 | O132: -0.4120871675 | P132: 197.6420832 | Q132: -0.2567054885 | R132: -0.1561864789 | U132: -0.1761330694
A133: 101 | B133: =OFFSET(InputPriceData!B$15,CalculationsAndCharts!$A133+$A$11,0,1,1) -> 2014-07-14 | C133: =OFFSET(InputPriceData!G$15,CalculationsAndCharts!$A133+$A$11,IF($C$7,8,0),1,1) -> 58658000 | D133: =OFFSET(InputPriceData!C$15,CalculationsAndCharts!$A133+$A$11,IF($C$7,8,0),1,1) -> 197.610001 | E133: =OFFSET(InputPriceData!D$15,CalculationsAndCharts!$A133+$A$11,IF($C$7,8,0),1,1) -> 197.860001 | F133: =OFFSET(InputPriceData!E$15,CalculationsAndCharts!$A133+$A$11,IF($C$7,8,0),1,1) -> 197.440002 | G133: =OFFSET(InputPriceData!F$15,CalculationsAndCharts!$A133+$A$11,IF($C$7,8,0),1,1) -> 197.600006 | H133: 0.4212764522 | I133: 197.1787295 | J133: 198.1646232 | K133: 196.1928359 | L133: 0.07696879034 | M133: 0.03895181579 | O133: 0.1080913813 | P133: 197.4919146 | Q133: -0.236632704 | R133: -0.1437040669 | U133: -0.1826558827
A134: 102 | B134: =OFFSET(InputPriceData!B$15,CalculationsAndCharts!$A134+$A$11,0,1,1) -> 2014-07-11 | C134: =OFFSET(InputPriceData!G$15,CalculationsAndCharts!$A134+$A$11,IF($C$7,8,0),1,1) -> 64243000 | D134: =OFFSET(InputPriceData!C$15,CalculationsAndCharts!$A134+$A$11,IF($C$7,8,0),1,1) -> 196.220001 | E134: =OFFSET(InputPriceData!D$15,CalculationsAndCharts!$A134+$A$11,IF($C$7,8,0),1,1) -> 196.75 | F134: =OFFSET(InputPriceData!E$15,CalculationsAndCharts!$A134+$A$11,IF($C$7,8,0),1,1) -> 195.779999 | G134: =OFFSET(InputPriceData!F$15,CalculationsAndCharts!$A134+$A$11,IF($C$7,8,0),1,1) -> 196.610001 | H134: -0.4171743879 | I134: 197.0271754 | J134: 198.0123113 | K134: 196.0420395 | L134: 0.1317271387 | M134: 0.06699920557 | O134: -0.7461211235 | P134: 197.3561221 | Q134: -0.1948580704 | R134: -0.1189307173 | U134: -0.1859299229
A135: 103 | B135: =OFFSET(InputPriceData!B$15,CalculationsAndCharts!$A135+$A$11,0,1,1) -> 2014-07-10 | C135: =OFFSET(InputPriceData!G$15,CalculationsAndCharts!$A135+$A$11,IF($C$7,8,0),1,1) -> 99040000 | D135: =OFFSET(InputPriceData!C$15,CalculationsAndCharts!$A135+$A$11,IF($C$7,8,0),1,1) -> 195.220001 | E135: =OFFSET(InputPriceData!D$15,CalculationsAndCharts!$A135+$A$11,IF($C$7,8,0),1,1) -> 196.860001 | F135: =OFFSET(InputPriceData!E$15,CalculationsAndCharts!$A135+$A$11,IF($C$7,8,0),1,1) -> 195.059998 | G135: =OFFSET(InputPriceData!F$15,CalculationsAndCharts!$A135+$A$11,IF($C$7,8,0),1,1) -> 196.339996 | H135: -0.570566106 | I135: 196.9105621 | J135: 197.8951149 | K135: 195.9260093 | L135: 0.2317058266 | M135: 0.1180125453 | O135: -0.9250980426 | P135: 197.265094 | Q135: -0.09423572267 | R135: -0.05759543114 | U135: -0.1756079764
A136: 104 | B136: =OFFSET(InputPriceData!B$15,CalculationsAndCharts!$A136+$A$11,0,1,1) -> 2014-07-09 | C136: =OFFSET(InputPriceData!G$15,CalculationsAndCharts!$A136+$A$11,IF($C$7,8,0),1,1) -> 72992000 | D136: =OFFSET(InputPriceData!C$15,CalculationsAndCharts!$A136+$A$11,IF($C$7,8,0),1,1) -> 196.729996 | E136: =OFFSET(InputPriceData!D$15,CalculationsAndCharts!$A136+$A$11,IF($C$7,8,0),1,1) -> 197.300003 | F136: =OFFSET(InputPriceData!E$15,CalculationsAndCharts!$A136+$A$11,IF($C$7,8,0),1,1) -> 196.309998 | G136: =OFFSET(InputPriceData!F$15,CalculationsAndCharts!$A136+$A$11,IF($C$7,8,0),1,1) -> 197.119995 | H136: 0.3538291203 | I136: 196.7661659 | J136: 197.7499967 | K136: 195.7823351 | L136: 0.3158416187 | M136: 0.160228098 | O136: -0.02054251714 | P136: 197.1405375 | Q136: -0.009923603076 | R136: -0.006041154623 | U136: -0.1662692526
A137: 105 | B137: =OFFSET(InputPriceData!B$15,CalculationsAndCharts!$A137+$A$11,0,1,1) -> 2014-07-08 | C137: =OFFSET(InputPriceData!G$15,CalculationsAndCharts!$A137+$A$11,IF($C$7,8,0),1,1) -> 108143000 | D137: =OFFSET(InputPriceData!C$15,CalculationsAndCharts!$A137+$A$11,IF($C$7,8,0),1,1) -> 197.149994 | E137: =OFFSET(InputPriceData!D$15,CalculationsAndCharts!$A137+$A$11,IF($C$7,8,0),1,1) -> 197.220001 | F137: =OFFSET(InputPriceData!E$15,CalculationsAndCharts!$A137+$A$11,IF($C$7,8,0),1,1) -> 195.759995 | G137: =OFFSET(InputPriceData!F$15,CalculationsAndCharts!$A137+$A$11,IF($C$7,8,0),1,1) -> 196.240005 | H137: -0.374729286 | I137: 196.6147343 | J137: 197.597808 | K137: 195.6316606 | L137: 0.4035604058 | M137: 0.2056463491 | O137: -0.7681468601 | P137: 197.0081519 | Q137: 0.08231828175 | R137: 0.0503373092 | U137: -0.1553090399
A138: 106 | B138: =OFFSET(InputPriceData!B$15,CalculationsAndCharts!$A138+$A$11,0,1,1) -> 2014-07-07 | C138: =OFFSET(InputPriceData!G$15,CalculationsAndCharts!$A138+$A$11,IF($C$7,8,0),1,1) -> 61696000 | D138: =OFFSET(InputPriceData!C$15,CalculationsAndCharts!$A138+$A$11,IF($C$7,8,0),1,1) -> 197.820007 | E138: =OFFSET(InputPriceData!D$15,CalculationsAndCharts!$A138+$A$11,IF($C$7,8,0),1,1) -> 197.979996 | F138: =OFFSET(InputPriceData!E$15,CalculationsAndCharts!$A138+$A$11,IF($C$7,8,0),1,1) -> 197.220001 | G138: =OFFSET(InputPriceData!F$15,CalculationsAndCharts!$A138+$A$11,IF($C$7,8,0),1,1) -> 197.509995 | H138: 1.072003665 | I138: 196.4379913 | J138: 197.4201813 | K138: 195.4558014 | L138: 0.4752849331 | M138: 0.2406384209 | O138: 0.6651330174 | P138: 196.844862 | Q138: 0.1579637654 | R138: 0.0959731271 | U138: -0.1446652938
A139: 107 | B139: =OFFSET(InputPriceData!B$15,CalculationsAndCharts!$A139+$A$11,0,1,1) -> 2014-07-03 | C139: =OFFSET(InputPriceData!G$15,CalculationsAndCharts!$A139+$A$11,IF($C$7,8,0),1,1) -> 52938800 | D139: =OFFSET(InputPriceData!C$15,CalculationsAndCharts!$A139+$A$11,IF($C$7,8,0),1,1) -> 197.789993 | E139: =OFFSET(InputPriceData!D$15,CalculationsAndCharts!$A139+$A$11,IF($C$7,8,0),1,1) -> 198.289993 | F139: =OFFSET(InputPriceData!E$15,CalculationsAndCharts!$A139+$A$11,IF($C$7,8,0),1,1) -> 197.639999 | G139: =OFFSET(InputPriceData!F$15,CalculationsAndCharts!$A139+$A$11,IF($C$7,8,0),1,1) -> 198.199997 | H139: 2.022761358 | I139: 196.1772356 | J139: 197.1581218 | K139: 195.1963495 | L139: 0.4650709934 | M139: 0.2346473262 | O139: 1.623610667 | P139: 196.5763863 | Q139: 0.1317728465 | R139: 0.07978174481 | U139: -0.1548655814
A140: 108 | B140: =OFFSET(InputPriceData!B$15,CalculationsAndCharts!$A140+$A$11,0,1,1) -> 2014-07-02 | C140: =OFFSET(InputPriceData!G$15,CalculationsAndCharts!$A140+$A$11,IF($C$7,8,0),1,1) -> 52475000 | D140: =OFFSET(InputPriceData!C$15,CalculationsAndCharts!$A140+$A$11,IF($C$7,8,0),1,1) -> 197.050003 | E140: =OFFSET(InputPriceData!D$15,CalculationsAndCharts!$A140+$A$11,IF($C$7,8,0),1,1) -> 197.479996 | F140: =OFFSET(InputPriceData!E$15,CalculationsAndCharts!$A140+$A$11,IF($C$7,8,0),1,1) -> 196.960007 | G140: =OFFSET(InputPriceData!F$15,CalculationsAndCharts!$A140+$A$11,IF($C$7,8,0),1,1) -> 197.229996 | H140: 1.320308088 | I140: 195.9096879 | J140: 196.8892364 | K140: 194.9301395 | L140: 0.4434654994 | M140: 0.2248468835 | O140: 0.9315307906 | P140: 196.2984652 | Q140: 0.08899634051 | R140: 0.05414775175 | U140: -0.1706991318
A141: 109 | B141: =OFFSET(InputPriceData!B$15,CalculationsAndCharts!$A141+$A$11,0,1,1) -> 2014-07-01 | C141: =OFFSET(InputPriceData!G$15,CalculationsAndCharts!$A141+$A$11,IF($C$7,8,0),1,1) -> 90470000 | D141: =OFFSET(InputPriceData!C$15,CalculationsAndCharts!$A141+$A$11,IF($C$7,8,0),1,1) -> 196.199997 | E141: =OFFSET(InputPriceData!D$15,CalculationsAndCharts!$A141+$A$11,IF($C$7,8,0),1,1) -> 197.630005 | F141: =OFFSET(InputPriceData!E$15,CalculationsAndCharts!$A141+$A$11,IF($C$7,8,0),1,1) -> 196.130005 | G141: =OFFSET(InputPriceData!F$15,CalculationsAndCharts!$A141+$A$11,IF($C$7,8,0),1,1) -> 197.029999 | H141: 1.362488826 | I141: 195.6675102 | J141: 196.6458477 | K141: 194.6891726 | L141: 0.4434211815 | M141: 0.2250526234 | O141: 0.9785935964 | P141: 196.0514054 | Q141: 0.07091886443 | R141: 0.04319273093 | U141: -0.1818598924
A142: 110 | B142: =OFFSET(InputPriceData!B$15,CalculationsAndCharts!$A142+$A$11,0,1,1) -> 2014-06-30 | C142: =OFFSET(InputPriceData!G$15,CalculationsAndCharts!$A142+$A$11,IF($C$7,8,0),1,1) -> 70504000 | D142: =OFFSET(InputPriceData!C$15,CalculationsAndCharts!$A142+$A$11,IF($C$7,8,0),1,1) -> 195.699997 | E142: =OFFSET(InputPriceData!D$15,CalculationsAndCharts!$A142+$A$11,IF($C$7,8,0),1,1) -> 196.169998 | F142: =OFFSET(InputPriceData!E$15,CalculationsAndCharts!$A142+$A$11,IF($C$7,8,0),1,1) -> 195.529999 | G142: =OFFSET(InputPriceData!F$15,CalculationsAndCharts!$A142+$A$11,IF($C$7,8,0),1,1) -> 195.720001 | H142: 0.2554643151 | I142: 195.4645367 | J142: 196.4418594 | K142: 194.487214 | L142: 0.4831077435 | M142: 0.2468361644 | O142: -0.1330010661 | P142: 195.8530021 | Q142: 0.1019959068 | R142: 0.06253581013 | U142: -0.1843003543
A143: 111 | B143: =OFFSET(InputPriceData!B$15,CalculationsAndCharts!$A143+$A$11,0,1,1) -> 2014-06-27 | C143: =OFFSET(InputPriceData!G$15,CalculationsAndCharts!$A143+$A$11,IF($C$7,8,0),1,1) -> 71445100 | D143: =OFFSET(InputPriceData!C$15,CalculationsAndCharts!$A143+$A$11,IF($C$7,8,0),1,1) -> 194.979996 | E143: =OFFSET(InputPriceData!D$15,CalculationsAndCharts!$A143+$A$11,IF($C$7,8,0),1,1) -> 195.880005 | F143: =OFFSET(InputPriceData!E$15,CalculationsAndCharts!$A143+$A$11,IF($C$7,8,0),1,1) -> 194.889999 | G143: =OFFSET(InputPriceData!F$15,CalculationsAndCharts!$A143+$A$11,IF($C$7,8,0),1,1) -> 195.820007 | H143: 0.5280274768 | I143: 195.2919795 | J143: 196.2684394 | K143: 194.3155196 | L143: 0.5589360992 | M143: 0.2854336019 | O143: 0.1271653899 | P143: 195.6928416 | Q143: 0.1801254798 | R143: 0.1103822735 | U143: -0.1750513283
A144: 112 | B144: =OFFSET(InputPriceData!B$15,CalculationsAndCharts!$A144+$A$11,0,1,1) -> 2014-06-26 | C144: =OFFSET(InputPriceData!G$15,CalculationsAndCharts!$A144+$A$11,IF($C$7,8,0),1,1) -> 84312000 | D144: =OFFSET(InputPriceData!C$15,CalculationsAndCharts!$A144+$A$11,IF($C$7,8,0),1,1) -> 195.610001 | E144: =OFFSET(InputPriceData!D$15,CalculationsAndCharts!$A144+$A$11,IF($C$7,8,0),1,1) -> 195.630005 | F144: =OFFSET(InputPriceData!E$15,CalculationsAndCharts!$A144+$A$11,IF($C$7,8,0),1,1) -> 194.130005 | G144: =OFFSET(InputPriceData!F$15,CalculationsAndCharts!$A144+$A$11,IF($C$7,8,0),1,1) -> 195.440002 | H144: 0.3224441967 | I144: 195.1175578 | J144: 196.0931456 | K144: 194.14197 | L144: 0.6413150354 | M144: 0.3281390856 | O144: -0.09082013574 | P144: 195.5308221 | Q144: 0.2698742624 | R144: 0.1657025745 | U144: -0.1624365111
A145: 113 | B145: =OFFSET(InputPriceData!B$15,CalculationsAndCharts!$A145+$A$11,0,1,1) -> 2014-06-25 | C145: =OFFSET(InputPriceData!G$15,CalculationsAndCharts!$A145+$A$11,IF($C$7,8,0),1,1) -> 82782000 | D145: =OFFSET(InputPriceData!C$15,CalculationsAndCharts!$A145+$A$11,IF($C$7,8,0),1,1) -> 194.289993 | E145: =OFFSET(InputPriceData!D$15,CalculationsAndCharts!$A145+$A$11,IF($C$7,8,0),1,1) -> 195.779999 | F145: =OFFSET(InputPriceData!E$15,CalculationsAndCharts!$A145+$A$11,IF($C$7,8,0),1,1) -> 194.25 | G145: =OFFSET(InputPriceData!F$15,CalculationsAndCharts!$A145+$A$11,IF($C$7,8,0),1,1) -> 195.580002 | H145: 0.640283035 | I145: 194.939719 | J145: 195.9144176 | K145: 193.9650204 | L145: 0.7291291477 | M145: 0.3728035281 | O145: 0.2150235987 | P145: 195.3649784 | Q145: 0.3705756817 | R145: 0.2273702902 | U145: -0.1454332379
A146: 114 | B146: =OFFSET(InputPriceData!B$15,CalculationsAndCharts!$A146+$A$11,0,1,1) -> 2014-06-24 | C146: =OFFSET(InputPriceData!G$15,CalculationsAndCharts!$A146+$A$11,IF($C$7,8,0),1,1) -> 96237000 | D146: =OFFSET(InputPriceData!C$15,CalculationsAndCharts!$A146+$A$11,IF($C$7,8,0),1,1) -> 195.529999 | E146: =OFFSET(InputPriceData!D$15,CalculationsAndCharts!$A146+$A$11,IF($C$7,8,0),1,1) -> 196.5 | F146: =OFFSET(InputPriceData!E$15,CalculationsAndCharts!$A146+$A$11,IF($C$7,8,0),1,1) -> 194.479996 | G146: =OFFSET(InputPriceData!F$15,CalculationsAndCharts!$A146+$A$11,IF($C$7,8,0),1,1) -> 194.699997 | H146: -0.07654586166 | I146: 194.7765429 | J146: 195.7504256 | K146: 193.8026601 | L146: 0.8421694768 | M146: 0.4325472469 | O146: -0.5180301235 | P146: 195.2180271 | Q146: 0.5083702947 | R146: 0.313325302 | U146: -0.1192219449
A147: 115 | B147: =OFFSET(InputPriceData!B$15,CalculationsAndCharts!$A147+$A$11,0,1,1) -> 2014-06-23 | C147: =OFFSET(InputPriceData!G$15,CalculationsAndCharts!$A147+$A$11,IF($C$7,8,0),1,1) -> 70611000 | D147: =OFFSET(InputPriceData!C$15,CalculationsAndCharts!$A147+$A$11,IF($C$7,8,0),1,1) -> 195.990005 | E147: =OFFSET(InputPriceData!D$15,CalculationsAndCharts!$A147+$A$11,IF($C$7,8,0),1,1) -> 196.050003 | F147: =OFFSET(InputPriceData!E$15,CalculationsAndCharts!$A147+$A$11,IF($C$7,8,0),1,1) -> 195.520004 | G147: =OFFSET(InputPriceData!F$15,CalculationsAndCharts!$A147+$A$11,IF($C$7,8,0),1,1) -> 195.880005 | H147: 1.289138536 | I147: 194.5908665 | J147: 195.5638208 | K147: 193.6179121 | L147: 0.9437249515 | M147: 0.4817872817 | O147: 0.8365348965 | P147: 195.0434701 | Q147: 0.6383636575 | R147: 0.3910743156 | U147: -0.09071296609
A148: 116 | B148: =OFFSET(InputPriceData!B$15,CalculationsAndCharts!$A148+$A$11,0,1,1) -> 2014-06-20 | C148: =OFFSET(InputPriceData!G$15,CalculationsAndCharts!$A148+$A$11,IF($C$7,8,0),1,1) -> 100587000 | D148: =OFFSET(InputPriceData!C$15,CalculationsAndCharts!$A148+$A$11,IF($C$7,8,0),1,1) -> 196.029999 | E148: =OFFSET(InputPriceData!D$15,CalculationsAndCharts!$A148+$A$11,IF($C$7,8,0),1,1) -> 196.100006 | F148: =OFFSET(InputPriceData!E$15,CalculationsAndCharts!$A148+$A$11,IF($C$7,8,0),1,1) -> 195.699997 | G148: =OFFSET(InputPriceData!F$15,CalculationsAndCharts!$A148+$A$11,IF($C$7,8,0),1,1) -> 195.940002 | H148: 1.592851658 | I148: 194.3471503 | J148: 195.3188861 | K148: 193.3754146 | L148: 0.9932797328 | M148: 0.5069305515 | O148: 1.14378809 | P148: 194.7962139 | Q148: 0.7085249317 | R148: 0.4339236038 | U148: -0.07300694767
A149: 117 | B149: =OFFSET(InputPriceData!B$15,CalculationsAndCharts!$A149+$A$11,0,1,1) -> 2014-06-19 | C149: =OFFSET(InputPriceData!G$15,CalculationsAndCharts!$A149+$A$11,IF($C$7,8,0),1,1) -> 85929000 | D149: =OFFSET(InputPriceData!C$15,CalculationsAndCharts!$A149+$A$11,IF($C$7,8,0),1,1) -> 196.429993 | E149: =OFFSET(InputPriceData!D$15,CalculationsAndCharts!$A149+$A$11,IF($C$7,8,0),1,1) -> 196.600006 | F149: =OFFSET(InputPriceData!E$15,CalculationsAndCharts!$A149+$A$11,IF($C$7,8,0),1,1) -> 195.800003 | G149: =OFFSET(InputPriceData!F$15,CalculationsAndCharts!$A149+$A$11,IF($C$7,8,0),1,1) -> 196.479996 | H149: 2.41437883 | I149: 194.0656172 | J149: 195.0359453 | K149: 193.0952891 | L149: 1.004355247 | M149: 0.5111743013 | O149: 1.979291823 | P149: 194.5007042 | Q149: 0.7333684301 | R149: 0.4479041806 | U149: -0.06327012066
A150: 118 | B150: =OFFSET(InputPriceData!B$15,CalculationsAndCharts!$A150+$A$11,0,1,1) -> 2014-06-18 | C150: =OFFSET(InputPriceData!G$15,CalculationsAndCharts!$A150+$A$11,IF($C$7,8,0),1,1) -> 105267000 | D150: =OFFSET(InputPriceData!C$15,CalculationsAndCharts!$A150+$A$11,IF($C$7,8,0),1,1) -> 194.830002 | E150: =OFFSET(InputPriceData!D$15,CalculationsAndCharts!$A150+$A$11,IF($C$7,8,0),1,1) -> 196.369995 | F150: =OFFSET(InputPriceData!E$15,CalculationsAndCharts!$A150+$A$11,IF($C$7,8,0),1,1) -> 194.399994 | G150: =OFFSET(InputPriceData!F$15,CalculationsAndCharts!$A150+$A$11,IF($C$7,8,0),1,1) -> 196.259995 | H150: 2.505529716 | I150: 193.7544653 | J150: 194.7232376 | K150: 192.785693 | L150: 0.979822164 | M150: 0.4992470137 | O150: 2.093442049 | P150: 194.166553 | Q150: 0.7143813744 | R150: 0.4367969383 | U150: -0.06245007538
A151: 119 | B151: =OFFSET(InputPriceData!B$15,CalculationsAndCharts!$A151+$A$11,0,1,1) -> 2014-06-17 | C151: =OFFSET(InputPriceData!G$15,CalculationsAndCharts!$A151+$A$11,IF($C$7,8,0),1,1) -> 84834000 | D151: =OFFSET(InputPriceData!C$15,CalculationsAndCharts!$A151+$A$11,IF($C$7,8,0),1,1) -> 194.020004 | E151: =OFFSET(InputPriceData!D$15,CalculationsAndCharts!$A151+$A$11,IF($C$7,8,0),1,1) -> 194.970001 | F151: =OFFSET(InputPriceData!E$15,CalculationsAndCharts!$A151+$A$11,IF($C$7,8,0),1,1) -> 193.809998 | G151: =OFFSET(InputPriceData!F$15,CalculationsAndCharts!$A151+$A$11,IF($C$7,8,0),1,1) -> 194.830002 | H151: 1.345944937 | I151: 193.4840571 | J151: 194.4514773 | K151: 192.5166368 | L151: 0.9900152533 | M151: 0.5081431212 | O151: 0.9482821683 | P151: 193.8817198 | Q151: 0.7395264344 | R151: 0.4554902798 | U151: -0.05265284141
A152: 120 | B152: =OFFSET(InputPriceData!B$15,CalculationsAndCharts!$A152+$A$11,0,1,1) -> 2014-06-16 | C152: =OFFSET(InputPriceData!G$15,CalculationsAndCharts!$A152+$A$11,IF($C$7,8,0),1,1) -> 87424000 | D152: =OFFSET(InputPriceData!C$15,CalculationsAndCharts!$A152+$A$11,IF($C$7,8,0),1,1) -> 193.889999 | E152: =OFFSET(InputPriceData!D$15,CalculationsAndCharts!$A152+$A$11,IF($C$7,8,0),1,1) -> 194.699997 | F152: =OFFSET(InputPriceData!E$15,CalculationsAndCharts!$A152+$A$11,IF($C$7,8,0),1,1) -> 193.660004 | G152: =OFFSET(InputPriceData!F$15,CalculationsAndCharts!$A152+$A$11,IF($C$7,8,0),1,1) -> 194.289993 | H152: 1.02164064 | I152: 193.2683524 | J152: 194.2346941 | K152: 192.3020106 | L152: 1.05519638 | M152: 0.5431038234 | O152: 0.6256137395 | P152: 193.6643793 | Q152: 0.8370846221 | R152: 0.5170114688 | U152: -0.02609235457
A153: 121 | B153: =OFFSET(InputPriceData!B$15,CalculationsAndCharts!$A153+$A$11,0,1,1) -> 2014-06-13 | C153: =OFFSET(InputPriceData!G$15,CalculationsAndCharts!$A153+$A$11,IF($C$7,8,0),1,1) -> 82017000 | D153: =OFFSET(InputPriceData!C$15,CalculationsAndCharts!$A153+$A$11,IF($C$7,8,0),1,1) -> 193.919998 | E153: =OFFSET(InputPriceData!D$15,CalculationsAndCharts!$A153+$A$11,IF($C$7,8,0),1,1) -> 194.320007 | F153: =OFFSET(InputPriceData!E$15,CalculationsAndCharts!$A153+$A$11,IF($C$7,8,0),1,1) -> 193.300003 | G153: =OFFSET(InputPriceData!F$15,CalculationsAndCharts!$A153+$A$11,IF($C$7,8,0),1,1) -> 194.130005 | H153: 1.06600077 | I153: 193.0640042 | J153: 194.0293243 | K153: 192.0986842 | L153: 1.136816621 | M153: 0.5855955245 | O153: 0.6691489161 | P153: 193.4608561 | Q153: 0.961527523 | R153: 0.5943609941 | U153: 0.008765469667
A154: 122 | B154: =OFFSET(InputPriceData!B$15,CalculationsAndCharts!$A154+$A$11,0,1,1) -> 2014-06-12 | C154: =OFFSET(InputPriceData!G$15,CalculationsAndCharts!$A154+$A$11,IF($C$7,8,0),1,1) -> 106350000 | D154: =OFFSET(InputPriceData!C$15,CalculationsAndCharts!$A154+$A$11,IF($C$7,8,0),1,1) -> 194.690002 | E154: =OFFSET(InputPriceData!D$15,CalculationsAndCharts!$A154+$A$11,IF($C$7,8,0),1,1) -> 194.800003 | F154: =OFFSET(InputPriceData!E$15,CalculationsAndCharts!$A154+$A$11,IF($C$7,8,0),1,1) -> 193.110001 | G154: =OFFSET(InputPriceData!F$15,CalculationsAndCharts!$A154+$A$11,IF($C$7,8,0),1,1) -> 193.539993 | H154: 0.6665086 | I154: 192.8734844 | J154: 193.8378518 | K154: 191.909117 | L154: 1.239602993 | M154: 0.6404893239 | O154: 0.2655630143 | P154: 193.27443 | Q154: 1.120605199 | R154: 0.6948053566 | U154: 0.0543160327
A155: 123 | B155: =OFFSET(InputPriceData!B$15,CalculationsAndCharts!$A155+$A$11,0,1,1) -> 2014-06-11 | C155: =OFFSET(InputPriceData!G$15,CalculationsAndCharts!$A155+$A$11,IF($C$7,8,0),1,1) -> 68772000 | D155: =OFFSET(InputPriceData!C$15,CalculationsAndCharts!$A155+$A$11,IF($C$7,8,0),1,1) -> 194.899994 | E155: =OFFSET(InputPriceData!D$15,CalculationsAndCharts!$A155+$A$11,IF($C$7,8,0),1,1) -> 195.119995 | F155: =OFFSET(InputPriceData!E$15,CalculationsAndCharts!$A155+$A$11,IF($C$7,8,0),1,1) -> 194.479996 | G155: =OFFSET(InputPriceData!F$15,CalculationsAndCharts!$A155+$A$11,IF($C$7,8,0),1,1) -> 194.919998 | H155: 2.278655727 | I155: 192.6413423 | J155: 193.604549 | K155: 191.6781356 | L155: 1.306618722 | M155: 0.6703358997 | O155: 1.88446773 | P155: 193.0355303 | Q155: 1.243491186 | R155: 0.7655394205 | U155: 0.09520352083
A156: 124 | B156: =OFFSET(InputPriceData!B$15,CalculationsAndCharts!$A156+$A$11,0,1,1) -> 2014-06-10 | C156: =OFFSET(InputPriceData!G$15,CalculationsAndCharts!$A156+$A$11,IF($C$7,8,0),1,1) -> 57129000 | D156: =OFFSET(InputPriceData!C$15,CalculationsAndCharts!$A156+$A$11,IF($C$7,8,0),1,1) -> 195.339996 | E156: =OFFSET(InputPriceData!D$15,CalculationsAndCharts!$A156+$A$11,IF($C$7,8,0),1,1) -> 195.639999 | F156: =OFFSET(InputPriceData!E$15,CalculationsAndCharts!$A156+$A$11,IF($C$7,8,0),1,1) -> 194.919998 | G156: =OFFSET(InputPriceData!F$15,CalculationsAndCharts!$A156+$A$11,IF($C$7,8,0),1,1) -> 195.600006 | H156: 3.28104439 | I156: 192.3189616 | J156: 193.2805564 | K156: 191.3573668 | L156: 1.279764008 | M156: 0.6542760577 | O156: 2.917781068 | P156: 192.6822249 | Q156: 1.254245967 | R156: 0.76947603 | U156: 0.1151999724
A157: 125 | B157: =OFFSET(InputPriceData!B$15,CalculationsAndCharts!$A157+$A$11,0,1,1) -> 2014-06-09 | C157: =OFFSET(InputPriceData!G$15,CalculationsAndCharts!$A157+$A$11,IF($C$7,8,0),1,1) -> 65119000 | D157: =OFFSET(InputPriceData!C$15,CalculationsAndCharts!$A157+$A$11,IF($C$7,8,0),1,1) -> 195.350006 | E157: =OFFSET(InputPriceData!D$15,CalculationsAndCharts!$A157+$A$11,IF($C$7,8,0),1,1) -> 196.050003 | F157: =OFFSET(InputPriceData!E$15,CalculationsAndCharts!$A157+$A$11,IF($C$7,8,0),1,1) -> 195.169998 | G157: =OFFSET(InputPriceData!F$15,CalculationsAndCharts!$A157+$A$11,IF($C$7,8,0),1,1) -> 195.580002 | H157: 3.62742067 | I157: 191.9525813 | J157: 192.9123442 | K157: 190.9928184 | L157: 1.194543887 | M157: 0.6107699533 | O157: 3.308927624 | P157: 192.2710744 | Q157: 1.1928859 | R157: 0.7319066699 | U157: 0.1211367166
A158: 126 | B158: =OFFSET(InputPriceData!B$15,CalculationsAndCharts!$A158+$A$11,0,1,1) -> 2014-06-06 | C158: =OFFSET(InputPriceData!G$15,CalculationsAndCharts!$A158+$A$11,IF($C$7,8,0),1,1) -> 78696000 | D158: =OFFSET(InputPriceData!C$15,CalculationsAndCharts!$A158+$A$11,IF($C$7,8,0),1,1) -> 194.869995 | E158: =OFFSET(InputPriceData!D$15,CalculationsAndCharts!$A158+$A$11,IF($C$7,8,0),1,1) -> 195.429993 | F158: =OFFSET(InputPriceData!E$15,CalculationsAndCharts!$A158+$A$11,IF($C$7,8,0),1,1) -> 194.779999 | G158: =OFFSET(InputPriceData!F$15,CalculationsAndCharts!$A158+$A$11,IF($C$7,8,0),1,1) -> 195.380005 | H158: 3.808003039 | I158: 191.572002 | J158: 192.529862 | K158: 190.614142 | L158: 1.074536287 | M158: 0.5499724944 | O158: 3.541331781 | P158: 191.8386732 | Q158: 1.085977499 | R158: 0.6669940449 | U158: 0.1170215504
A159: 127 | B159: =OFFSET(InputPriceData!B$15,CalculationsAndCharts!$A159+$A$11,0,1,1) -> 2014-06-05 | C159: =OFFSET(InputPriceData!G$15,CalculationsAndCharts!$A159+$A$11,IF($C$7,8,0),1,1) -> 92103000 | D159: =OFFSET(InputPriceData!C$15,CalculationsAndCharts!$A159+$A$11,IF($C$7,8,0),1,1) -> 193.410004 | E159: =OFFSET(InputPriceData!D$15,CalculationsAndCharts!$A159+$A$11,IF($C$7,8,0),1,1) -> 194.649994 | F159: =OFFSET(InputPriceData!E$15,CalculationsAndCharts!$A159+$A$11,IF($C$7,8,0),1,1) -> 192.699997 | G159: =OFFSET(InputPriceData!F$15,CalculationsAndCharts!$A159+$A$11,IF($C$7,8,0),1,1) -> 194.449997 | H159: 3.240239515 | I159: 191.2097575 | J159: 192.1658063 | K159: 190.2537087 | L159: 0.9500517234 | M159: 0.4885840772 | O159: 3.024465723 | P159: 191.4255313 | Q159: 0.969942868 | R159: 0.5985762199 | U159: 0.1099921427
A160: 128 | B160: =OFFSET(InputPriceData!B$15,CalculationsAndCharts!$A160+$A$11,0,1,1) -> 2014-06-04 | C160: =OFFSET(InputPriceData!G$15,CalculationsAndCharts!$A160+$A$11,IF($C$7,8,0),1,1) -> 55529000 | D160: =OFFSET(InputPriceData!C$15,CalculationsAndCharts!$A160+$A$11,IF($C$7,8,0),1,1) -> 192.470001 | E160: =OFFSET(InputPriceData!D$15,CalculationsAndCharts!$A160+$A$11,IF($C$7,8,0),1,1) -> 193.300003 | F160: =OFFSET(InputPriceData!E$15,CalculationsAndCharts!$A160+$A$11,IF($C$7,8,0),1,1) -> 192.270004 | G160: =OFFSET(InputPriceData!F$15,CalculationsAndCharts!$A160+$A$11,IF($C$7,8,0),1,1) -> 193.190002 | H160: 2.284366266 | I160: 190.9056357 | J160: 191.8601639 | K160: 189.9511076 | L160: 0.8638576845 | M160: 0.4471544467 | O160: 2.108164779 | P160: 191.0818372 | Q160: 0.8989759976 | R160: 0.5583990817 | U160: 0.111244635
A161: 129 | B161: =OFFSET(InputPriceData!B$15,CalculationsAndCharts!$A161+$A$11,0,1,1) -> 2014-06-03 | C161: =OFFSET(InputPriceData!G$15,CalculationsAndCharts!$A161+$A$11,IF($C$7,8,0),1,1) -> 65047000 | D161: =OFFSET(InputPriceData!C$15,CalculationsAndCharts!$A161+$A$11,IF($C$7,8,0),1,1) -> 192.429993 | E161: =OFFSET(InputPriceData!D$15,CalculationsAndCharts!$A161+$A$11,IF($C$7,8,0),1,1) -> 192.899994 | F161: =OFFSET(InputPriceData!E$15,CalculationsAndCharts!$A161+$A$11,IF($C$7,8,0),1,1) -> 192.25 | G161: =OFFSET(InputPriceData!F$15,CalculationsAndCharts!$A161+$A$11,IF($C$7,8,0),1,1) -> 192.800003 | H161: =$C$20*(G161-2*G162+G163)+2*$C$21*H162-$C$22*H163 -> 2.156836116 | I161: 190.6431669 | J161: 191.5963827 | K161: 189.689951 | L161: 0.8045704018 | M161: 0.4173082932 | O161: 2.012324632 | P161: 190.7876784 | Q161: 0.8606589459 | R161: 0.5356798335 | U161: 0.1183715403
A162: 130 | B162: =OFFSET(InputPriceData!B$15,CalculationsAndCharts!$A162+$A$11,0,1,1) -> 2014-06-02 | C162: =OFFSET(InputPriceData!G$15,CalculationsAndCharts!$A162+$A$11,IF($C$7,8,0),1,1) -> 64656000 | D162: =OFFSET(InputPriceData!C$15,CalculationsAndCharts!$A162+$A$11,IF($C$7,8,0),1,1) -> 192.949997 | E162: =OFFSET(InputPriceData!D$15,CalculationsAndCharts!$A162+$A$11,IF($C$7,8,0),1,1) -> 192.990005 | F162: =OFFSET(InputPriceData!E$15,CalculationsAndCharts!$A162+$A$11,IF($C$7,8,0),1,1) -> 191.970001 | G162: =OFFSET(InputPriceData!F$15,CalculationsAndCharts!$A162+$A$11,IF($C$7,8,0),1,1) -> 192.899994 | H162: 2.524966203 | I162: =G162-H162 -> 190.3750278 | J162: =I162*(1+$F$15) -> 191.3269029 | K162: =I162*(1-$F$15) -> 189.4231527 | L162: =$F$20*(I162-2*I163+I164)+2*$F$21*L163-$F$22*L164 -> 0.7257494601 | M162: =100*$F$16*L162/G162 -> 0.3762309397 | O162: =$U$20*($G162-2*$G163+$G164)+2*$U$21*O163-$U$22*O164 -> 2.415929548 | P162: =$G162-O162 -> 190.4840645 | Q162: =$X$20*(P162-2*P163+P164)+2*$X$21*Q163-$X$22*Q164 -> 0.7970751037 | R162: =100*$F$17*Q162/$G162 -> 0.4958476693 | U162: =R162-M162 -> 0.1196167296 | X162: =IF($A162=$E$25,X$31,NA()) -> 
A163: 131 | B163: =OFFSET(InputPriceData!B$15,CalculationsAndCharts!$A163+$A$11,0,1,1) -> 2014-05-30 | C163: =OFFSET(InputPriceData!G$15,CalculationsAndCharts!$A163+$A$11,IF($C$7,8,0),1,1) -> 76316000 | D163: =OFFSET(InputPriceData!C$15,CalculationsAndCharts!$A163+$A$11,IF($C$7,8,0),1,1) -> 192.190002 | E163: =OFFSET(InputPriceData!D$15,CalculationsAndCharts!$A163+$A$11,IF($C$7,8,0),1,1) -> 192.800003 | F163: =OFFSET(InputPriceData!E$15,CalculationsAndCharts!$A163+$A$11,IF($C$7,8,0),1,1) -> 192.029999 | G163: =OFFSET(InputPriceData!F$15,CalculationsAndCharts!$A163+$A$11,IF($C$7,8,0),1,1) -> 192.679993 | H163: 2.585238009 | I163: 190.094755 | J163: 191.0452288 | K163: 189.1442812 | L163: 0.6178880296 | M163: 0.3206809487 | O163: 2.517361083 | P163: 190.1626319 | Q163: 0.6946947984 | R163: 0.4326519558 | U163: 0.1119710071
A164: 132 | B164: =OFFSET(InputPriceData!B$15,CalculationsAndCharts!$A164+$A$11,0,1,1) -> 2014-05-29 | C164: =OFFSET(InputPriceData!G$15,CalculationsAndCharts!$A164+$A$11,IF($C$7,8,0),1,1) -> 64377000 | D164: =OFFSET(InputPriceData!C$15,CalculationsAndCharts!$A164+$A$11,IF($C$7,8,0),1,1) -> 191.820007 | E164: =OFFSET(InputPriceData!D$15,CalculationsAndCharts!$A164+$A$11,IF($C$7,8,0),1,1) -> 192.399994 | F164: =OFFSET(InputPriceData!E$15,CalculationsAndCharts!$A164+$A$11,IF($C$7,8,0),1,1) -> 191.330002 | G164: =OFFSET(InputPriceData!F$15,CalculationsAndCharts!$A164+$A$11,IF($C$7,8,0),1,1) -> 192.369995 | H164: 2.553282692 | I164: 189.8167123 | J164: 190.7657959 | K164: 188.8676287 | L164: 0.4925747977 | M164: 0.2560559393 | O164: 2.528889526 | P164: 189.8411055 | Q164: 0.5662614446 | R164: 0.3532327032 | U164: 0.09717676387
A165: 133 | B165: =OFFSET(InputPriceData!B$15,CalculationsAndCharts!$A165+$A$11,0,1,1) -> 2014-05-28 | C165: =OFFSET(InputPriceData!G$15,CalculationsAndCharts!$A165+$A$11,IF($C$7,8,0),1,1) -> 66723000 | D165: =OFFSET(InputPriceData!C$15,CalculationsAndCharts!$A165+$A$11,IF($C$7,8,0),1,1) -> 191.520004 | E165: =OFFSET(InputPriceData!D$15,CalculationsAndCharts!$A165+$A$11,IF($C$7,8,0),1,1) -> 191.820007 | F165: =OFFSET(InputPriceData!E$15,CalculationsAndCharts!$A165+$A$11,IF($C$7,8,0),1,1) -> 191.059998 | G165: =OFFSET(InputPriceData!F$15,CalculationsAndCharts!$A165+$A$11,IF($C$7,8,0),1,1) -> 191.380005 | H165: 1.810810187 | I165: 189.5691948 | J165: 190.5170408 | K165: 188.6213488 | L165: 0.3782423468 | M165: 0.1976394278 | O165: 1.825027043 | P165: 189.554978 | Q165: 0.4466852311 | R165: 0.2800826958 | U165: 0.08244326804
A166: 134 | B166: =OFFSET(InputPriceData!B$15,CalculationsAndCharts!$A166+$A$11,0,1,1) -> 2014-05-27 | C166: =OFFSET(InputPriceData!G$15,CalculationsAndCharts!$A166+$A$11,IF($C$7,8,0),1,1) -> 72010000 | D166: =OFFSET(InputPriceData!C$15,CalculationsAndCharts!$A166+$A$11,IF($C$7,8,0),1,1) -> 191.059998 | E166: =OFFSET(InputPriceData!D$15,CalculationsAndCharts!$A166+$A$11,IF($C$7,8,0),1,1) -> 191.580002 | F166: =OFFSET(InputPriceData!E$15,CalculationsAndCharts!$A166+$A$11,IF($C$7,8,0),1,1) -> 190.949997 | G166: =OFFSET(InputPriceData!F$15,CalculationsAndCharts!$A166+$A$11,IF($C$7,8,0),1,1) -> 191.520004 | H166: 2.182509617 | I166: 189.3374944 | J166: 190.2841819 | K166: 188.3908069 | L166: 0.2613784907 | M166: 0.1364758173 | O166: 2.233895463 | P166: 189.2861085 | Q166: 0.3188581259 | R166: 0.199785789 | U166: 0.06330997172
A167: 135 | B167: =OFFSET(InputPriceData!B$15,CalculationsAndCharts!$A167+$A$11,0,1,1) -> 2014-05-23 | C167: =OFFSET(InputPriceData!G$15,CalculationsAndCharts!$A167+$A$11,IF($C$7,8,0),1,1) -> 61092800 | D167: =OFFSET(InputPriceData!C$15,CalculationsAndCharts!$A167+$A$11,IF($C$7,8,0),1,1) -> 189.759995 | E167: =OFFSET(InputPriceData!D$15,CalculationsAndCharts!$A167+$A$11,IF($C$7,8,0),1,1) -> 190.479996 | F167: =OFFSET(InputPriceData!E$15,CalculationsAndCharts!$A167+$A$11,IF($C$7,8,0),1,1) -> 189.589996 | G167: =OFFSET(InputPriceData!F$15,CalculationsAndCharts!$A167+$A$11,IF($C$7,8,0),1,1) -> 190.350006 | H167: 1.220910277 | I167: 189.1290957 | J167: 190.0747412 | K167: 188.1834502 | L167: 0.1502781268 | M167: 0.07894831736 | O167: 1.305954857 | P167: 189.0440511 | Q167: 0.1927433818 | R167: 0.1215088263 | U167: 0.04256050893
A168: 136 | B168: =OFFSET(InputPriceData!B$15,CalculationsAndCharts!$A168+$A$11,0,1,1) -> 2014-05-22 | C168: =OFFSET(InputPriceData!G$15,CalculationsAndCharts!$A168+$A$11,IF($C$7,8,0),1,1) -> 61549000 | D168: =OFFSET(InputPriceData!C$15,CalculationsAndCharts!$A168+$A$11,IF($C$7,8,0),1,1) -> 189.179993 | E168: =OFFSET(InputPriceData!D$15,CalculationsAndCharts!$A168+$A$11,IF($C$7,8,0),1,1) -> 189.979996 | F168: =OFFSET(InputPriceData!E$15,CalculationsAndCharts!$A168+$A$11,IF($C$7,8,0),1,1) -> 188.860001 | G168: =OFFSET(InputPriceData!F$15,CalculationsAndCharts!$A168+$A$11,IF($C$7,8,0),1,1) -> 189.589996 | H168: 0.6118208336 | I168: 188.9781752 | J168: 189.923066 | K168: 188.0332843 | L168: 0.08316880315 | M168: 0.04386771713 | O168: 0.7179018733 | P168: 188.8720941 | Q168: 0.1171756312 | R168: 0.07416570516 | U168: 0.03029798803
A169: 137 | B169: =OFFSET(InputPriceData!B$15,CalculationsAndCharts!$A169+$A$11,0,1,1) -> 2014-05-21 | C169: =OFFSET(InputPriceData!G$15,CalculationsAndCharts!$A169+$A$11,IF($C$7,8,0),1,1) -> 89093000 | D169: =OFFSET(InputPriceData!C$15,CalculationsAndCharts!$A169+$A$11,IF($C$7,8,0),1,1) -> 188.089996 | E169: =OFFSET(InputPriceData!D$15,CalculationsAndCharts!$A169+$A$11,IF($C$7,8,0),1,1) -> 189.220001 | F169: =OFFSET(InputPriceData!E$15,CalculationsAndCharts!$A169+$A$11,IF($C$7,8,0),1,1) -> 188.059998 | G169: =OFFSET(InputPriceData!F$15,CalculationsAndCharts!$A169+$A$11,IF($C$7,8,0),1,1) -> 189.130005 | H169: 0.2680269182 | I169: 188.8619781 | J169: 189.806288 | K169: 187.9176682 | L169: 0.04267785429 | M169: 0.02256535355 | O169: 0.3875179881 | P169: 188.742487 | Q169: 0.07225977427 | R169: 0.0458476851 | U169: 0.02328233155
A170: 138 | B170: =OFFSET(InputPriceData!B$15,CalculationsAndCharts!$A170+$A$11,0,1,1) -> 2014-05-20 | C170: =OFFSET(InputPriceData!G$15,CalculationsAndCharts!$A170+$A$11,IF($C$7,8,0),1,1) -> 111644000 | D170: =OFFSET(InputPriceData!C$15,CalculationsAndCharts!$A170+$A$11,IF($C$7,8,0),1,1) -> 188.649994 | E170: =OFFSET(InputPriceData!D$15,CalculationsAndCharts!$A170+$A$11,IF($C$7,8,0),1,1) -> 188.669998 | F170: =OFFSET(InputPriceData!E$15,CalculationsAndCharts!$A170+$A$11,IF($C$7,8,0),1,1) -> 187.070007 | G170: =OFFSET(InputPriceData!F$15,CalculationsAndCharts!$A170+$A$11,IF($C$7,8,0),1,1) -> 187.550003 | H170: -1.262352664 | I170: 188.8123557 | J170: 189.7564174 | K170: 187.8682939 | L170: 0.06733777361 | M170: 0.03590390431 | O170: -1.145853775 | P170: 188.6958568 | Q170: 0.1088483083 | R170: 0.06964434439 | U170: 0.03374044008
A171: 139 | B171: =OFFSET(InputPriceData!B$15,CalculationsAndCharts!$A171+$A$11,0,1,1) -> 2014-05-19 | C171: =OFFSET(InputPriceData!G$15,CalculationsAndCharts!$A171+$A$11,IF($C$7,8,0),1,1) -> 63839000 | D171: =OFFSET(InputPriceData!C$15,CalculationsAndCharts!$A171+$A$11,IF($C$7,8,0),1,1) -> 187.690002 | E171: =OFFSET(InputPriceData!D$15,CalculationsAndCharts!$A171+$A$11,IF($C$7,8,0),1,1) -> 188.889999 | F171: =OFFSET(InputPriceData!E$15,CalculationsAndCharts!$A171+$A$11,IF($C$7,8,0),1,1) -> 187.520004 | G171: =OFFSET(InputPriceData!F$15,CalculationsAndCharts!$A171+$A$11,IF($C$7,8,0),1,1) -> 188.740005 | H171: -0.03269329444 | I171: 188.7726983 | J171: 189.7165618 | K171: 187.8288348 | L171: 0.1061151706 | M171: 0.05622293512 | O171: 0.07792465677 | P171: 188.6620803 | Q171: 0.1656971473 | R171: 0.1053494603 | U171: 0.04912652522
A172: 140 | B172: =OFFSET(InputPriceData!B$15,CalculationsAndCharts!$A172+$A$11,0,1,1) -> 2014-05-16 | C172: =OFFSET(InputPriceData!G$15,CalculationsAndCharts!$A172+$A$11,IF($C$7,8,0),1,1) -> 97458000 | D172: =OFFSET(InputPriceData!C$15,CalculationsAndCharts!$A172+$A$11,IF($C$7,8,0),1,1) -> 187.509995 | E172: =OFFSET(InputPriceData!D$15,CalculationsAndCharts!$A172+$A$11,IF($C$7,8,0),1,1) -> 188.130005 | F172: =OFFSET(InputPriceData!E$15,CalculationsAndCharts!$A172+$A$11,IF($C$7,8,0),1,1) -> 186.720001 | G172: =OFFSET(InputPriceData!F$15,CalculationsAndCharts!$A172+$A$11,IF($C$7,8,0),1,1) -> 188.050003 | H172: -0.6610382956 | I172: 188.7110413 | J172: 189.6545965 | K172: 187.7674861 | L172: 0.1265929098 | M172: 0.06731874914 | O172: -0.5511165438 | P172: 188.6011195 | Q172: 0.202409645 | R172: 0.1291632917 | U172: 0.0618445426
A173: 141 | B173: =OFFSET(InputPriceData!B$15,CalculationsAndCharts!$A173+$A$11,0,1,1) -> 2014-05-15 | C173: =OFFSET(InputPriceData!G$15,CalculationsAndCharts!$A173+$A$11,IF($C$7,8,0),1,1) -> 154956000 | D173: =OFFSET(InputPriceData!C$15,CalculationsAndCharts!$A173+$A$11,IF($C$7,8,0),1,1) -> 188.679993 | E173: =OFFSET(InputPriceData!D$15,CalculationsAndCharts!$A173+$A$11,IF($C$7,8,0),1,1) -> 188.720001 | F173: =OFFSET(InputPriceData!E$15,CalculationsAndCharts!$A173+$A$11,IF($C$7,8,0),1,1) -> 186.479996 | G173: =OFFSET(InputPriceData!F$15,CalculationsAndCharts!$A173+$A$11,IF($C$7,8,0),1,1) -> 187.399994 | H173: -1.293359925 | I173: 188.6933539 | J173: 189.6368207 | K173: 187.7498872 | L173: 0.196784459 | M173: 0.1050077189 | O173: -1.195653557 | P173: 188.5956476 | Q173: 0.3052906725 | R173: 0.1954902981 | U173: 0.0904825792
A174: 142 | B174: =OFFSET(InputPriceData!B$15,CalculationsAndCharts!$A174+$A$11,0,1,1) -> 2014-05-14 | C174: =OFFSET(InputPriceData!G$15,CalculationsAndCharts!$A174+$A$11,IF($C$7,8,0),1,1) -> 72367000 | D174: =OFFSET(InputPriceData!C$15,CalculationsAndCharts!$A174+$A$11,IF($C$7,8,0),1,1) -> 189.789993 | E174: =OFFSET(InputPriceData!D$15,CalculationsAndCharts!$A174+$A$11,IF($C$7,8,0),1,1) -> 189.880005 | F174: =OFFSET(InputPriceData!E$15,CalculationsAndCharts!$A174+$A$11,IF($C$7,8,0),1,1) -> 188.789993 | G174: =OFFSET(InputPriceData!F$15,CalculationsAndCharts!$A174+$A$11,IF($C$7,8,0),1,1) -> 189.059998 | H174: 0.4237792275 | I174: 188.6362188 | J174: 189.5793999 | K174: 187.6930377 | L174: 0.234228121 | M174: 0.1238908936 | O174: 0.5185429569 | P174: 188.541455 | Q174: 0.3722045462 | R174: 0.2362453507 | U174: 0.1123544571
A175: 143 | B175: =OFFSET(InputPriceData!B$15,CalculationsAndCharts!$A175+$A$11,0,1,1) -> 2014-05-13 | C175: =OFFSET(InputPriceData!G$15,CalculationsAndCharts!$A175+$A$11,IF($C$7,8,0),1,1) -> 66454000 | D175: =OFFSET(InputPriceData!C$15,CalculationsAndCharts!$A175+$A$11,IF($C$7,8,0),1,1) -> 190.039993 | E175: =OFFSET(InputPriceData!D$15,CalculationsAndCharts!$A175+$A$11,IF($C$7,8,0),1,1) -> 190.419998 | F175: =OFFSET(InputPriceData!E$15,CalculationsAndCharts!$A175+$A$11,IF($C$7,8,0),1,1) -> 189.770004 | G175: =OFFSET(InputPriceData!F$15,CalculationsAndCharts!$A175+$A$11,IF($C$7,8,0),1,1) -> 189.960007 | H175: 1.479135526 | I175: 188.4808715 | J175: 189.4232758 | K175: 187.5384671 | L175: 0.1705368778 | M175: 0.08977514817 | O175: 1.596069738 | P175: 188.3639373 | Q175: 0.3138607659 | R175: 0.1982695858 | U175: 0.1084944376
A176: 144 | B176: =OFFSET(InputPriceData!B$15,CalculationsAndCharts!$A176+$A$11,0,1,1) -> 2014-05-12 | C176: =OFFSET(InputPriceData!G$15,CalculationsAndCharts!$A176+$A$11,IF($C$7,8,0),1,1) -> 86940000 | D176: =OFFSET(InputPriceData!C$15,CalculationsAndCharts!$A176+$A$11,IF($C$7,8,0),1,1) -> 188.800003 | E176: =OFFSET(InputPriceData!D$15,CalculationsAndCharts!$A176+$A$11,IF($C$7,8,0),1,1) -> 189.880005 | F176: =OFFSET(InputPriceData!E$15,CalculationsAndCharts!$A176+$A$11,IF($C$7,8,0),1,1) -> 188 | G176: =OFFSET(InputPriceData!F$15,CalculationsAndCharts!$A176+$A$11,IF($C$7,8,0),1,1) -> 189.789993 | H176: 1.501220506 | I176: 188.2887725 | J176: 189.2302164 | K176: 187.3473286 | L176: 0.05666980313 | M176: 0.02985921556 | O176: 1.651253101 | P176: 188.1387399 | Q176: 0.1892199091 | R176: 0.1196395486 | U176: 0.08978033303
A177: 145 | B177: =OFFSET(InputPriceData!B$15,CalculationsAndCharts!$A177+$A$11,0,1,1) -> 2014-05-09 | C177: =OFFSET(InputPriceData!G$15,CalculationsAndCharts!$A177+$A$11,IF($C$7,8,0),1,1) -> 83679000 | D177: =OFFSET(InputPriceData!C$15,CalculationsAndCharts!$A177+$A$11,IF($C$7,8,0),1,1) -> 187.710007 | E177: =OFFSET(InputPriceData!D$15,CalculationsAndCharts!$A177+$A$11,IF($C$7,8,0),1,1) -> 188.039993 | F177: =OFFSET(InputPriceData!E$15,CalculationsAndCharts!$A177+$A$11,IF($C$7,8,0),1,1) -> 186.830002 | G177: =OFFSET(InputPriceData!F$15,CalculationsAndCharts!$A177+$A$11,IF($C$7,8,0),1,1) -> 187.960007 | H177: -0.1976134497 | I177: 188.1576204 | J177: 189.0984086 | K177: 187.2168323 | L177: -0.00939112187 | M177: -0.004996340456 | O177: -0.02810001478 | P177: 187.988107 | Q177: 0.120332653 | R177: 0.07682441916 | U177: 0.08182075961
A178: 146 | B178: =OFFSET(InputPriceData!B$15,CalculationsAndCharts!$A178+$A$11,0,1,1) -> 2014-05-08 | C178: =OFFSET(InputPriceData!G$15,CalculationsAndCharts!$A178+$A$11,IF($C$7,8,0),1,1) -> 93618000 | D178: =OFFSET(InputPriceData!C$15,CalculationsAndCharts!$A178+$A$11,IF($C$7,8,0),1,1) -> 187.710007 | E178: =OFFSET(InputPriceData!D$15,CalculationsAndCharts!$A178+$A$11,IF($C$7,8,0),1,1) -> 189.050003 | F178: =OFFSET(InputPriceData!E$15,CalculationsAndCharts!$A178+$A$11,IF($C$7,8,0),1,1) -> 187.080002 | G178: =OFFSET(InputPriceData!F$15,CalculationsAndCharts!$A178+$A$11,IF($C$7,8,0),1,1) -> 187.679993 | H178: -0.414791506 | I178: 188.0947845 | J178: 189.0352584 | K178: 187.1543106 | L178: -0.01205532093 | M178: -0.006423338332 | O178: -0.2422771812 | P178: 187.9222702 | Q178: 0.1298580024 | R178: 0.08302941637 | U178: 0.0894527547
A179: 147 | B179: =OFFSET(InputPriceData!B$15,CalculationsAndCharts!$A179+$A$11,0,1,1) -> 2014-05-07 | C179: =OFFSET(InputPriceData!G$15,CalculationsAndCharts!$A179+$A$11,IF($C$7,8,0),1,1) -> 106500000 | D179: =OFFSET(InputPriceData!C$15,CalculationsAndCharts!$A179+$A$11,IF($C$7,8,0),1,1) -> 187.410004 | E179: =OFFSET(InputPriceData!D$15,CalculationsAndCharts!$A179+$A$11,IF($C$7,8,0),1,1) -> 187.970001 | F179: =OFFSET(InputPriceData!E$15,CalculationsAndCharts!$A179+$A$11,IF($C$7,8,0),1,1) -> 186.009995 | G179: =OFFSET(InputPriceData!F$15,CalculationsAndCharts!$A179+$A$11,IF($C$7,8,0),1,1) -> 187.880005 | H179: -0.1498751574 | I179: 188.0298802 | J179: 188.9700296 | K179: 187.0897308 | L179: -0.01728502967 | M179: -0.009200036835 | O179: 0.02622534661 | P179: 187.8537797 | Q179: 0.137207849 | R179: 0.08763541328 | U179: 0.09683545012
A180: 148 | B180: =OFFSET(InputPriceData!B$15,CalculationsAndCharts!$A180+$A$11,0,1,1) -> 2014-05-06 | C180: =OFFSET(InputPriceData!G$15,CalculationsAndCharts!$A180+$A$11,IF($C$7,8,0),1,1) -> 85454000 | D180: =OFFSET(InputPriceData!C$15,CalculationsAndCharts!$A180+$A$11,IF($C$7,8,0),1,1) -> 188 | E180: =OFFSET(InputPriceData!D$15,CalculationsAndCharts!$A180+$A$11,IF($C$7,8,0),1,1) -> 188.130005 | F180: =OFFSET(InputPriceData!E$15,CalculationsAndCharts!$A180+$A$11,IF($C$7,8,0),1,1) -> 186.740005 | G180: =OFFSET(InputPriceData!F$15,CalculationsAndCharts!$A180+$A$11,IF($C$7,8,0),1,1) -> 186.779999 | H180: -1.212727989 | I180: 187.992727 | J180: 188.9326906 | K180: 187.0527634 | L180: 0.006614541926 | M180: 0.003541354514 | O180: -1.040131353 | P180: 187.8201304 | Q180: 0.1829594592 | R180: 0.117545429 | U180: 0.1140040744
A181: 149 | B181: =OFFSET(InputPriceData!B$15,CalculationsAndCharts!$A181+$A$11,0,1,1) -> 2014-05-05 | C181: =OFFSET(InputPriceData!G$15,CalculationsAndCharts!$A181+$A$11,IF($C$7,8,0),1,1) -> 75883000 | D181: =OFFSET(InputPriceData!C$15,CalculationsAndCharts!$A181+$A$11,IF($C$7,8,0),1,1) -> 187.139999 | E181: =OFFSET(InputPriceData!D$15,CalculationsAndCharts!$A181+$A$11,IF($C$7,8,0),1,1) -> 188.550003 | F181: =OFFSET(InputPriceData!E$15,CalculationsAndCharts!$A181+$A$11,IF($C$7,8,0),1,1) -> 186.619995 | G181: =OFFSET(InputPriceData!F$15,CalculationsAndCharts!$A181+$A$11,IF($C$7,8,0),1,1) -> 188.419998 | H181: 0.4877453858 | I181: 187.9322526 | J181: 188.8719139 | K181: 186.9925914 | L181: 0.009059842972 | M181: 0.004808323463 | O181: 0.6624717389 | P181: 187.7575263 | Q181: 0.2043253345 | R181: 0.1301297123 | U181: 0.1253213889
A182: 150 | B182: =OFFSET(InputPriceData!B$15,CalculationsAndCharts!$A182+$A$11,0,1,1) -> 2014-05-02 | C182: =OFFSET(InputPriceData!G$15,CalculationsAndCharts!$A182+$A$11,IF($C$7,8,0),1,1) -> 98122000 | D182: =OFFSET(InputPriceData!C$15,CalculationsAndCharts!$A182+$A$11,IF($C$7,8,0),1,1) -> 188.309998 | E182: =OFFSET(InputPriceData!D$15,CalculationsAndCharts!$A182+$A$11,IF($C$7,8,0),1,1) -> 189.139999 | F182: =OFFSET(InputPriceData!E$15,CalculationsAndCharts!$A182+$A$11,IF($C$7,8,0),1,1) -> 187.779999 | G182: =OFFSET(InputPriceData!F$15,CalculationsAndCharts!$A182+$A$11,IF($C$7,8,0),1,1) -> 188.059998 | H182: 0.2398454852 | I182: 187.8201525 | J182: 188.7592533 | K182: 186.8810518 | L182: -0.04367230571 | M182: -0.02322253865 | O182: 0.4300420142 | P182: 187.629956 | Q182: 0.1569320569 | R182: 0.1001374403 | U182: 0.123359979
A183: 151 | B183: =OFFSET(InputPriceData!B$15,CalculationsAndCharts!$A183+$A$11,0,1,1) -> 2014-05-01 | C183: =OFFSET(InputPriceData!G$15,CalculationsAndCharts!$A183+$A$11,IF($C$7,8,0),1,1) -> 93019000 | D183: =OFFSET(InputPriceData!C$15,CalculationsAndCharts!$A183+$A$11,IF($C$7,8,0),1,1) -> 188.220001 | E183: =OFFSET(InputPriceData!D$15,CalculationsAndCharts!$A183+$A$11,IF($C$7,8,0),1,1) -> 188.839996 | F183: =OFFSET(InputPriceData!E$15,CalculationsAndCharts!$A183+$A$11,IF($C$7,8,0),1,1) -> 187.729996 | G183: =OFFSET(InputPriceData!F$15,CalculationsAndCharts!$A183+$A$11,IF($C$7,8,0),1,1) -> 188.330002 | H183: 0.626373297 | I183: 187.7036287 | J183: 188.6421468 | K183: 186.7651106 | L183: -0.1089850826 | M183: -0.05786920904 | O183: 0.8340776589 | P183: 187.4959243 | Q183: 0.09187481146 | R183: 0.05854073837 | U183: 0.1164099474
A184: 152 | B184: =OFFSET(InputPriceData!B$15,CalculationsAndCharts!$A184+$A$11,0,1,1) -> 2014-04-30 | C184: =OFFSET(InputPriceData!G$15,CalculationsAndCharts!$A184+$A$11,IF($C$7,8,0),1,1) -> 101508000 | D184: =OFFSET(InputPriceData!C$15,CalculationsAndCharts!$A184+$A$11,IF($C$7,8,0),1,1) -> 187.440002 | E184: =OFFSET(InputPriceData!D$15,CalculationsAndCharts!$A184+$A$11,IF($C$7,8,0),1,1) -> 188.5 | F184: =OFFSET(InputPriceData!E$15,CalculationsAndCharts!$A184+$A$11,IF($C$7,8,0),1,1) -> 187.179993 | G184: =OFFSET(InputPriceData!F$15,CalculationsAndCharts!$A184+$A$11,IF($C$7,8,0),1,1) -> 188.309998 | H184: 0.7399629653 | I184: 187.570035 | J184: 188.5078852 | K184: 186.6321849 | L184: -0.2020425929 | M184: -0.1072925469 | O184: 0.9706079004 | P184: 187.3393901 | Q184: -0.01129140528 | R184: -0.00719541526 | U184: 0.1000971316
A185: 153 | B185: =OFFSET(InputPriceData!B$15,CalculationsAndCharts!$A185+$A$11,0,1,1) -> 2014-04-29 | C185: =OFFSET(InputPriceData!G$15,CalculationsAndCharts!$A185+$A$11,IF($C$7,8,0),1,1) -> 84098000 | D185: =OFFSET(InputPriceData!C$15,CalculationsAndCharts!$A185+$A$11,IF($C$7,8,0),1,1) -> 187.479996 | E185: =OFFSET(InputPriceData!D$15,CalculationsAndCharts!$A185+$A$11,IF($C$7,8,0),1,1) -> 188.039993 | F185: =OFFSET(InputPriceData!E$15,CalculationsAndCharts!$A185+$A$11,IF($C$7,8,0),1,1) -> 187.080002 | G185: =OFFSET(InputPriceData!F$15,CalculationsAndCharts!$A185+$A$11,IF($C$7,8,0),1,1) -> 187.75 | H185: 0.3012427281 | I185: 187.4487573 | J185: 188.3860011 | K185: 186.5115135 | L185: -0.2949886634 | M185: -0.1571177967 | O185: 0.5530141535 | P185: 187.1969858 | Q185: -0.1189745474 | R185: -0.07604232056 | U185: 0.08107547618
A186: 154 | B186: =OFFSET(InputPriceData!B$15,CalculationsAndCharts!$A186+$A$11,0,1,1) -> 2014-04-28 | C186: =OFFSET(InputPriceData!G$15,CalculationsAndCharts!$A186+$A$11,IF($C$7,8,0),1,1) -> 135121000 | D186: =OFFSET(InputPriceData!C$15,CalculationsAndCharts!$A186+$A$11,IF($C$7,8,0),1,1) -> 187.050003 | E186: =OFFSET(InputPriceData!D$15,CalculationsAndCharts!$A186+$A$11,IF($C$7,8,0),1,1) -> 187.690002 | F186: =OFFSET(InputPriceData!E$15,CalculationsAndCharts!$A186+$A$11,IF($C$7,8,0),1,1) -> 184.960007 | G186: =OFFSET(InputPriceData!F$15,CalculationsAndCharts!$A186+$A$11,IF($C$7,8,0),1,1) -> 186.880005 | H186: -0.4915116093 | I186: 187.3715166 | J186: 188.3083742 | K186: 186.434659 | L186: -0.3531980456 | M186: -0.1889972368 | O186: -0.2287764594 | P186: 187.1087815 | Q186: -0.1872374602 | R186: -0.1202295303 | U186: 0.06876770648
A187: 155 | B187: =OFFSET(InputPriceData!B$15,CalculationsAndCharts!$A187+$A$11,0,1,1) -> 2014-04-25 | C187: =OFFSET(InputPriceData!G$15,CalculationsAndCharts!$A187+$A$11,IF($C$7,8,0),1,1) -> 100380000 | D187: =OFFSET(InputPriceData!C$15,CalculationsAndCharts!$A187+$A$11,IF($C$7,8,0),1,1) -> 187.220001 | E187: =OFFSET(InputPriceData!D$15,CalculationsAndCharts!$A187+$A$11,IF($C$7,8,0),1,1) -> 187.330002 | F187: =OFFSET(InputPriceData!E$15,CalculationsAndCharts!$A187+$A$11,IF($C$7,8,0),1,1) -> 185.869995 | G187: =OFFSET(InputPriceData!F$15,CalculationsAndCharts!$A187+$A$11,IF($C$7,8,0),1,1) -> 186.289993 | H187: -1.051825464 | I187: 187.3418185 | J187: 188.2785276 | K187: 186.4051094 | L187: -0.3672748701 | M187: -0.1971522271 | O187: -0.7899065654 | P187: 187.0798996 | Q187: -0.2022025182 | R187: -0.1302501642 | U187: 0.06690206286
A188: 156 | B188: =OFFSET(InputPriceData!B$15,CalculationsAndCharts!$A188+$A$11,0,1,1) -> 2014-04-24 | C188: =OFFSET(InputPriceData!G$15,CalculationsAndCharts!$A188+$A$11,IF($C$7,8,0),1,1) -> 88170000 | D188: =OFFSET(InputPriceData!C$15,CalculationsAndCharts!$A188+$A$11,IF($C$7,8,0),1,1) -> 188.369995 | E188: =OFFSET(InputPriceData!D$15,CalculationsAndCharts!$A188+$A$11,IF($C$7,8,0),1,1) -> 188.389999 | F188: =OFFSET(InputPriceData!E$15,CalculationsAndCharts!$A188+$A$11,IF($C$7,8,0),1,1) -> 186.929993 | G188: =OFFSET(InputPriceData!F$15,CalculationsAndCharts!$A188+$A$11,IF($C$7,8,0),1,1) -> 187.830002 | H188: 0.5557467935 | I188: 187.2742552 | J188: 188.2106265 | K188: 186.3378839 | L188: -0.422215752 | M188: -0.2247861085 | O188: 0.8263476161 | P188: 187.0036544 | Q188: -0.2702038603 | R188: -0.1726266458 | U188: 0.05215946263
A189: 157 | B189: =OFFSET(InputPriceData!B$15,CalculationsAndCharts!$A189+$A$11,0,1,1) -> 2014-04-23 | C189: =OFFSET(InputPriceData!G$15,CalculationsAndCharts!$A189+$A$11,IF($C$7,8,0),1,1) -> 73869000 | D189: =OFFSET(InputPriceData!C$15,CalculationsAndCharts!$A189+$A$11,IF($C$7,8,0),1,1) -> 187.820007 | E189: =OFFSET(InputPriceData!D$15,CalculationsAndCharts!$A189+$A$11,IF($C$7,8,0),1,1) -> 187.919998 | F189: =OFFSET(InputPriceData!E$15,CalculationsAndCharts!$A189+$A$11,IF($C$7,8,0),1,1) -> 187.300003 | G189: =OFFSET(InputPriceData!F$15,CalculationsAndCharts!$A189+$A$11,IF($C$7,8,0),1,1) -> 187.449997 | H189: 0.2909173454 | I189: 187.1590797 | J189: 188.0948751 | K189: 186.2232843 | L189: -0.5344487563 | M189: -0.285115372 | O189: 0.5828658685 | P189: 186.8671311 | Q189: -0.4151250721 | R189: -0.2657509173 | U189: 0.01936445475
A190: 158 | B190: =OFFSET(InputPriceData!B$15,CalculationsAndCharts!$A190+$A$11,0,1,1) -> 2014-04-22 | C190: =OFFSET(InputPriceData!G$15,CalculationsAndCharts!$A190+$A$11,IF($C$7,8,0),1,1) -> 85790000 | D190: =OFFSET(InputPriceData!C$15,CalculationsAndCharts!$A190+$A$11,IF($C$7,8,0),1,1) -> 187.229996 | E190: =OFFSET(InputPriceData!D$15,CalculationsAndCharts!$A190+$A$11,IF($C$7,8,0),1,1) -> 188.399994 | F190: =OFFSET(InputPriceData!E$15,CalculationsAndCharts!$A190+$A$11,IF($C$7,8,0),1,1) -> 187.130005 | G190: =OFFSET(InputPriceData!F$15,CalculationsAndCharts!$A190+$A$11,IF($C$7,8,0),1,1) -> 187.889999 | H190: 0.856141751 | I190: 187.0338572 | J190: 187.9690265 | K190: 186.098688 | L190: -0.6717370852 | M190: -0.3575161471 | O190: 1.173241345 | P190: 186.7167577 | Q190: -0.5998426376 | R190: -0.3831024371 | U190: -0.02558628995
A191: 159 | B191: =OFFSET(InputPriceData!B$15,CalculationsAndCharts!$A191+$A$11,0,1,1) -> 2014-04-21 | C191: =OFFSET(InputPriceData!G$15,CalculationsAndCharts!$A191+$A$11,IF($C$7,8,0),1,1) -> 68329000 | D191: =OFFSET(InputPriceData!C$15,CalculationsAndCharts!$A191+$A$11,IF($C$7,8,0),1,1) -> 186.440002 | E191: =OFFSET(InputPriceData!D$15,CalculationsAndCharts!$A191+$A$11,IF($C$7,8,0),1,1) -> 187.100006 | F191: =OFFSET(InputPriceData!E$15,CalculationsAndCharts!$A191+$A$11,IF($C$7,8,0),1,1) -> 186.210007 | G191: =OFFSET(InputPriceData!F$15,CalculationsAndCharts!$A191+$A$11,IF($C$7,8,0),1,1) -> 187.039993 | H191: 0.1247814342 | I191: 186.9152116 | J191: 187.8497876 | K191: 185.9806355 | L191: -0.8192934042 | M191: -0.438031135 | O191: 0.4667750067 | P191: 186.573218 | Q191: -0.8078540661 | R191: -0.5182981798 | U191: -0.08026704486
A192: 160 | B192: =OFFSET(InputPriceData!B$15,CalculationsAndCharts!$A192+$A$11,0,1,1) -> 2014-04-17 | C192: =OFFSET(InputPriceData!G$15,CalculationsAndCharts!$A192+$A$11,IF($C$7,8,0),1,1) -> 105255000 | D192: =OFFSET(InputPriceData!C$15,CalculationsAndCharts!$A192+$A$11,IF($C$7,8,0),1,1) -> 185.880005 | E192: =OFFSET(InputPriceData!D$15,CalculationsAndCharts!$A192+$A$11,IF($C$7,8,0),1,1) -> 186.910004 | F192: =OFFSET(InputPriceData!E$15,CalculationsAndCharts!$A192+$A$11,IF($C$7,8,0),1,1) -> 185.559998 | G192: =OFFSET(InputPriceData!F$15,CalculationsAndCharts!$A192+$A$11,IF($C$7,8,0),1,1) -> 186.389999 | H192: -0.4533128031 | I192: 186.8433118 | J192: 187.7775284 | K192: 185.9090952 | L192: -0.9347001969 | M192: -0.5014755094 | O192: -0.09711217379 | P192: 186.4871112 | Q192: -0.9864786855 | R192: -0.6351061907 | U192: -0.1336306814
A193: 161 | B193: =OFFSET(InputPriceData!B$15,CalculationsAndCharts!$A193+$A$11,0,1,1) -> 2014-04-16 | C193: =OFFSET(InputPriceData!G$15,CalculationsAndCharts!$A193+$A$11,IF($C$7,8,0),1,1) -> 105197000 | D193: =OFFSET(InputPriceData!C$15,CalculationsAndCharts!$A193+$A$11,IF($C$7,8,0),1,1) -> 185.470001 | E193: =OFFSET(InputPriceData!D$15,CalculationsAndCharts!$A193+$A$11,IF($C$7,8,0),1,1) -> 186.139999 | F193: =OFFSET(InputPriceData!E$15,CalculationsAndCharts!$A193+$A$11,IF($C$7,8,0),1,1) -> 184.649994 | G193: =OFFSET(InputPriceData!F$15,CalculationsAndCharts!$A193+$A$11,IF($C$7,8,0),1,1) -> 186.130005 | H193: -0.669166877 | I193: 186.7991719 | J193: 187.7331677 | K193: 185.865176 | L193: -1.032826524 | M193: -0.5548952324 | O193: -0.305285401 | P193: 186.4352904 | Q193: -1.153798141 | R193: -0.7438659712 | U193: -0.1889707388
A194: 162 | B194: =OFFSET(InputPriceData!B$15,CalculationsAndCharts!$A194+$A$11,0,1,1) -> 2014-04-15 | C194: =OFFSET(InputPriceData!G$15,CalculationsAndCharts!$A194+$A$11,IF($C$7,8,0),1,1) -> 157093000 | D194: =OFFSET(InputPriceData!C$15,CalculationsAndCharts!$A194+$A$11,IF($C$7,8,0),1,1) -> 183.320007 | E194: =OFFSET(InputPriceData!D$15,CalculationsAndCharts!$A194+$A$11,IF($C$7,8,0),1,1) -> 184.330002 | F194: =OFFSET(InputPriceData!E$15,CalculationsAndCharts!$A194+$A$11,IF($C$7,8,0),1,1) -> 181.509995 | G194: =OFFSET(InputPriceData!F$15,CalculationsAndCharts!$A194+$A$11,IF($C$7,8,0),1,1) -> 184.199997 | H194: -2.631037747 | I194: 186.8310347 | J194: 187.7651899 | K194: 185.8968796 | L194: -1.058631722 | M194: -0.5747186423 | O194: -2.278935929 | P194: 186.4789329 | Q194: -1.239161125 | R194: -0.8072711042 | U194: -0.2325524619
A195: 163 | B195: =OFFSET(InputPriceData!B$15,CalculationsAndCharts!$A195+$A$11,0,1,1) -> 2014-04-14 | C195: =OFFSET(InputPriceData!G$15,CalculationsAndCharts!$A195+$A$11,IF($C$7,8,0),1,1) -> 132382000 | D195: =OFFSET(InputPriceData!C$15,CalculationsAndCharts!$A195+$A$11,IF($C$7,8,0),1,1) -> 182.929993 | E195: =OFFSET(InputPriceData!D$15,CalculationsAndCharts!$A195+$A$11,IF($C$7,8,0),1,1) -> 183.369995 | F195: =OFFSET(InputPriceData!E$15,CalculationsAndCharts!$A195+$A$11,IF($C$7,8,0),1,1) -> 181.440002 | G195: =OFFSET(InputPriceData!F$15,CalculationsAndCharts!$A195+$A$11,IF($C$7,8,0),1,1) -> 182.940002 | H195: -4.039534572 | I195: 186.9795366 | J195: 187.9144343 | K195: 186.0446389 | L195: -0.957231108 | M195: -0.5232486594 | O195: -3.730513455 | P195: 186.6705155 | Q195: -1.168396489 | R195: -0.7664129066 | U195: -0.2431642472
A196: 164 | B196: =OFFSET(InputPriceData!B$15,CalculationsAndCharts!$A196+$A$11,0,1,1) -> 2014-04-11 | C196: =OFFSET(InputPriceData!G$15,CalculationsAndCharts!$A196+$A$11,IF($C$7,8,0),1,1) -> 167251000 | D196: =OFFSET(InputPriceData!C$15,CalculationsAndCharts!$A196+$A$11,IF($C$7,8,0),1,1) -> 182.139999 | E196: =OFFSET(InputPriceData!D$15,CalculationsAndCharts!$A196+$A$11,IF($C$7,8,0),1,1) -> 183.419998 | F196: =OFFSET(InputPriceData!E$15,CalculationsAndCharts!$A196+$A$11,IF($C$7,8,0),1,1) -> 181.309998 | G196: =OFFSET(InputPriceData!F$15,CalculationsAndCharts!$A196+$A$11,IF($C$7,8,0),1,1) -> 181.509995 | H196: -5.722737377 | I196: 187.2327324 | J196: 188.168896 | K196: 186.2965687 | L196: -0.7225694037 | M196: -0.3980879421 | O196: -5.487126583 | P196: 186.9971216 | Q196: -0.9258596566 | R196: -0.612104908 | U196: -0.2140169659
A197: 165 | B197: =OFFSET(InputPriceData!B$15,CalculationsAndCharts!$A197+$A$11,0,1,1) -> 2014-04-10 | C197: =OFFSET(InputPriceData!G$15,CalculationsAndCharts!$A197+$A$11,IF($C$7,8,0),1,1) -> 172959000 | D197: =OFFSET(InputPriceData!C$15,CalculationsAndCharts!$A197+$A$11,IF($C$7,8,0),1,1) -> 187.080002 | E197: =OFFSET(InputPriceData!D$15,CalculationsAndCharts!$A197+$A$11,IF($C$7,8,0),1,1) -> 187.169998 | F197: =OFFSET(InputPriceData!E$15,CalculationsAndCharts!$A197+$A$11,IF($C$7,8,0),1,1) -> 182.929993 | G197: =OFFSET(InputPriceData!F$15,CalculationsAndCharts!$A197+$A$11,IF($C$7,8,0),1,1) -> 183.160004 | H197: -4.329989834 | I197: 187.4899938 | J197: 188.4274438 | K197: 186.5525439 | L197: -0.4437320809 | M197: -0.2422647255 | O197: -4.174116117 | P197: 187.3341201 | Q197: -0.6166967427 | R197: -0.4040380406 | U197: -0.1617733151
A198: 166 | B198: =OFFSET(InputPriceData!B$15,CalculationsAndCharts!$A198+$A$11,0,1,1) -> 2014-04-09 | C198: =OFFSET(InputPriceData!G$15,CalculationsAndCharts!$A198+$A$11,IF($C$7,8,0),1,1) -> 100254000 | D198: =OFFSET(InputPriceData!C$15,CalculationsAndCharts!$A198+$A$11,IF($C$7,8,0),1,1) -> 185.600006 | E198: =OFFSET(InputPriceData!D$15,CalculationsAndCharts!$A198+$A$11,IF($C$7,8,0),1,1) -> 187.149994 | F198: =OFFSET(InputPriceData!E$15,CalculationsAndCharts!$A198+$A$11,IF($C$7,8,0),1,1) -> 185.059998 | G198: =OFFSET(InputPriceData!F$15,CalculationsAndCharts!$A198+$A$11,IF($C$7,8,0),1,1) -> 187.089996 | H198: -0.4657285277 | I198: 187.5557245 | J198: 188.4935032 | K198: 186.6179459 | L198: -0.3257636884 | M198: -0.1741213829 | O198: -0.3456934686 | P198: 187.4356895 | Q198: -0.4998340166 | R198: -0.3205948114 | U198: -0.1464734285
A199: 167 | B199: =OFFSET(InputPriceData!B$15,CalculationsAndCharts!$A199+$A$11,0,1,1) -> 2014-04-08 | C199: =OFFSET(InputPriceData!G$15,CalculationsAndCharts!$A199+$A$11,IF($C$7,8,0),1,1) -> 112660000 | D199: =OFFSET(InputPriceData!C$15,CalculationsAndCharts!$A199+$A$11,IF($C$7,8,0),1,1) -> 184.259995 | E199: =OFFSET(InputPriceData!D$15,CalculationsAndCharts!$A199+$A$11,IF($C$7,8,0),1,1) -> 185.399994 | F199: =OFFSET(InputPriceData!E$15,CalculationsAndCharts!$A199+$A$11,IF($C$7,8,0),1,1) -> 183.589996 | G199: =OFFSET(InputPriceData!F$15,CalculationsAndCharts!$A199+$A$11,IF($C$7,8,0),1,1) -> 185.100006 | H199: -2.452276614 | I199: 187.5522826 | J199: 188.490044 | K199: 186.6145212 | L199: -0.2623550135 | M199: -0.1417369017 | O199: -2.352769254 | P199: 187.4527753 | Q199: -0.4484142382 | R199: -0.2907061418 | U199: -0.1489692401
A200: 168 | B200: =OFFSET(InputPriceData!B$15,CalculationsAndCharts!$A200+$A$11,0,1,1) -> 2014-04-07 | C200: =OFFSET(InputPriceData!G$15,CalculationsAndCharts!$A200+$A$11,IF($C$7,8,0),1,1) -> 140803000 | D200: =OFFSET(InputPriceData!C$15,CalculationsAndCharts!$A200+$A$11,IF($C$7,8,0),1,1) -> 185.949997 | E200: =OFFSET(InputPriceData!D$15,CalculationsAndCharts!$A200+$A$11,IF($C$7,8,0),1,1) -> 186.259995 | F200: =OFFSET(InputPriceData!E$15,CalculationsAndCharts!$A200+$A$11,IF($C$7,8,0),1,1) -> 183.960007 | G200: =OFFSET(InputPriceData!F$15,CalculationsAndCharts!$A200+$A$11,IF($C$7,8,0),1,1) -> 184.339996 | H200: -3.307090486 | I200: 187.6470865 | J200: 188.5853219 | K200: 186.7088511 | L200: -0.08220320896 | M200: -0.04459325743 | O200: -3.255025927 | P200: 187.5950219 | Q200: -0.2460232836 | R200: -0.1601540342 | U200: -0.1155607768
A201: 169 | B201: =OFFSET(InputPriceData!B$15,CalculationsAndCharts!$A201+$A$11,0,1,1) -> 2014-04-04 | C201: =OFFSET(InputPriceData!G$15,CalculationsAndCharts!$A201+$A$11,IF($C$7,8,0),1,1) -> 169381000 | D201: =OFFSET(InputPriceData!C$15,CalculationsAndCharts!$A201+$A$11,IF($C$7,8,0),1,1) -> 189.660004 | E201: =OFFSET(InputPriceData!D$15,CalculationsAndCharts!$A201+$A$11,IF($C$7,8,0),1,1) -> 189.699997 | F201: =OFFSET(InputPriceData!E$15,CalculationsAndCharts!$A201+$A$11,IF($C$7,8,0),1,1) -> 186.100006 | G201: =OFFSET(InputPriceData!F$15,CalculationsAndCharts!$A201+$A$11,IF($C$7,8,0),1,1) -> 186.399994 | H201: -1.297583975 | I201: 187.697578 | J201: 188.6360659 | K201: 186.7590901 | L201: 0.07829897991 | M201: 0.04200589186 | O201: -1.284818361 | P201: 187.6848124 | Q201: -0.05954072675 | R201: -0.0383309412 | U201: -0.08033683306
A202: 170 | B202: =OFFSET(InputPriceData!B$15,CalculationsAndCharts!$A202+$A$11,0,1,1) -> 2014-04-03 | C202: =OFFSET(InputPriceData!G$15,CalculationsAndCharts!$A202+$A$11,IF($C$7,8,0),1,1) -> 77435000 | D202: =OFFSET(InputPriceData!C$15,CalculationsAndCharts!$A202+$A$11,IF($C$7,8,0),1,1) -> 189.169998 | E202: =OFFSET(InputPriceData!D$15,CalculationsAndCharts!$A202+$A$11,IF($C$7,8,0),1,1) -> 189.220001 | F202: =OFFSET(InputPriceData!E$15,CalculationsAndCharts!$A202+$A$11,IF($C$7,8,0),1,1) -> 188.050003 | G202: =OFFSET(InputPriceData!F$15,CalculationsAndCharts!$A202+$A$11,IF($C$7,8,0),1,1) -> 188.630005 | H202: 1.037898858 | I202: 187.5921061 | J202: 188.5300667 | K202: 186.6541456 | L202: 0.09524063283 | M202: 0.05049071214 | O202: 1.048983648 | P202: 187.5810214 | Q202: -0.04823934592 | R202: -0.03068823282 | U202: -0.08117894496
... 671 more rows

Sheet Follow
A1: Stocks and Indexes I wish to follow
A3: To ease following a stock, enter a Yahoo Finance acceptable symbol in column "A" anywhere below cell "A9".
A4: Thereafter you may doubleclick the cell containing a symbol of interest to initiate data retrieval and charting for that symbol.
A7: Symbol
A8: To | B8: Description | C8: Last Trade as of most recent check
A9: Follow | C9: Date | D9: Time | E9: Open | F9: High | G9: Low | H9: Close | I9: Volume | J9: Change
A10: A | B10: Agilent Technolog (A) -NYSE (Daily) | C10: 2015-02-02 | D10: 16:03:00 | E10: 37.9 | F10: 38.76 | G10: 37.71 | H10: 38.69 | I10: 2508493 | J10: 0.92
A11: AAL | B11: American Airlines (AAL) -NasdaqNM (Daily) | C11: 2015-02-19 | D11: 16:00:00 | E11: 50.73 | F11: 50.8 | G11: 49.59 | H11: 49.78 | I11: 11462722 | J11: 0.47
A12: ADM | B12: Archer-Daniels-Mi (ADM) -NYSE (Daily) | C12: 2015-02-02 | D12: 16:00:00 | E12: 46.79 | F12: 48.195 | G12: 46.72 | H12: 48.17 | I12: 6479474 | J12: 1.54
A13: AMC | B13: AMC Entertainment (AMC) -NYSE (Daily) | C13: 2015-02-26 | D13: 16:01:00 | E13: 33.01 | F13: 33.81 | G13: 32.96 | H13: 33.63 | I13: 293778 | J13: 0.65
A14: BSX | B14: Boston Scientific Corporation C (BSX) -NYQ (Daily) | C14: 2015-03-13 | D14: 16:01:00 | E14: 16.84 | F14: 16.91 | G14: 16.44 | H14: 16.61 | I14: 7262460 | J14: -0.28
A15: CASY | B15: Caseys General Stores, Inc. (CASY) -NMS (Daily) | C15: 2015-03-13 | D15: 16:00:00 | E15: 89.6 | F15: 89.6 | G15: 87.55 | H15: 88 | I15: 283264 | J15: -1.26
A16: CSCO | B16: Cisco Systems, In (CSCO) -NasdaqNM (Daily) | C16: 2015-02-19 | D16: 16:00:00 | E16: 29.32 | F16: 29.39 | G16: 29.13 | H16: 29.31 | I16: 21469012 | J16: -0.18
A17: CVS | B17: CVS Health Corpor (CVS) -NYSE (Daily) | C17: 2015-02-02 | D17: 16:01:00 | E17: 98.34 | F17: 99.22 | G17: 97.06 | H17: 99.11 | I17: 4416094 | J17: 0.95
A18: DIS | B18: Walt Disney Compa (DIS) -NYSE (Daily) | C18: 2015-02-26 | D18: 16:00:00 | E18: 105.5 | F18: 105.71 | G18: 104.14 | H18: 104.56 | I18: 5044969 | J18: -1.01
A19: EMC | B19: EMC Corporation C (EMC) -NYSE (Daily) | C19: 2015-02-19 | D19: 16:00:00 | E19: 28.26 | F19: 28.83 | G19: 28.19 | H19: 28.72 | I19: 11049079 | J19: 0.52
A20: F | B20: Ford Motor Compan (F) -NYSE (Daily) | C20: 2015-02-19 | D20: 16:00:00 | E20: 16.19 | F20: 16.48 | G20: 16.17 | H20: 16.43 | I20: 24841834 | J20: 0.22
A21: GSK | B21: GlaxoSmithKline P (GSK) -NYSE (Daily) | C21: 2015-02-02 | D21: 16:01:00 | E21: 44.11 | F21: 44.12 | G21: 43.71 | H21: 43.96 | I21: 3654466 | J21: -0.04
A22: HSY | B22: The Hershey Compa (HSY) -NYSE (Daily) | C22: 2015-02-19 | D22: 16:02:00 | E22: 106.97 | F22: 107.31 | G22: 105.42 | H22: 105.95 | I22: 1448321 | J22: -1
A23: HTLD | B23: Heartland Express (HTLD) -NasdaqNM (Daily) | C23: 2015-02-02 | D23: 16:00:00 | E23: 25.68 | F23: 25.81 | G23: 25.36 | H23: 25.62 | I23: 542510 | J23: -0.07
A24: IBM | B24: International Bus (IBM) -NYSE (Daily) | C24: 2015-02-02 | D24: 16:01:00 | E24: 154 | F24: 154.66 | G24: 151.51 | H24: 154.66 | I24: 4712247 | J24: 1.35
A25: INTC | B25: Intel Corporation (INTC) -NasdaqNM (Daily) | C25: 2015-02-19 | D25: 16:00:00 | E25: 34.25 | F25: 34.42 | G25: 34.05 | H25: 34.21 | I25: 11017541 | J25: -0.055
A26: JNJ | B26: Johnson & Johnson (JNJ) -NYSE (Daily) | C26: 2015-02-19 | D26: 16:00:00 | E26: 99.98 | F26: 100.84 | G26: 99.61 | H26: 100.7 | I26: 10022266 | J26: 0.74
A27: KO | B27: Coca-Cola Company (KO) -NYSE (Daily) | C27: 2015-02-26 | D27: 16:00:00 | E27: 42.04 | F27: 42.55 | G27: 41.97 | H27: 42.46 | I27: 14344041 | J27: 0.41
A28: LHO | B28: LaSalle Hotel Pro (LHO) -NYSE (Daily) | C28: 2015-02-02 | D28: 16:06:00 | E28: 40.51 | F28: 40.74 | G28: 39.46 | H28: 40.26 | I28: 1034675 | J28: -0.2
A29: LINE | B29: Linn Energy, LLC (LINE) -NasdaqNM (Daily) | C29: 2015-02-02 | D29: 16:00:00 | E29: 10.4 | F29: 10.78 | G29: 10.25 | H29: 10.77 | I29: 3766537 | J29: 0.51
A30: LO | B30: Lorillard, Inc Co (LO) -NYSE (Daily) | C30: 2015-02-02 | D30: 16:03:00 | E30: 65.71 | F30: 66.29 | G30: 65.43 | H30: 66.29 | I30: 1563618 | J30: 0.68
A31: MCD | B31: McDonald's Corpor (MCD) -NYSE (Daily) | C31: 2015-03-03 | D31: 13:36:00 | E31: 99.89 | F31: 100.44 | G31: 99.57 | H31: 99.93 | I31: 5222757 | J31: -0.07
A32: MDT | B32: Medtronic plc. Or (MDT) -NYSE (Daily) | C32: 2015-02-19 | D32: 16:01:00 | E32: 78.59 | F32: 78.59 | G32: 77.85 | H32: 78.13 | I32: 6900528 | J32: -0.37
A33: MGM | B33: MGM Resorts Inter (MGM) -NYSE (Daily) | C33: 2015-02-02 | D33: 16:00:00 | E33: 19.44 | F33: 19.75 | G33: 19.12 | H33: 19.74 | I33: 7570281 | J33: 0.26
A34: MO | B34: Altria Group, Inc (MO) -NYSE (Daily) | C34: 2015-02-02 | D34: 16:01:00 | E34: 53.25 | F34: 53.84 | G34: 52.98 | H34: 53.8 | I34: 9183582 | J34: 0.7
A35: MSFT | B35: Microsoft Corpora (MSFT) -NasdaqNM (Daily) | C35: 2015-02-20 | D35: 16:00:00 | E35: 43.51 | F35: 43.88 | G35: 43.29 | H35: 43.855 | I35: 29721132 | J35: 0.355
A36: NVS | B36: Novartis AG Commo (NVS) -NYSE (Daily) | C36: 2015-02-19 | D36: 16:05:00 | E36: 102.32 | F36: 102.7 | G36: 102.001 | H36: 102.25 | I36: 931036 | J36: 0.08
A37: PRU | B37: Prudential Financ (PRU) -NYSE (Daily) | C37: 2015-02-23 | D37: 12:22:00 | E37: 80.25 | F37: 80.4499 | G37: 79.8 | H37: 80.12 | I37: 1604052 | J37: -0.69
A38: PSEC | B38: Prospect Capital Corporation (PSEC) -NMS (Daily) | C38: 2015-07-09 | D38: 09:51:00 | E38: 7.35 | F38: 7.4 | G38: 7.34 | H38: 7.37 | I38: 402141 | J38: 0.05
A39: RAI | B39: Reynolds American (RAI) -NYSE (Daily) | C39: 2015-02-02 | D39: 16:03:00 | E39: 68.12 | F39: 69.06 | G39: 67.4346 | H39: 69.05 | I39: 1822013 | J39: 1.1
A40: RPM | B40: RPM International (RPM) -NYSE (Daily) | C40: 2015-02-19 | D40: 16:03:00 | E40: 50.49 | F40: 50.82 | G40: 50.48 | H40: 50.71 | I40: 500176 | J40: 0.09 | K40: Owns Rust-Oleum
A41: RSP | B41: Guggenheim S&P 50 (RSP) -PCX (Daily) | C41: 2015-02-02 | D41: 16:00:00 | E41: 78.04 | F41: 78.81 | G41: 77.16 | H41: 78.55 | I41: 4156915 | J41: 0.838
A42: SONC | B42: Sonic Corp. (SONC) -NasdaqNM (Daily) | C42: 2015-03-04 | D42: 11:53:00 | E42: 33.65 | F42: 34.05 | G42: 33.44 | H42: 33.77 | I42: 174036 | J42: -0.09
A43: SWKS | B43: Skyworks Solution (SWKS) -NasdaqNM (Daily) | C43: 2015-02-02 | D43: 16:00:00 | E43: 83.07 | F43: 83.73 | G43: 80.15 | H43: 82.02 | I43: 4119001 | J43: -1.03
A44: TOL | B44: Toll Brothers Inc (TOL) -NYSE (Daily) | C44: 2015-02-23 | D44: 12:23:00 | E44: 37.56 | F44: 37.77 | G44: 37.1 | H44: 37.36 | I44: 1521944 | J44: -0.29
A45: UNP | B45: Union Pacific Cor (UNP) -NYSE (Daily) | C45: 2015-02-02 | D45: 16:10:00 | E45: 118.13 | F45: 119.06 | G45: 116.7 | H45: 119.01 | I45: 3259594 | J45: 1.8
A46: VZ | B46: Verizon Communica (VZ) -NYSE (Daily) | C46: 2015-02-23 | D46: 12:22:00 | E46: 48.94 | F46: 49 | G46: 48.54 | H46: 48.825 | I46: 4204644 | J46: -0.145
A47: WBA | B47: (WBA) -NasdaqNM (Daily) | C47: 2015-02-02 | D47: 16:00:00 | E47: 73.06 | F47: 74.98 | G47: 73 | H47: 74.89 | I47: 4247395 | J47: 1.14
A48: WMT | B48: Wal-Mart Stores, (WMT) -NYSE (Daily) | C48: 2015-02-19 | D48: 16:00:00 | E48: 84.5 | F48: 84.8 | G48: 83.39 | H48: 83.52 | I48: 18610944 | J48: -2.77
A50: SPY | B50: SPDR S&P 500 (SPY) -PCX (Daily) | C50: 2015-07-09 | D50: 09:52:00 | E50: 207.04 | F50: 207.35 | G50: 206.64 | H50: 206.83 | I50: 19903371 | J50: 2.3
A51: ^GSPC | B51: S&P 500 (^GSPC) -SNP (Daily) | C51: 2014-07-21 | D51: 16:32:00 | E51: 1976.93 | F51: 1976.93 | G51: 1965.77 | H51: 1973.63 | I51: 397417600
A52: ^VIX | B52: VOLATILITY S&P 500 (^VIX) -WCB (Daily) | C52: 2015-07-08 | D52: 14:38:00 | E52: 17.38 | F52: 19.1 | G52: 16.94 | H52: 18.98 | I52: 0 | J52: 2.89
A54: ACAD | B54: ACADIA Pharmaceut (ACAD) -NasdaqNM (Daily) | C54: 2014-07-21 | D54: 16:00:00 | E54: 20.13 | F54: 20.55 | G54: 19.8101 | H54: 20.31 | I54: 691016
A55: CLDX | B55: Celldex Therapeut (CLDX) -NasdaqNM (Daily) | C55: 2015-02-02 | D55: 16:00:00 | E55: 21.47 | F55: 21.69 | G55: 20.11 | H55: 21.02 | I55: 1570418 | J55: -0.4
A56: ICPT | B56: Intercept Pharmac (ICPT) -NasdaqNM (Daily) | C56: 2014-07-21 | D56: 16:00:00 | E56: 215.97 | F56: 218.43 | G56: 213.05 | H56: 218.14 | I56: 191276
A57: INO | B57: Inovio Pharmaceut (INO) -AMEX (Daily) | C57: 2014-07-21 | D57: 16:00:00 | E57: 10.3 | F57: 11.08 | G57: 10.1 | H57: 11.01 | I57: 1800796
A58: JCP | B58: J.C. Penney Compa (JCP) -NYSE (Daily) | C58: 2015-02-02 | D58: 16:01:00 | E58: 7.16 | F58: 7.44 | G58: 7.01 | H58: 7.43 | I58: 12772679 | J58: 0.16
A59: LCI | B59: Lannett Co Inc Co (LCI) -NYSE (Daily) | C59: 2014-07-21 | D59: 16:02:00 | E59: 38.09 | F59: 38.803 | G59: 36.5101 | H59: 37.76 | I59: 611367
A60: NPSP | B60: NPS Pharmaceutica (NPSP) -NasdaqNM (Daily) | C60: 2014-07-21 | D60: 15:59:00 | E60: 28.75 | F60: 29.43 | G60: 28.31 | H60: 29.29 | I60: 1126758
A61: PBYI | B61: Puma Biotechnolog (PBYI) -NYSE (Daily) | C61: 2014-07-21 | D61: 16:02:00 | E61: 58.27 | F61: 59.46 | G61: 57.39 | H61: 58.98 | I61: 348030
